Body Name,Date Paid,Transaction Number,Amount,Supplier Name,Supplier Type ,Expense Area ,Cost Centre Description ,Expense Type
Cambridgeshire County Council,04-Mar-19,51300753602,"-62,487.11",4X LIMITED T/A STEVES TAXI & PRIVATE HIRE,TRADE SUPPLIER,Home to School Transport - Mainstream,Home to School Transport Mainstream - Primary,Home to School - Contract
Cambridgeshire County Council,20-Mar-19,51300600446,"-53,326.69",BALFOUR BEATTY LIVING PLACES LIMITED,COMPANY,Replacement of accrued streetlights with LEDs,Replacement of accrued streetlights with LEDs,Construction - External Professional Fees
Cambridgeshire County Council,28-Mar-19,51300797292,"-16,367.42",FAITHFUL AND GOULD,TRADE SUPPLIER,Fordham Primary,Fordham Primary,Construction - External Professional Fees
Cambridgeshire County Council,25-Mar-19,51300682164,"-16,164.29",CHARTWELL HOUSE,CARE ESTABLISHMENT,SEN Placements,Placements - Education,Educational Materials
Cambridgeshire County Council,25-Mar-19,51300733879,"-16,164.29",CHARTWELL HOUSE,CARE ESTABLISHMENT,SEN Placements,Placements - Education,Independent School Placements
Cambridgeshire County Council,06-Mar-19,51300743543,"-12,033.49",TARMAC TRADING LIMITED,COMPANY,Highways - 90m Mtce,Highways - 90m Mtce,Construction - External Professional Fees
Cambridgeshire County Council,28-Mar-19,51300810111,"-10,478.00",BUCHAN HEALTHCARE LTD,CARE ESTABLISHMENT,OP - City & South Blocks,City and South - Long term blocks,Nursing Care
Cambridgeshire County Council,28-Mar-19,51300810111,"-10,478.00",BUCHAN HEALTHCARE LTD,CARE ESTABLISHMENT,OP - City & South Blocks,City and South - Long term blocks,Nursing Care
Cambridgeshire County Council,28-Mar-19,51300810111,"-9,010.85",BUCHAN HEALTHCARE LTD,CARE ESTABLISHMENT,OP - City & South Blocks,City and South - Long term blocks,Nursing Care
Cambridgeshire County Council,28-Mar-19,51300810111,"-8,424.00",BUCHAN HEALTHCARE LTD,CARE ESTABLISHMENT,OP - City & South Blocks,City and South - Long term blocks,Nursing Care
Cambridgeshire County Council,28-Mar-19,51300810111,"-8,424.00",BUCHAN HEALTHCARE LTD,CARE ESTABLISHMENT,OP - City & South Blocks,City and South - Long term blocks,Nursing Care
Cambridgeshire County Council,28-Mar-19,51300810111,"-8,424.00",BUCHAN HEALTHCARE LTD,CARE ESTABLISHMENT,OP - City & South Blocks,City and South - Long term blocks,Nursing Care
Cambridgeshire County Council,28-Mar-19,51300810111,"-8,424.00",BUCHAN HEALTHCARE LTD,CARE ESTABLISHMENT,OP - City & South Blocks,City and South - Long term blocks,Nursing Care
Cambridgeshire County Council,28-Mar-19,51300810111,"-8,424.00",BUCHAN HEALTHCARE LTD,CARE ESTABLISHMENT,OP - City & South Blocks,City and South - Long term blocks,Nursing Care
Cambridgeshire County Council,28-Mar-19,51300810111,"-8,424.00",BUCHAN HEALTHCARE LTD,CARE ESTABLISHMENT,OP - City & South Blocks,City and South - Long term blocks,Nursing Care
Cambridgeshire County Council,28-Mar-19,51300810111,"-8,424.00",BUCHAN HEALTHCARE LTD,CARE ESTABLISHMENT,OP - City & South Blocks,City and South - Long term blocks,Nursing Care
Cambridgeshire County Council,28-Mar-19,51300810111,"-8,424.00",BUCHAN HEALTHCARE LTD,CARE ESTABLISHMENT,OP - City & South Blocks,City and South - Long term blocks,Nursing Care
Cambridgeshire County Council,01-Mar-19,51300733835,"-8,066.57",W S ATKINS (SERVICES) LTD,COMPANY,Little Paxton Primary,Little Paxton Primary,Construction - External Professional Fees
Cambridgeshire County Council,28-Mar-19,51300810111,"-7,484.29",BUCHAN HEALTHCARE LTD,CARE ESTABLISHMENT,OP - City & South Blocks,City and South - Long term blocks,Nursing Care
Cambridgeshire County Council,27-Mar-19,51300733801,"-5,904.00",NCER CIC,TRADE SUPPLIER,Digital Systems,IT & Digital,Computer software - annual licence agreement
Cambridgeshire County Council,25-Mar-19,51300733881,"-4,693.00",CHARTWELL HOUSE,CARE ESTABLISHMENT,SEN Placements,Placements - Education,Independent School Placements
Cambridgeshire County Council,01-Mar-19,51300759477,"-4,655.00",Accomplish Group Support Limited,CARE ESTABLISHMENT,LD - Hunts Locality,LD - Huntigndonshire  - Special Needs,Rehabilitation And Respite Care
Cambridgeshire County Council,01-Mar-19,51300759479,"-4,655.00",Accomplish Group Support Limited,CARE ESTABLISHMENT,LD - Hunts Locality,LD - Huntigndonshire  - Special Needs,Rehabilitation And Respite Care
Cambridgeshire County Council,01-Mar-19,51300740928,"-4,655.00",Accomplish Group Support Limited,CARE ESTABLISHMENT,LD - Hunts Locality,LD - Huntigndonshire  - Special Needs,Rehabilitation And Respite Care
Cambridgeshire County Council,01-Mar-19,51300759474,"-4,655.00",Accomplish Group Support Limited,CARE ESTABLISHMENT,LD - Hunts Locality,LD - Huntigndonshire  - Special Needs,Rehabilitation And Respite Care
Cambridgeshire County Council,01-Mar-19,51300740929,"-4,655.00",Accomplish Group Support Limited,CARE ESTABLISHMENT,LD - Hunts Locality,LD - Huntigndonshire  - Special Needs,Rehabilitation And Respite Care
Cambridgeshire County Council,01-Mar-19,51300759465,"-4,655.00",Accomplish Group Support Limited,CARE ESTABLISHMENT,LD - Hunts Locality,LD - Huntigndonshire  - Special Needs,Rehabilitation And Respite Care
Cambridgeshire County Council,01-Mar-19,51300759481,"-4,655.00",Accomplish Group Support Limited,CARE ESTABLISHMENT,LD - Hunts Locality,LD - Huntigndonshire  - Special Needs,Rehabilitation And Respite Care
Cambridgeshire County Council,01-Mar-19,51300740920,"-4,655.00",Accomplish Group Support Limited,CARE ESTABLISHMENT,LD - Hunts Locality,LD - Huntigndonshire  - Care,Rehabilitation And Respite Care
Cambridgeshire County Council,01-Mar-19,51300740925,"-4,655.00",Accomplish Group Support Limited,CARE ESTABLISHMENT,LD - Hunts Locality,LD - Huntigndonshire  - Care,Rehabilitation And Respite Care
Cambridgeshire County Council,01-Mar-19,51300740930,"-4,655.00",Accomplish Group Support Limited,CARE ESTABLISHMENT,LD - Hunts Locality,LD - Huntigndonshire  - Care,Rehabilitation And Respite Care
Cambridgeshire County Council,01-Mar-19,51300740916,"-4,655.00",Accomplish Group Support Limited,CARE ESTABLISHMENT,LD - Hunts Locality,LD - Huntigndonshire  - Care,Rehabilitation And Respite Care
Cambridgeshire County Council,01-Mar-19,51300759469,"-4,655.00",Accomplish Group Support Limited,CARE ESTABLISHMENT,LD - Hunts Locality,LD - Huntigndonshire  - Care,Rehabilitation And Respite Care
Cambridgeshire County Council,01-Mar-19,51300759493,"-4,655.00",Accomplish Group Support Limited,CARE ESTABLISHMENT,LD - Hunts Locality,LD - Huntigndonshire  - Care,Rehabilitation And Respite Care
Cambridgeshire County Council,01-Mar-19,51300740932,"-4,655.00",Accomplish Group Support Limited,CARE ESTABLISHMENT,LD - Hunts Locality,LD - Huntigndonshire  - Care,Rehabilitation And Respite Care
Cambridgeshire County Council,01-Mar-19,51300759484,"-4,655.00",Accomplish Group Support Limited,CARE ESTABLISHMENT,LD - Hunts Locality,LD - Huntigndonshire  - Care,Rehabilitation And Respite Care
Cambridgeshire County Council,01-Mar-19,51300759482,"-4,655.00",Accomplish Group Support Limited,CARE ESTABLISHMENT,LD - Hunts Locality,LD - Huntigndonshire  - Care,Rehabilitation And Respite Care
Cambridgeshire County Council,01-Mar-19,51300740924,"-4,655.00",Accomplish Group Support Limited,CARE ESTABLISHMENT,LD - Hunts Locality,LD - Huntigndonshire  - Care,Rehabilitation And Respite Care
Cambridgeshire County Council,01-Mar-19,51300740926,"-4,655.00",Accomplish Group Support Limited,CARE ESTABLISHMENT,LD - Hunts Locality,LD - Huntigndonshire  - Care,Rehabilitation And Respite Care
Cambridgeshire County Council,14-Mar-19,51300795721,"-4,655.00",Accomplish Group Support Limited,CARE ESTABLISHMENT,LD - Hunts Locality,LD - Huntigndonshire  - Special Needs,Rehabilitation And Respite Care
Cambridgeshire County Council,14-Mar-19,51300784775,"-4,655.00",Accomplish Group Support Limited,CARE ESTABLISHMENT,LD - Hunts Locality,LD - Huntigndonshire  - Special Needs,Rehabilitation And Respite Care
Cambridgeshire County Council,14-Mar-19,51300795719,"-4,655.00",Accomplish Group Support Limited,CARE ESTABLISHMENT,LD - Hunts Locality,LD - Huntigndonshire  - Special Needs,Rehabilitation And Respite Care
Cambridgeshire County Council,14-Mar-19,51300795735,"-4,655.00",Accomplish Group Support Limited,CARE ESTABLISHMENT,LD - Hunts Locality,LD - Huntigndonshire  - Special Needs,Rehabilitation And Respite Care
Cambridgeshire County Council,14-Mar-19,51300784780,"-4,655.00",Accomplish Group Support Limited,CARE ESTABLISHMENT,LD - Hunts Locality,LD - Huntigndonshire  - Special Needs,Rehabilitation And Respite Care
Cambridgeshire County Council,14-Mar-19,51300784786,"-4,655.00",Accomplish Group Support Limited,CARE ESTABLISHMENT,LD - Hunts Locality,LD - Huntigndonshire  - Special Needs,Rehabilitation And Respite Care
Cambridgeshire County Council,14-Mar-19,51300784784,"-4,655.00",Accomplish Group Support Limited,CARE ESTABLISHMENT,LD - Hunts Locality,LD - Huntigndonshire  - Special Needs,Rehabilitation And Respite Care
Cambridgeshire County Council,14-Mar-19,51300784787,"-4,655.00",Accomplish Group Support Limited,CARE ESTABLISHMENT,LD - Hunts Locality,LD - Huntigndonshire  - Care,Rehabilitation And Respite Care
Cambridgeshire County Council,14-Mar-19,51300795730,"-4,655.00",Accomplish Group Support Limited,CARE ESTABLISHMENT,LD - Hunts Locality,LD - Huntigndonshire  - Care,Rehabilitation And Respite Care
Cambridgeshire County Council,14-Mar-19,51300795716,"-4,655.00",Accomplish Group Support Limited,CARE ESTABLISHMENT,LD - Hunts Locality,LD - Huntigndonshire  - Care,Rehabilitation And Respite Care
Cambridgeshire County Council,14-Mar-19,51300784770,"-4,655.00",Accomplish Group Support Limited,CARE ESTABLISHMENT,LD - Hunts Locality,LD - Huntigndonshire  - Care,Rehabilitation And Respite Care
Cambridgeshire County Council,14-Mar-19,51300795731,"-4,655.00",Accomplish Group Support Limited,CARE ESTABLISHMENT,LD - Hunts Locality,LD - Huntigndonshire  - Care,Rehabilitation And Respite Care
Cambridgeshire County Council,14-Mar-19,51300795727,"-4,655.00",Accomplish Group Support Limited,CARE ESTABLISHMENT,LD - Hunts Locality,LD - Huntigndonshire  - Care,Rehabilitation And Respite Care
Cambridgeshire County Council,14-Mar-19,51300784781,"-4,655.00",Accomplish Group Support Limited,CARE ESTABLISHMENT,LD - Hunts Locality,LD - Huntigndonshire  - Care,Rehabilitation And Respite Care
Cambridgeshire County Council,14-Mar-19,51300795724,"-4,655.00",Accomplish Group Support Limited,CARE ESTABLISHMENT,LD - Hunts Locality,LD - Huntigndonshire  - Care,Rehabilitation And Respite Care
Cambridgeshire County Council,14-Mar-19,51300784777,"-4,655.00",Accomplish Group Support Limited,CARE ESTABLISHMENT,LD - Hunts Locality,LD - Huntigndonshire  - Care,Rehabilitation And Respite Care
Cambridgeshire County Council,14-Mar-19,51300795728,"-4,655.00",Accomplish Group Support Limited,CARE ESTABLISHMENT,LD - Hunts Locality,LD - Huntigndonshire  - Care,Rehabilitation And Respite Care
Cambridgeshire County Council,14-Mar-19,51300784773,"-4,655.00",Accomplish Group Support Limited,CARE ESTABLISHMENT,LD - Hunts Locality,LD - Huntigndonshire  - Care,Rehabilitation And Respite Care
Cambridgeshire County Council,25-Mar-19,51300805734,"-4,655.00",Accomplish Group Support Limited,CARE ESTABLISHMENT,LD - Hunts Locality,LD - Huntigndonshire  - Special Needs,Rehabilitation And Respite Care
Cambridgeshire County Council,25-Mar-19,51300805739,"-4,655.00",Accomplish Group Support Limited,CARE ESTABLISHMENT,LD - Hunts Locality,LD - Huntigndonshire  - Special Needs,Rehabilitation And Respite Care
Cambridgeshire County Council,25-Mar-19,51300805733,"-4,655.00",Accomplish Group Support Limited,CARE ESTABLISHMENT,LD - Hunts Locality,LD - Huntigndonshire  - Special Needs,Rehabilitation And Respite Care
Cambridgeshire County Council,25-Mar-19,51300805729,"-4,655.00",Accomplish Group Support Limited,CARE ESTABLISHMENT,LD - Hunts Locality,LD - Huntigndonshire  - Special Needs,Rehabilitation And Respite Care
Cambridgeshire County Council,25-Mar-19,51300805732,"-4,655.00",Accomplish Group Support Limited,CARE ESTABLISHMENT,LD - Hunts Locality,LD - Huntigndonshire  - Special Needs,Rehabilitation And Respite Care
Cambridgeshire County Council,25-Mar-19,51300805731,"-4,655.00",Accomplish Group Support Limited,CARE ESTABLISHMENT,LD - Hunts Locality,LD - Huntigndonshire  - Care,Rehabilitation And Respite Care
Cambridgeshire County Council,25-Mar-19,51300805725,"-4,655.00",Accomplish Group Support Limited,CARE ESTABLISHMENT,LD - Hunts Locality,LD - Huntigndonshire  - Care,Rehabilitation And Respite Care
Cambridgeshire County Council,25-Mar-19,51300805722,"-4,655.00",Accomplish Group Support Limited,CARE ESTABLISHMENT,LD - Hunts Locality,LD - Huntigndonshire  - Care,Rehabilitation And Respite Care
Cambridgeshire County Council,25-Mar-19,51300805727,"-4,655.00",Accomplish Group Support Limited,CARE ESTABLISHMENT,LD - Hunts Locality,LD - Huntigndonshire  - Care,Rehabilitation And Respite Care
Cambridgeshire County Council,25-Mar-19,51300786224,"-3,920.16",SOFTCAT LTD,TRADE SUPPLIER,ICT Service,ICT Service Business Support,Computer software - purchase
Cambridgeshire County Council,04-Mar-19,51300753609,"-3,674.20",IFF CARS PRIVATE HIRE,TRADE SUPPLIER,Home to School Transport - Mainstream,Home to School Transport Mainstream - Secondary,Home to School - Contract
Cambridgeshire County Council,01-Mar-19,51300740923,"-3,325.00",Accomplish Group Support Limited,CARE ESTABLISHMENT,LD - Hunts Locality,LD - Huntigndonshire  - Care,Rehabilitation And Respite Care
Cambridgeshire County Council,01-Mar-19,51300759491,"-3,325.00",Accomplish Group Support Limited,CARE ESTABLISHMENT,LD - Hunts Locality,LD - Huntigndonshire  - Special Needs,Rehabilitation And Respite Care
Cambridgeshire County Council,14-Mar-19,51300784783,"-3,325.00",Accomplish Group Support Limited,CARE ESTABLISHMENT,LD - Hunts Locality,LD - Huntigndonshire  - Care,Rehabilitation And Respite Care
Cambridgeshire County Council,14-Mar-19,51300795720,"-3,325.00",Accomplish Group Support Limited,CARE ESTABLISHMENT,LD - Hunts Locality,LD - Huntigndonshire  - Care,Rehabilitation And Respite Care
Cambridgeshire County Council,25-Mar-19,51300805724,"-3,325.00",Accomplish Group Support Limited,CARE ESTABLISHMENT,LD - Hunts Locality,LD - Huntigndonshire  - Special Needs,Rehabilitation And Respite Care
Cambridgeshire County Council,29-Mar-19,51300805351,"-3,108.56",AFFINITY TRUST,CARE ESTABLISHMENT,LD - Fenland Locality,LD - Fenland  - Special Needs,Domiciliary Care
Cambridgeshire County Council,29-Mar-19,51300805364,"-3,108.56",AFFINITY TRUST,CARE ESTABLISHMENT,LD - Fenland Locality,LD - Fenland  - Special Needs,Domiciliary Care
Cambridgeshire County Council,29-Mar-19,51300805345,"-3,108.56",AFFINITY TRUST,CARE ESTABLISHMENT,LD - Fenland Locality,LD - Fenland  - Special Needs,Domiciliary Care
Cambridgeshire County Council,29-Mar-19,51300805343,"-3,108.56",AFFINITY TRUST,CARE ESTABLISHMENT,LD - Fenland Locality,LD - Fenland  - Special Needs,Domiciliary Care
Cambridgeshire County Council,29-Mar-19,51300805349,"-3,108.56",AFFINITY TRUST,CARE ESTABLISHMENT,LD - Fenland Locality,LD - Fenland  - Special Needs,Domiciliary Care
Cambridgeshire County Council,29-Mar-19,51300805367,"-3,108.56",AFFINITY TRUST,CARE ESTABLISHMENT,LD - Fenland Locality,LD - Fenland  - Special Needs,Domiciliary Care
Cambridgeshire County Council,29-Mar-19,51300805363,"-3,108.56",AFFINITY TRUST,CARE ESTABLISHMENT,LD - Fenland Locality,LD - Fenland  - Special Needs,Domiciliary Care
Cambridgeshire County Council,29-Mar-19,51300805354,"-3,108.56",AFFINITY TRUST,CARE ESTABLISHMENT,LD - Fenland Locality,LD - Fenland  - Special Needs,Domiciliary Care
Cambridgeshire County Council,29-Mar-19,51300805368,"-3,108.56",AFFINITY TRUST,CARE ESTABLISHMENT,LD - Fenland Locality,LD - Fenland  - Special Needs,Domiciliary Care
Cambridgeshire County Council,29-Mar-19,51300805356,"-3,108.56",AFFINITY TRUST,CARE ESTABLISHMENT,LD - Fenland Locality,LD - Fenland  - Special Needs,Domiciliary Care
Cambridgeshire County Council,29-Mar-19,51300805365,"-3,108.56",AFFINITY TRUST,CARE ESTABLISHMENT,LD - Fenland Locality,LD - Fenland  - Special Needs,Domiciliary Care
Cambridgeshire County Council,29-Mar-19,51300805347,"-3,108.56",AFFINITY TRUST,CARE ESTABLISHMENT,LD - Fenland Locality,LD - Fenland  - Special Needs,Domiciliary Care
Cambridgeshire County Council,01-Mar-19,51300734870,"-2,977.44",DECOY FARM,CARE ESTABLISHMENT,LD - East Locality,LD - East Cambs - Special Needs,Residential Care
Cambridgeshire County Council,01-Mar-19,51300734812,"-2,977.44",DECOY FARM,CARE ESTABLISHMENT,LD - East Locality,LD - East Cambs - Special Needs,Residential Care
Cambridgeshire County Council,01-Mar-19,51300734829,"-2,977.44",DECOY FARM,CARE ESTABLISHMENT,LD - East Locality,LD - East Cambs - Special Needs,Residential Care
Cambridgeshire County Council,01-Mar-19,51300745898,"-2,977.44",DECOY FARM,CARE ESTABLISHMENT,LD - East Locality,LD - East Cambs - Special Needs,Residential Care
Cambridgeshire County Council,01-Mar-19,51300745857,"-2,977.44",DECOY FARM,CARE ESTABLISHMENT,LD - East Locality,LD - East Cambs - Special Needs,Residential Care
Cambridgeshire County Council,01-Mar-19,51300745819,"-2,977.44",DECOY FARM,CARE ESTABLISHMENT,LD - East Locality,LD - East Cambs - Special Needs,Residential Care
Cambridgeshire County Council,01-Mar-19,51300745779,"-2,977.44",DECOY FARM,CARE ESTABLISHMENT,LD - East Locality,LD - East Cambs - Special Needs,Residential Care
Cambridgeshire County Council,01-Mar-19,51300745770,"-2,977.44",DECOY FARM,CARE ESTABLISHMENT,LD - East Locality,LD - East Cambs - Special Needs,Residential Care
Cambridgeshire County Council,01-Mar-19,51300734922,"-2,977.44",DECOY FARM,CARE ESTABLISHMENT,LD - East Locality,LD - East Cambs - Special Needs,Residential Care
Cambridgeshire County Council,01-Mar-19,51300734856,"-2,977.44",DECOY FARM,CARE ESTABLISHMENT,LD - East Locality,LD - East Cambs - Special Needs,Residential Care
Cambridgeshire County Council,01-Mar-19,51300734915,"-2,977.44",DECOY FARM,CARE ESTABLISHMENT,LD - East Locality,LD - East Cambs - Special Needs,Residential Care
Cambridgeshire County Council,01-Mar-19,51300745811,"-2,977.44",DECOY FARM,CARE ESTABLISHMENT,LD - East Locality,LD - East Cambs - Special Needs,Residential Care
Cambridgeshire County Council,01-Mar-19,51300745822,"-2,977.44",DECOY FARM,CARE ESTABLISHMENT,LD - East Locality,LD - East Cambs - Special Needs,Residential Care
Cambridgeshire County Council,01-Mar-19,51300745803,"-2,977.44",DECOY FARM,CARE ESTABLISHMENT,LD - East Locality,LD - East Cambs - Special Needs,Residential Care
Cambridgeshire County Council,01-Mar-19,51300745757,"-2,977.44",DECOY FARM,CARE ESTABLISHMENT,LD - East Locality,LD - East Cambs - Special Needs,Residential Care
Cambridgeshire County Council,01-Mar-19,51300745813,"-2,977.44",DECOY FARM,CARE ESTABLISHMENT,LD - East Locality,LD - East Cambs - Special Needs,Residential Care
Cambridgeshire County Council,01-Mar-19,51300734858,"-2,977.44",DECOY FARM,CARE ESTABLISHMENT,LD - East Locality,LD - East Cambs - Special Needs,Residential Care
Cambridgeshire County Council,01-Mar-19,51300734810,"-2,977.44",DECOY FARM,CARE ESTABLISHMENT,LD - East Locality,LD - East Cambs - Special Needs,Residential Care
Cambridgeshire County Council,01-Mar-19,51300734926,"-2,977.44",DECOY FARM,CARE ESTABLISHMENT,LD - East Locality,LD - East Cambs - Special Needs,Residential Care
Cambridgeshire County Council,01-Mar-19,51300734861,"-2,977.44",DECOY FARM,CARE ESTABLISHMENT,LD - East Locality,LD - East Cambs - Special Needs,Residential Care
Cambridgeshire County Council,01-Mar-19,51300734806,"-2,977.44",DECOY FARM,CARE ESTABLISHMENT,LD - East Locality,LD - East Cambs - Special Needs,Residential Care
Cambridgeshire County Council,01-Mar-19,51300745763,"-2,977.44",DECOY FARM,CARE ESTABLISHMENT,LD - East Locality,LD - East Cambs - Special Needs,Residential Care
Cambridgeshire County Council,01-Mar-19,51300734933,"-2,977.44",DECOY FARM,CARE ESTABLISHMENT,LD - East Locality,LD - East Cambs - Special Needs,Residential Care
Cambridgeshire County Council,01-Mar-19,51300734831,"-2,977.44",DECOY FARM,CARE ESTABLISHMENT,LD - East Locality,LD - East Cambs - Special Needs,Residential Care
Cambridgeshire County Council,01-Mar-19,51300745883,"-2,977.44",DECOY FARM,CARE ESTABLISHMENT,LD - East Locality,LD - East Cambs - Special Needs,Residential Care
Cambridgeshire County Council,01-Mar-19,51300745876,"-2,977.44",DECOY FARM,CARE ESTABLISHMENT,LD - East Locality,LD - East Cambs - Special Needs,Residential Care
Cambridgeshire County Council,01-Mar-19,51300734821,"-2,977.44",DECOY FARM,CARE ESTABLISHMENT,LD - East Locality,LD - East Cambs - Special Needs,Residential Care
Cambridgeshire County Council,01-Mar-19,51300734919,"-2,977.44",DECOY FARM,CARE ESTABLISHMENT,LD - East Locality,LD - East Cambs - Special Needs,Residential Care
Cambridgeshire County Council,01-Mar-19,51300734912,"-2,977.44",DECOY FARM,CARE ESTABLISHMENT,LD - East Locality,LD - East Cambs - Special Needs,Residential Care
Cambridgeshire County Council,01-Mar-19,51300734882,"-2,977.44",DECOY FARM,CARE ESTABLISHMENT,LD - East Locality,LD - East Cambs - Special Needs,Residential Care
Cambridgeshire County Council,01-Mar-19,51300734899,"-2,977.44",DECOY FARM,CARE ESTABLISHMENT,LD - East Locality,LD - East Cambs - Special Needs,Residential Care
Cambridgeshire County Council,01-Mar-19,51300745810,"-2,977.44",DECOY FARM,CARE ESTABLISHMENT,LD - East Locality,LD - East Cambs - Special Needs,Residential Care
Cambridgeshire County Council,01-Mar-19,51300734880,"-2,977.44",DECOY FARM,CARE ESTABLISHMENT,LD - East Locality,LD - East Cambs - Special Needs,Residential Care
Cambridgeshire County Council,01-Mar-19,51300734945,"-2,977.44",DECOY FARM,CARE ESTABLISHMENT,LD - East Locality,LD - East Cambs - Special Needs,Residential Care
Cambridgeshire County Council,01-Mar-19,51300745789,"-2,977.44",DECOY FARM,CARE ESTABLISHMENT,LD - East Locality,LD - East Cambs - Special Needs,Residential Care
Cambridgeshire County Council,01-Mar-19,51300734920,"-2,977.44",DECOY FARM,CARE ESTABLISHMENT,LD - East Locality,LD - East Cambs - Special Needs,Residential Care
Cambridgeshire County Council,01-Mar-19,51300745809,"-2,977.44",DECOY FARM,CARE ESTABLISHMENT,LD - East Locality,LD - East Cambs - Special Needs,Residential Care
Cambridgeshire County Council,01-Mar-19,51300745897,"-2,977.44",DECOY FARM,CARE ESTABLISHMENT,LD - East Locality,LD - East Cambs - Special Needs,Residential Care
Cambridgeshire County Council,01-Mar-19,51300745840,"-2,977.44",DECOY FARM,CARE ESTABLISHMENT,LD - East Locality,LD - East Cambs - Special Needs,Residential Care
Cambridgeshire County Council,01-Mar-19,51300734863,"-2,977.44",DECOY FARM,CARE ESTABLISHMENT,LD - East Locality,LD - East Cambs - Special Needs,Residential Care
Cambridgeshire County Council,01-Mar-19,51300734913,"-2,977.44",DECOY FARM,CARE ESTABLISHMENT,LD - East Locality,LD - East Cambs - Special Needs,Residential Care
Cambridgeshire County Council,01-Mar-19,51300745879,"-2,977.44",DECOY FARM,CARE ESTABLISHMENT,LD - East Locality,LD - East Cambs - Special Needs,Residential Care
Cambridgeshire County Council,01-Mar-19,51300745844,"-2,977.44",DECOY FARM,CARE ESTABLISHMENT,LD - East Locality,LD - East Cambs - Special Needs,Residential Care
Cambridgeshire County Council,01-Mar-19,51300745846,"-2,977.44",DECOY FARM,CARE ESTABLISHMENT,LD - East Locality,LD - East Cambs - Special Needs,Residential Care
Cambridgeshire County Council,01-Mar-19,51300745851,"-2,977.44",DECOY FARM,CARE ESTABLISHMENT,LD - East Locality,LD - East Cambs - Special Needs,Residential Care
Cambridgeshire County Council,01-Mar-19,51300734854,"-2,977.44",DECOY FARM,CARE ESTABLISHMENT,LD - East Locality,LD - East Cambs - Special Needs,Residential Care
Cambridgeshire County Council,01-Mar-19,51300734932,"-2,977.44",DECOY FARM,CARE ESTABLISHMENT,LD - East Locality,LD - East Cambs - Special Needs,Residential Care
Cambridgeshire County Council,01-Mar-19,51300734889,"-2,977.44",DECOY FARM,CARE ESTABLISHMENT,LD - East Locality,LD - East Cambs - Special Needs,Residential Care
Cambridgeshire County Council,01-Mar-19,51300734837,"-2,977.44",DECOY FARM,CARE ESTABLISHMENT,LD - East Locality,LD - East Cambs - Special Needs,Residential Care
Cambridgeshire County Council,01-Mar-19,51300745856,"-2,977.44",DECOY FARM,CARE ESTABLISHMENT,LD - East Locality,LD - East Cambs - Special Needs,Residential Care
Cambridgeshire County Council,01-Mar-19,51300734871,"-2,977.44",DECOY FARM,CARE ESTABLISHMENT,LD - East Locality,LD - East Cambs - Special Needs,Residential Care
Cambridgeshire County Council,01-Mar-19,51300734874,"-2,977.44",DECOY FARM,CARE ESTABLISHMENT,LD - East Locality,LD - East Cambs - Special Needs,Residential Care
Cambridgeshire County Council,01-Mar-19,51300734826,"-2,977.44",DECOY FARM,CARE ESTABLISHMENT,LD - East Locality,LD - East Cambs - Special Needs,Residential Care
Cambridgeshire County Council,01-Mar-19,51300745778,"-2,977.44",DECOY FARM,CARE ESTABLISHMENT,LD - East Locality,LD - East Cambs - Special Needs,Residential Care
Cambridgeshire County Council,01-Mar-19,51300745780,"-2,977.44",DECOY FARM,CARE ESTABLISHMENT,LD - East Locality,LD - East Cambs - Special Needs,Residential Care
Cambridgeshire County Council,01-Mar-19,51300745874,"-2,977.44",DECOY FARM,CARE ESTABLISHMENT,LD - East Locality,LD - East Cambs - Special Needs,Residential Care
Cambridgeshire County Council,01-Mar-19,51300734846,"-2,977.44",DECOY FARM,CARE ESTABLISHMENT,LD - East Locality,LD - East Cambs - Special Needs,Residential Care
Cambridgeshire County Council,01-Mar-19,51300745842,"-2,977.44",DECOY FARM,CARE ESTABLISHMENT,LD - East Locality,LD - East Cambs - Special Needs,Residential Care
Cambridgeshire County Council,01-Mar-19,51300745882,"-2,977.44",DECOY FARM,CARE ESTABLISHMENT,LD - East Locality,LD - East Cambs - Special Needs,Residential Care
Cambridgeshire County Council,01-Mar-19,51300745884,"-2,977.44",DECOY FARM,CARE ESTABLISHMENT,LD - East Locality,LD - East Cambs - Special Needs,Residential Care
Cambridgeshire County Council,01-Mar-19,51300734952,"-2,977.44",DECOY FARM,CARE ESTABLISHMENT,LD - East Locality,LD - East Cambs - Special Needs,Residential Care
Cambridgeshire County Council,01-Mar-19,51300734866,"-2,977.44",DECOY FARM,CARE ESTABLISHMENT,LD - East Locality,LD - East Cambs - Special Needs,Residential Care
Cambridgeshire County Council,01-Mar-19,51300734825,"-2,977.44",DECOY FARM,CARE ESTABLISHMENT,LD - East Locality,LD - East Cambs - Special Needs,Residential Care
Cambridgeshire County Council,01-Mar-19,51300745752,"-2,977.44",DECOY FARM,CARE ESTABLISHMENT,LD - East Locality,LD - East Cambs - Special Needs,Residential Care
Cambridgeshire County Council,01-Mar-19,51300745818,"-2,977.44",DECOY FARM,CARE ESTABLISHMENT,LD - East Locality,LD - East Cambs - Special Needs,Residential Care
Cambridgeshire County Council,01-Mar-19,51300745776,"-2,977.44",DECOY FARM,CARE ESTABLISHMENT,LD - East Locality,LD - East Cambs - Special Needs,Residential Care
Cambridgeshire County Council,01-Mar-19,51300745833,"-2,977.44",DECOY FARM,CARE ESTABLISHMENT,LD - East Locality,LD - East Cambs - Special Needs,Residential Care
Cambridgeshire County Council,01-Mar-19,51300745885,"-2,977.44",DECOY FARM,CARE ESTABLISHMENT,LD - East Locality,LD - East Cambs - Special Needs,Residential Care
Cambridgeshire County Council,01-Mar-19,51300734838,"-2,977.44",DECOY FARM,CARE ESTABLISHMENT,LD - East Locality,LD - East Cambs - Special Needs,Residential Care
Cambridgeshire County Council,01-Mar-19,51300734891,"-2,977.44",DECOY FARM,CARE ESTABLISHMENT,LD - East Locality,LD - East Cambs - Special Needs,Residential Care
Cambridgeshire County Council,01-Mar-19,51300734944,"-2,977.44",DECOY FARM,CARE ESTABLISHMENT,LD - East Locality,LD - East Cambs - Special Needs,Residential Care
Cambridgeshire County Council,01-Mar-19,51300734916,"-2,977.44",DECOY FARM,CARE ESTABLISHMENT,LD - East Locality,LD - East Cambs - Special Needs,Residential Care
Cambridgeshire County Council,01-Mar-19,51300745850,"-2,977.44",DECOY FARM,CARE ESTABLISHMENT,LD - East Locality,LD - East Cambs - Special Needs,Residential Care
Cambridgeshire County Council,01-Mar-19,51300745816,"-2,977.44",DECOY FARM,CARE ESTABLISHMENT,LD - East Locality,LD - East Cambs - Special Needs,Residential Care
Cambridgeshire County Council,01-Mar-19,51300734911,"-2,977.44",DECOY FARM,CARE ESTABLISHMENT,LD - East Locality,LD - East Cambs - Special Needs,Residential Care
Cambridgeshire County Council,01-Mar-19,51300734906,"-2,977.44",DECOY FARM,CARE ESTABLISHMENT,LD - East Locality,LD - East Cambs - Special Needs,Residential Care
Cambridgeshire County Council,01-Mar-19,51300734853,"-2,977.44",DECOY FARM,CARE ESTABLISHMENT,LD - East Locality,LD - East Cambs - Special Needs,Residential Care
Cambridgeshire County Council,01-Mar-19,51300734835,"-2,977.44",DECOY FARM,CARE ESTABLISHMENT,LD - East Locality,LD - East Cambs - Special Needs,Residential Care
Cambridgeshire County Council,01-Mar-19,51300734887,"-2,977.44",DECOY FARM,CARE ESTABLISHMENT,LD - East Locality,LD - East Cambs - Special Needs,Residential Care
Cambridgeshire County Council,01-Mar-19,51300745783,"-2,977.44",DECOY FARM,CARE ESTABLISHMENT,LD - East Locality,LD - East Cambs - Special Needs,Residential Care
Cambridgeshire County Council,01-Mar-19,51300745766,"-2,977.44",DECOY FARM,CARE ESTABLISHMENT,LD - East Locality,LD - East Cambs - Special Needs,Residential Care
Cambridgeshire County Council,01-Mar-19,51300745814,"-2,977.44",DECOY FARM,CARE ESTABLISHMENT,LD - East Locality,LD - East Cambs - Special Needs,Residential Care
Cambridgeshire County Council,01-Mar-19,51300734934,"-2,977.44",DECOY FARM,CARE ESTABLISHMENT,LD - East Locality,LD - East Cambs - Special Needs,Residential Care
Cambridgeshire County Council,01-Mar-19,51300745872,"-2,977.44",DECOY FARM,CARE ESTABLISHMENT,LD - East Locality,LD - East Cambs - Special Needs,Residential Care
Cambridgeshire County Council,01-Mar-19,51300745755,"-2,977.44",DECOY FARM,CARE ESTABLISHMENT,LD - East Locality,LD - East Cambs - Special Needs,Residential Care
Cambridgeshire County Council,01-Mar-19,51300745889,"-2,977.44",DECOY FARM,CARE ESTABLISHMENT,LD - East Locality,LD - East Cambs - Special Needs,Residential Care
Cambridgeshire County Council,01-Mar-19,51300734918,"-2,977.44",DECOY FARM,CARE ESTABLISHMENT,LD - East Locality,LD - East Cambs - Special Needs,Residential Care
Cambridgeshire County Council,01-Mar-19,51300734827,"-2,977.44",DECOY FARM,CARE ESTABLISHMENT,LD - East Locality,LD - East Cambs - Special Needs,Residential Care
Cambridgeshire County Council,01-Mar-19,51300734828,"-2,977.44",DECOY FARM,CARE ESTABLISHMENT,LD - East Locality,LD - East Cambs - Special Needs,Residential Care
Cambridgeshire County Council,01-Mar-19,51300734925,"-2,977.44",DECOY FARM,CARE ESTABLISHMENT,LD - East Locality,LD - East Cambs - Special Needs,Residential Care
Cambridgeshire County Council,01-Mar-19,51300734892,"-2,977.44",DECOY FARM,CARE ESTABLISHMENT,LD - East Locality,LD - East Cambs - Special Needs,Residential Care
Cambridgeshire County Council,01-Mar-19,51300734802,"-2,977.44",DECOY FARM,CARE ESTABLISHMENT,LD - East Locality,LD - East Cambs - Special Needs,Residential Care
Cambridgeshire County Council,01-Mar-19,51300734823,"-2,977.44",DECOY FARM,CARE ESTABLISHMENT,LD - East Locality,LD - East Cambs - Special Needs,Residential Care
Cambridgeshire County Council,01-Mar-19,51300734938,"-2,977.44",DECOY FARM,CARE ESTABLISHMENT,LD - East Locality,LD - East Cambs - Special Needs,Residential Care
Cambridgeshire County Council,01-Mar-19,51300745875,"-2,977.44",DECOY FARM,CARE ESTABLISHMENT,LD - East Locality,LD - East Cambs - Special Needs,Residential Care
Cambridgeshire County Council,01-Mar-19,51300745861,"-2,977.44",DECOY FARM,CARE ESTABLISHMENT,LD - East Locality,LD - East Cambs - Special Needs,Residential Care
Cambridgeshire County Council,01-Mar-19,51300745888,"-2,977.44",DECOY FARM,CARE ESTABLISHMENT,LD - East Locality,LD - East Cambs - Special Needs,Residential Care
Cambridgeshire County Council,01-Mar-19,51300745880,"-2,977.44",DECOY FARM,CARE ESTABLISHMENT,LD - East Locality,LD - East Cambs - Special Needs,Residential Care
Cambridgeshire County Council,01-Mar-19,51300745873,"-2,977.44",DECOY FARM,CARE ESTABLISHMENT,LD - East Locality,LD - East Cambs - Special Needs,Residential Care
Cambridgeshire County Council,01-Mar-19,51300734943,"-2,977.44",DECOY FARM,CARE ESTABLISHMENT,LD - East Locality,LD - East Cambs - Special Needs,Residential Care
Cambridgeshire County Council,01-Mar-19,51300734840,"-2,977.44",DECOY FARM,CARE ESTABLISHMENT,LD - East Locality,LD - East Cambs - Special Needs,Residential Care
Cambridgeshire County Council,01-Mar-19,51300734898,"-2,977.44",DECOY FARM,CARE ESTABLISHMENT,LD - East Locality,LD - East Cambs - Special Needs,Residential Care
Cambridgeshire County Council,01-Mar-19,51300745901,"-2,977.44",DECOY FARM,CARE ESTABLISHMENT,LD - East Locality,LD - East Cambs - Special Needs,Residential Care
Cambridgeshire County Council,01-Mar-19,51300745762,"-2,977.44",DECOY FARM,CARE ESTABLISHMENT,LD - East Locality,LD - East Cambs - Special Needs,Residential Care
Cambridgeshire County Council,01-Mar-19,51300734811,"-2,977.44",DECOY FARM,CARE ESTABLISHMENT,LD - East Locality,LD - East Cambs - Special Needs,Residential Care
Cambridgeshire County Council,01-Mar-19,51300745781,"-2,977.44",DECOY FARM,CARE ESTABLISHMENT,LD - East Locality,LD - East Cambs - Special Needs,Residential Care
Cambridgeshire County Council,01-Mar-19,51300745854,"-2,977.44",DECOY FARM,CARE ESTABLISHMENT,LD - East Locality,LD - East Cambs - Special Needs,Residential Care
Cambridgeshire County Council,01-Mar-19,51300745866,"-2,977.44",DECOY FARM,CARE ESTABLISHMENT,LD - East Locality,LD - East Cambs - Special Needs,Residential Care
Cambridgeshire County Council,01-Mar-19,51300734900,"-2,977.44",DECOY FARM,CARE ESTABLISHMENT,LD - East Locality,LD - East Cambs - Special Needs,Residential Care
Cambridgeshire County Council,01-Mar-19,51300734904,"-2,977.44",DECOY FARM,CARE ESTABLISHMENT,LD - East Locality,LD - East Cambs - Special Needs,Residential Care
Cambridgeshire County Council,01-Mar-19,51300734878,"-2,977.44",DECOY FARM,CARE ESTABLISHMENT,LD - East Locality,LD - East Cambs - Special Needs,Residential Care
Cambridgeshire County Council,01-Mar-19,51300745826,"-2,977.44",DECOY FARM,CARE ESTABLISHMENT,LD - East Locality,LD - East Cambs - Special Needs,Residential Care
Cambridgeshire County Council,01-Mar-19,51300745862,"-2,977.44",DECOY FARM,CARE ESTABLISHMENT,LD - East Locality,LD - East Cambs - Special Needs,Residential Care
Cambridgeshire County Council,01-Mar-19,51300745827,"-2,977.44",DECOY FARM,CARE ESTABLISHMENT,LD - East Locality,LD - East Cambs - Special Needs,Residential Care
Cambridgeshire County Council,01-Mar-19,51300745786,"-2,977.44",DECOY FARM,CARE ESTABLISHMENT,LD - East Locality,LD - East Cambs - Special Needs,Residential Care
Cambridgeshire County Council,01-Mar-19,51300745812,"-2,977.44",DECOY FARM,CARE ESTABLISHMENT,LD - East Locality,LD - East Cambs - Special Needs,Residential Care
Cambridgeshire County Council,01-Mar-19,51300734921,"-2,977.44",DECOY FARM,CARE ESTABLISHMENT,LD - East Locality,LD - East Cambs - Special Needs,Residential Care
Cambridgeshire County Council,01-Mar-19,51300745782,"-2,977.44",DECOY FARM,CARE ESTABLISHMENT,LD - East Locality,LD - East Cambs - Special Needs,Residential Care
Cambridgeshire County Council,01-Mar-19,51300745834,"-2,977.44",DECOY FARM,CARE ESTABLISHMENT,LD - East Locality,LD - East Cambs - Special Needs,Residential Care
Cambridgeshire County Council,01-Mar-19,51300734855,"-2,977.44",DECOY FARM,CARE ESTABLISHMENT,LD - East Locality,LD - East Cambs - Special Needs,Residential Care
Cambridgeshire County Council,01-Mar-19,51300745753,"-2,977.44",DECOY FARM,CARE ESTABLISHMENT,LD - East Locality,LD - East Cambs - Special Needs,Residential Care
Cambridgeshire County Council,01-Mar-19,51300734931,"-2,977.44",DECOY FARM,CARE ESTABLISHMENT,LD - East Locality,LD - East Cambs - Special Needs,Residential Care
Cambridgeshire County Council,01-Mar-19,51300745863,"-2,977.44",DECOY FARM,CARE ESTABLISHMENT,LD - East Locality,LD - East Cambs - Special Needs,Residential Care
Cambridgeshire County Council,01-Mar-19,51300734928,"-2,977.44",DECOY FARM,CARE ESTABLISHMENT,LD - East Locality,LD - East Cambs - Special Needs,Residential Care
Cambridgeshire County Council,01-Mar-19,51300745845,"-2,977.44",DECOY FARM,CARE ESTABLISHMENT,LD - East Locality,LD - East Cambs - Special Needs,Residential Care
Cambridgeshire County Council,01-Mar-19,51300734923,"-2,977.44",DECOY FARM,CARE ESTABLISHMENT,LD - East Locality,LD - East Cambs - Special Needs,Residential Care
Cambridgeshire County Council,01-Mar-19,51300745841,"-2,977.44",DECOY FARM,CARE ESTABLISHMENT,LD - East Locality,LD - East Cambs - Special Needs,Residential Care
Cambridgeshire County Council,01-Mar-19,51300734936,"-2,977.44",DECOY FARM,CARE ESTABLISHMENT,LD - East Locality,LD - East Cambs - Special Needs,Residential Care
Cambridgeshire County Council,01-Mar-19,51300734873,"-2,977.44",DECOY FARM,CARE ESTABLISHMENT,LD - East Locality,LD - East Cambs - Special Needs,Residential Care
Cambridgeshire County Council,01-Mar-19,51300745870,"-2,977.44",DECOY FARM,CARE ESTABLISHMENT,LD - East Locality,LD - East Cambs - Special Needs,Residential Care
Cambridgeshire County Council,01-Mar-19,51300734894,"-2,977.44",DECOY FARM,CARE ESTABLISHMENT,LD - East Locality,LD - East Cambs - Special Needs,Residential Care
Cambridgeshire County Council,01-Mar-19,51300745769,"-2,977.44",DECOY FARM,CARE ESTABLISHMENT,LD - East Locality,LD - East Cambs - Special Needs,Residential Care
Cambridgeshire County Council,01-Mar-19,51300745820,"-2,977.44",DECOY FARM,CARE ESTABLISHMENT,LD - East Locality,LD - East Cambs - Special Needs,Residential Care
Cambridgeshire County Council,01-Mar-19,51300734947,"-2,977.44",DECOY FARM,CARE ESTABLISHMENT,LD - East Locality,LD - East Cambs - Special Needs,Residential Care
Cambridgeshire County Council,01-Mar-19,51300745832,"-2,977.44",DECOY FARM,CARE ESTABLISHMENT,LD - East Locality,LD - East Cambs - Special Needs,Residential Care
Cambridgeshire County Council,01-Mar-19,51300734940,"-2,977.44",DECOY FARM,CARE ESTABLISHMENT,LD - East Locality,LD - East Cambs - Special Needs,Residential Care
Cambridgeshire County Council,01-Mar-19,51300745893,"-2,977.44",DECOY FARM,CARE ESTABLISHMENT,LD - East Locality,LD - East Cambs - Special Needs,Residential Care
Cambridgeshire County Council,01-Mar-19,51300745864,"-2,977.44",DECOY FARM,CARE ESTABLISHMENT,LD - East Locality,LD - East Cambs - Special Needs,Residential Care
Cambridgeshire County Council,01-Mar-19,51300734881,"-2,977.44",DECOY FARM,CARE ESTABLISHMENT,LD - East Locality,LD - East Cambs - Special Needs,Residential Care
Cambridgeshire County Council,01-Mar-19,51300734832,"-2,977.44",DECOY FARM,CARE ESTABLISHMENT,LD - East Locality,LD - East Cambs - Special Needs,Residential Care
Cambridgeshire County Council,01-Mar-19,51300745790,"-2,977.44",DECOY FARM,CARE ESTABLISHMENT,LD - East Locality,LD - East Cambs - Special Needs,Residential Care
Cambridgeshire County Council,01-Mar-19,51300745800,"-2,977.44",DECOY FARM,CARE ESTABLISHMENT,LD - East Locality,LD - East Cambs - Special Needs,Residential Care
Cambridgeshire County Council,01-Mar-19,51300745896,"-2,977.44",DECOY FARM,CARE ESTABLISHMENT,LD - East Locality,LD - East Cambs - Special Needs,Residential Care
Cambridgeshire County Council,01-Mar-19,51300745793,"-2,977.44",DECOY FARM,CARE ESTABLISHMENT,LD - East Locality,LD - East Cambs - Special Needs,Residential Care
Cambridgeshire County Council,01-Mar-19,51300734909,"-2,977.44",DECOY FARM,CARE ESTABLISHMENT,LD - East Locality,LD - East Cambs - Special Needs,Residential Care
Cambridgeshire County Council,01-Mar-19,51300734872,"-2,977.44",DECOY FARM,CARE ESTABLISHMENT,LD - East Locality,LD - East Cambs - Special Needs,Residential Care
Cambridgeshire County Council,14-Mar-19,51300775842,"-2,977.44",DECOY FARM,CARE ESTABLISHMENT,LD - East Locality,LD - East Cambs - Special Needs,Residential Care
Cambridgeshire County Council,14-Mar-19,51300788521,"-2,977.44",DECOY FARM,CARE ESTABLISHMENT,LD - East Locality,LD - East Cambs - Special Needs,Residential Care
Cambridgeshire County Council,14-Mar-19,51300788529,"-2,977.44",DECOY FARM,CARE ESTABLISHMENT,LD - East Locality,LD - East Cambs - Special Needs,Residential Care
Cambridgeshire County Council,14-Mar-19,51300775879,"-2,977.44",DECOY FARM,CARE ESTABLISHMENT,LD - East Locality,LD - East Cambs - Special Needs,Residential Care
Cambridgeshire County Council,14-Mar-19,51300775873,"-2,977.44",DECOY FARM,CARE ESTABLISHMENT,LD - East Locality,LD - East Cambs - Special Needs,Residential Care
Cambridgeshire County Council,14-Mar-19,51300775747,"-2,977.44",DECOY FARM,CARE ESTABLISHMENT,LD - East Locality,LD - East Cambs - Special Needs,Residential Care
Cambridgeshire County Council,14-Mar-19,51300775775,"-2,977.44",DECOY FARM,CARE ESTABLISHMENT,LD - East Locality,LD - East Cambs - Special Needs,Residential Care
Cambridgeshire County Council,14-Mar-19,51300775760,"-2,977.44",DECOY FARM,CARE ESTABLISHMENT,LD - East Locality,LD - East Cambs - Special Needs,Residential Care
Cambridgeshire County Council,14-Mar-19,51300775855,"-2,977.44",DECOY FARM,CARE ESTABLISHMENT,LD - East Locality,LD - East Cambs - Special Needs,Residential Care
Cambridgeshire County Council,14-Mar-19,51300788568,"-2,977.44",DECOY FARM,CARE ESTABLISHMENT,LD - East Locality,LD - East Cambs - Special Needs,Residential Care
Cambridgeshire County Council,14-Mar-19,51300788646,"-2,977.44",DECOY FARM,CARE ESTABLISHMENT,LD - East Locality,LD - East Cambs - Special Needs,Residential Care
Cambridgeshire County Council,14-Mar-19,51300775833,"-2,977.44",DECOY FARM,CARE ESTABLISHMENT,LD - East Locality,LD - East Cambs - Special Needs,Residential Care
Cambridgeshire County Council,14-Mar-19,51300775862,"-2,977.44",DECOY FARM,CARE ESTABLISHMENT,LD - East Locality,LD - East Cambs - Special Needs,Residential Care
Cambridgeshire County Council,14-Mar-19,51300775848,"-2,977.44",DECOY FARM,CARE ESTABLISHMENT,LD - East Locality,LD - East Cambs - Special Needs,Residential Care
Cambridgeshire County Council,14-Mar-19,51300775774,"-2,977.44",DECOY FARM,CARE ESTABLISHMENT,LD - East Locality,LD - East Cambs - Special Needs,Residential Care
Cambridgeshire County Council,14-Mar-19,51300775854,"-2,977.44",DECOY FARM,CARE ESTABLISHMENT,LD - East Locality,LD - East Cambs - Special Needs,Residential Care
Cambridgeshire County Council,14-Mar-19,51300788560,"-2,977.44",DECOY FARM,CARE ESTABLISHMENT,LD - East Locality,LD - East Cambs - Special Needs,Residential Care
Cambridgeshire County Council,14-Mar-19,51300775750,"-2,977.44",DECOY FARM,CARE ESTABLISHMENT,LD - East Locality,LD - East Cambs - Special Needs,Residential Care
Cambridgeshire County Council,14-Mar-19,51300788527,"-2,977.44",DECOY FARM,CARE ESTABLISHMENT,LD - East Locality,LD - East Cambs - Special Needs,Residential Care
Cambridgeshire County Council,14-Mar-19,51300788607,"-2,977.44",DECOY FARM,CARE ESTABLISHMENT,LD - East Locality,LD - East Cambs - Special Needs,Residential Care
Cambridgeshire County Council,14-Mar-19,51300775755,"-2,977.44",DECOY FARM,CARE ESTABLISHMENT,LD - East Locality,LD - East Cambs - Special Needs,Residential Care
Cambridgeshire County Council,14-Mar-19,51300775765,"-2,977.44",DECOY FARM,CARE ESTABLISHMENT,LD - East Locality,LD - East Cambs - Special Needs,Residential Care
Cambridgeshire County Council,14-Mar-19,51300775868,"-2,977.44",DECOY FARM,CARE ESTABLISHMENT,LD - East Locality,LD - East Cambs - Special Needs,Residential Care
Cambridgeshire County Council,14-Mar-19,51300788525,"-2,977.44",DECOY FARM,CARE ESTABLISHMENT,LD - East Locality,LD - East Cambs - Special Needs,Residential Care
Cambridgeshire County Council,14-Mar-19,51300788636,"-2,977.44",DECOY FARM,CARE ESTABLISHMENT,LD - East Locality,LD - East Cambs - Special Needs,Residential Care
Cambridgeshire County Council,14-Mar-19,51300775858,"-2,977.44",DECOY FARM,CARE ESTABLISHMENT,LD - East Locality,LD - East Cambs - Special Needs,Residential Care
Cambridgeshire County Council,14-Mar-19,51300775863,"-2,977.44",DECOY FARM,CARE ESTABLISHMENT,LD - East Locality,LD - East Cambs - Special Needs,Residential Care
Cambridgeshire County Council,14-Mar-19,51300788536,"-2,977.44",DECOY FARM,CARE ESTABLISHMENT,LD - East Locality,LD - East Cambs - Special Needs,Residential Care
Cambridgeshire County Council,14-Mar-19,51300788602,"-2,977.44",DECOY FARM,CARE ESTABLISHMENT,LD - East Locality,LD - East Cambs - Special Needs,Residential Care
Cambridgeshire County Council,14-Mar-19,51300788555,"-2,977.44",DECOY FARM,CARE ESTABLISHMENT,LD - East Locality,LD - East Cambs - Special Needs,Residential Care
Cambridgeshire County Council,14-Mar-19,51300788509,"-2,977.44",DECOY FARM,CARE ESTABLISHMENT,LD - East Locality,LD - East Cambs - Special Needs,Residential Care
Cambridgeshire County Council,14-Mar-19,51300775865,"-2,977.44",DECOY FARM,CARE ESTABLISHMENT,LD - East Locality,LD - East Cambs - Special Needs,Residential Care
Cambridgeshire County Council,14-Mar-19,51300775832,"-2,977.44",DECOY FARM,CARE ESTABLISHMENT,LD - East Locality,LD - East Cambs - Special Needs,Residential Care
Cambridgeshire County Council,14-Mar-19,51300788511,"-2,977.44",DECOY FARM,CARE ESTABLISHMENT,LD - East Locality,LD - East Cambs - Special Needs,Residential Care
Cambridgeshire County Council,14-Mar-19,51300775837,"-2,977.44",DECOY FARM,CARE ESTABLISHMENT,LD - East Locality,LD - East Cambs - Special Needs,Residential Care
Cambridgeshire County Council,14-Mar-19,51300775878,"-2,977.44",DECOY FARM,CARE ESTABLISHMENT,LD - East Locality,LD - East Cambs - Special Needs,Residential Care
Cambridgeshire County Council,14-Mar-19,51300775828,"-2,977.44",DECOY FARM,CARE ESTABLISHMENT,LD - East Locality,LD - East Cambs - Special Needs,Residential Care
Cambridgeshire County Council,14-Mar-19,51300788506,"-2,977.44",DECOY FARM,CARE ESTABLISHMENT,LD - East Locality,LD - East Cambs - Special Needs,Residential Care
Cambridgeshire County Council,14-Mar-19,51300788565,"-2,977.44",DECOY FARM,CARE ESTABLISHMENT,LD - East Locality,LD - East Cambs - Special Needs,Residential Care
Cambridgeshire County Council,14-Mar-19,51300788603,"-2,977.44",DECOY FARM,CARE ESTABLISHMENT,LD - East Locality,LD - East Cambs - Special Needs,Residential Care
Cambridgeshire County Council,14-Mar-19,51300788621,"-2,977.44",DECOY FARM,CARE ESTABLISHMENT,LD - East Locality,LD - East Cambs - Special Needs,Residential Care
Cambridgeshire County Council,14-Mar-19,51300788549,"-2,977.44",DECOY FARM,CARE ESTABLISHMENT,LD - East Locality,LD - East Cambs - Special Needs,Residential Care
Cambridgeshire County Council,14-Mar-19,51300775831,"-2,977.44",DECOY FARM,CARE ESTABLISHMENT,LD - East Locality,LD - East Cambs - Special Needs,Residential Care
Cambridgeshire County Council,14-Mar-19,51300775800,"-2,977.44",DECOY FARM,CARE ESTABLISHMENT,LD - East Locality,LD - East Cambs - Special Needs,Residential Care
Cambridgeshire County Council,14-Mar-19,51300775851,"-2,977.44",DECOY FARM,CARE ESTABLISHMENT,LD - East Locality,LD - East Cambs - Special Needs,Residential Care
Cambridgeshire County Council,14-Mar-19,51300788524,"-2,977.44",DECOY FARM,CARE ESTABLISHMENT,LD - East Locality,LD - East Cambs - Special Needs,Residential Care
Cambridgeshire County Council,14-Mar-19,51300788632,"-2,977.44",DECOY FARM,CARE ESTABLISHMENT,LD - East Locality,LD - East Cambs - Special Needs,Residential Care
Cambridgeshire County Council,14-Mar-19,51300788640,"-2,977.44",DECOY FARM,CARE ESTABLISHMENT,LD - East Locality,LD - East Cambs - Special Needs,Residential Care
Cambridgeshire County Council,14-Mar-19,51300788594,"-2,977.44",DECOY FARM,CARE ESTABLISHMENT,LD - East Locality,LD - East Cambs - Special Needs,Residential Care
Cambridgeshire County Council,14-Mar-19,51300788538,"-2,977.44",DECOY FARM,CARE ESTABLISHMENT,LD - East Locality,LD - East Cambs - Special Needs,Residential Care
Cambridgeshire County Council,14-Mar-19,51300775830,"-2,977.44",DECOY FARM,CARE ESTABLISHMENT,LD - East Locality,LD - East Cambs - Special Needs,Residential Care
Cambridgeshire County Council,14-Mar-19,51300775814,"-2,977.44",DECOY FARM,CARE ESTABLISHMENT,LD - East Locality,LD - East Cambs - Special Needs,Residential Care
Cambridgeshire County Council,14-Mar-19,51300775834,"-2,977.44",DECOY FARM,CARE ESTABLISHMENT,LD - East Locality,LD - East Cambs - Special Needs,Residential Care
Cambridgeshire County Council,14-Mar-19,51300775807,"-2,977.44",DECOY FARM,CARE ESTABLISHMENT,LD - East Locality,LD - East Cambs - Special Needs,Residential Care
Cambridgeshire County Council,14-Mar-19,51300775798,"-2,977.44",DECOY FARM,CARE ESTABLISHMENT,LD - East Locality,LD - East Cambs - Special Needs,Residential Care
Cambridgeshire County Council,14-Mar-19,51300788554,"-2,977.44",DECOY FARM,CARE ESTABLISHMENT,LD - East Locality,LD - East Cambs - Special Needs,Residential Care
Cambridgeshire County Council,14-Mar-19,51300775742,"-2,977.44",DECOY FARM,CARE ESTABLISHMENT,LD - East Locality,LD - East Cambs - Special Needs,Residential Care
Cambridgeshire County Council,14-Mar-19,51300775739,"-2,977.44",DECOY FARM,CARE ESTABLISHMENT,LD - East Locality,LD - East Cambs - Special Needs,Residential Care
Cambridgeshire County Council,14-Mar-19,51300775783,"-2,977.44",DECOY FARM,CARE ESTABLISHMENT,LD - East Locality,LD - East Cambs - Special Needs,Residential Care
Cambridgeshire County Council,14-Mar-19,51300775793,"-2,977.44",DECOY FARM,CARE ESTABLISHMENT,LD - East Locality,LD - East Cambs - Special Needs,Residential Care
Cambridgeshire County Council,14-Mar-19,51300775819,"-2,977.44",DECOY FARM,CARE ESTABLISHMENT,LD - East Locality,LD - East Cambs - Special Needs,Residential Care
Cambridgeshire County Council,14-Mar-19,51300775864,"-2,977.44",DECOY FARM,CARE ESTABLISHMENT,LD - East Locality,LD - East Cambs - Special Needs,Residential Care
Cambridgeshire County Council,14-Mar-19,51300775871,"-2,977.44",DECOY FARM,CARE ESTABLISHMENT,LD - East Locality,LD - East Cambs - Special Needs,Residential Care
Cambridgeshire County Council,14-Mar-19,51300775805,"-2,977.44",DECOY FARM,CARE ESTABLISHMENT,LD - East Locality,LD - East Cambs - Special Needs,Residential Care
Cambridgeshire County Council,14-Mar-19,51300775791,"-2,977.44",DECOY FARM,CARE ESTABLISHMENT,LD - East Locality,LD - East Cambs - Special Needs,Residential Care
Cambridgeshire County Council,14-Mar-19,51300775767,"-2,977.44",DECOY FARM,CARE ESTABLISHMENT,LD - East Locality,LD - East Cambs - Special Needs,Residential Care
Cambridgeshire County Council,14-Mar-19,51300775808,"-2,977.44",DECOY FARM,CARE ESTABLISHMENT,LD - East Locality,LD - East Cambs - Special Needs,Residential Care
Cambridgeshire County Council,14-Mar-19,51300775861,"-2,977.44",DECOY FARM,CARE ESTABLISHMENT,LD - East Locality,LD - East Cambs - Special Needs,Residential Care
Cambridgeshire County Council,14-Mar-19,51300788539,"-2,977.44",DECOY FARM,CARE ESTABLISHMENT,LD - East Locality,LD - East Cambs - Special Needs,Residential Care
Cambridgeshire County Council,14-Mar-19,51300788520,"-2,977.44",DECOY FARM,CARE ESTABLISHMENT,LD - East Locality,LD - East Cambs - Special Needs,Residential Care
Cambridgeshire County Council,14-Mar-19,51300775825,"-2,977.44",DECOY FARM,CARE ESTABLISHMENT,LD - East Locality,LD - East Cambs - Special Needs,Residential Care
Cambridgeshire County Council,14-Mar-19,51300775809,"-2,977.44",DECOY FARM,CARE ESTABLISHMENT,LD - East Locality,LD - East Cambs - Special Needs,Residential Care
Cambridgeshire County Council,14-Mar-19,51300775758,"-2,977.44",DECOY FARM,CARE ESTABLISHMENT,LD - East Locality,LD - East Cambs - Special Needs,Residential Care
Cambridgeshire County Council,14-Mar-19,51300775741,"-2,977.44",DECOY FARM,CARE ESTABLISHMENT,LD - East Locality,LD - East Cambs - Special Needs,Residential Care
Cambridgeshire County Council,14-Mar-19,51300788504,"-2,977.44",DECOY FARM,CARE ESTABLISHMENT,LD - East Locality,LD - East Cambs - Special Needs,Residential Care
Cambridgeshire County Council,14-Mar-19,51300788579,"-2,977.44",DECOY FARM,CARE ESTABLISHMENT,LD - East Locality,LD - East Cambs - Special Needs,Residential Care
Cambridgeshire County Council,14-Mar-19,51300788522,"-2,977.44",DECOY FARM,CARE ESTABLISHMENT,LD - East Locality,LD - East Cambs - Special Needs,Residential Care
Cambridgeshire County Council,14-Mar-19,51300788561,"-2,977.44",DECOY FARM,CARE ESTABLISHMENT,LD - East Locality,LD - East Cambs - Special Needs,Residential Care
Cambridgeshire County Council,14-Mar-19,51300788577,"-2,977.44",DECOY FARM,CARE ESTABLISHMENT,LD - East Locality,LD - East Cambs - Special Needs,Residential Care
Cambridgeshire County Council,14-Mar-19,51300788547,"-2,977.44",DECOY FARM,CARE ESTABLISHMENT,LD - East Locality,LD - East Cambs - Special Needs,Residential Care
Cambridgeshire County Council,14-Mar-19,51300788609,"-2,977.44",DECOY FARM,CARE ESTABLISHMENT,LD - East Locality,LD - East Cambs - Special Needs,Residential Care
Cambridgeshire County Council,14-Mar-19,51300788503,"-2,977.44",DECOY FARM,CARE ESTABLISHMENT,LD - East Locality,LD - East Cambs - Special Needs,Residential Care
Cambridgeshire County Council,14-Mar-19,51300788507,"-2,977.44",DECOY FARM,CARE ESTABLISHMENT,LD - East Locality,LD - East Cambs - Special Needs,Residential Care
Cambridgeshire County Council,14-Mar-19,51300788508,"-2,977.44",DECOY FARM,CARE ESTABLISHMENT,LD - East Locality,LD - East Cambs - Special Needs,Residential Care
Cambridgeshire County Council,14-Mar-19,51300788570,"-2,977.44",DECOY FARM,CARE ESTABLISHMENT,LD - East Locality,LD - East Cambs - Special Needs,Residential Care
Cambridgeshire County Council,14-Mar-19,51300775744,"-2,977.44",DECOY FARM,CARE ESTABLISHMENT,LD - East Locality,LD - East Cambs - Special Needs,Residential Care
Cambridgeshire County Council,14-Mar-19,51300775737,"-2,977.44",DECOY FARM,CARE ESTABLISHMENT,LD - East Locality,LD - East Cambs - Special Needs,Residential Care
Cambridgeshire County Council,14-Mar-19,51300788537,"-2,977.44",DECOY FARM,CARE ESTABLISHMENT,LD - East Locality,LD - East Cambs - Special Needs,Residential Care
Cambridgeshire County Council,14-Mar-19,51300788496,"-2,977.44",DECOY FARM,CARE ESTABLISHMENT,LD - East Locality,LD - East Cambs - Special Needs,Residential Care
Cambridgeshire County Council,14-Mar-19,51300788574,"-2,977.44",DECOY FARM,CARE ESTABLISHMENT,LD - East Locality,LD - East Cambs - Special Needs,Residential Care
Cambridgeshire County Council,14-Mar-19,51300788605,"-2,977.44",DECOY FARM,CARE ESTABLISHMENT,LD - East Locality,LD - East Cambs - Special Needs,Residential Care
Cambridgeshire County Council,14-Mar-19,51300788585,"-2,977.44",DECOY FARM,CARE ESTABLISHMENT,LD - East Locality,LD - East Cambs - Special Needs,Residential Care
Cambridgeshire County Council,14-Mar-19,51300788586,"-2,977.44",DECOY FARM,CARE ESTABLISHMENT,LD - East Locality,LD - East Cambs - Special Needs,Residential Care
Cambridgeshire County Council,14-Mar-19,51300775729,"-2,977.44",DECOY FARM,CARE ESTABLISHMENT,LD - East Locality,LD - East Cambs - Special Needs,Residential Care
Cambridgeshire County Council,14-Mar-19,51300775730,"-2,977.44",DECOY FARM,CARE ESTABLISHMENT,LD - East Locality,LD - East Cambs - Special Needs,Residential Care
Cambridgeshire County Council,14-Mar-19,51300788545,"-2,977.44",DECOY FARM,CARE ESTABLISHMENT,LD - East Locality,LD - East Cambs - Special Needs,Residential Care
Cambridgeshire County Council,14-Mar-19,51300788563,"-2,977.44",DECOY FARM,CARE ESTABLISHMENT,LD - East Locality,LD - East Cambs - Special Needs,Residential Care
Cambridgeshire County Council,14-Mar-19,51300788518,"-2,977.44",DECOY FARM,CARE ESTABLISHMENT,LD - East Locality,LD - East Cambs - Special Needs,Residential Care
Cambridgeshire County Council,14-Mar-19,51300775752,"-2,977.44",DECOY FARM,CARE ESTABLISHMENT,LD - East Locality,LD - East Cambs - Special Needs,Residential Care
Cambridgeshire County Council,14-Mar-19,51300788588,"-2,977.44",DECOY FARM,CARE ESTABLISHMENT,LD - East Locality,LD - East Cambs - Special Needs,Residential Care
Cambridgeshire County Council,14-Mar-19,51300788628,"-2,977.44",DECOY FARM,CARE ESTABLISHMENT,LD - East Locality,LD - East Cambs - Special Needs,Residential Care
Cambridgeshire County Council,14-Mar-19,51300788644,"-2,977.44",DECOY FARM,CARE ESTABLISHMENT,LD - East Locality,LD - East Cambs - Special Needs,Residential Care
Cambridgeshire County Council,14-Mar-19,51300788535,"-2,977.44",DECOY FARM,CARE ESTABLISHMENT,LD - East Locality,LD - East Cambs - Special Needs,Residential Care
Cambridgeshire County Council,14-Mar-19,51300788514,"-2,977.44",DECOY FARM,CARE ESTABLISHMENT,LD - East Locality,LD - East Cambs - Special Needs,Residential Care
Cambridgeshire County Council,14-Mar-19,51300775763,"-2,977.44",DECOY FARM,CARE ESTABLISHMENT,LD - East Locality,LD - East Cambs - Special Needs,Residential Care
Cambridgeshire County Council,14-Mar-19,51300775728,"-2,977.44",DECOY FARM,CARE ESTABLISHMENT,LD - East Locality,LD - East Cambs - Special Needs,Residential Care
Cambridgeshire County Council,14-Mar-19,51300775779,"-2,977.44",DECOY FARM,CARE ESTABLISHMENT,LD - East Locality,LD - East Cambs - Special Needs,Residential Care
Cambridgeshire County Council,14-Mar-19,51300788641,"-2,977.44",DECOY FARM,CARE ESTABLISHMENT,LD - East Locality,LD - East Cambs - Special Needs,Residential Care
Cambridgeshire County Council,14-Mar-19,51300788637,"-2,977.44",DECOY FARM,CARE ESTABLISHMENT,LD - East Locality,LD - East Cambs - Special Needs,Residential Care
Cambridgeshire County Council,14-Mar-19,51300788642,"-2,977.44",DECOY FARM,CARE ESTABLISHMENT,LD - East Locality,LD - East Cambs - Special Needs,Residential Care
Cambridgeshire County Council,14-Mar-19,51300775872,"-2,977.44",DECOY FARM,CARE ESTABLISHMENT,LD - East Locality,LD - East Cambs - Special Needs,Residential Care
Cambridgeshire County Council,14-Mar-19,51300788494,"-2,977.44",DECOY FARM,CARE ESTABLISHMENT,LD - East Locality,LD - East Cambs - Special Needs,Residential Care
Cambridgeshire County Council,14-Mar-19,51300788601,"-2,977.44",DECOY FARM,CARE ESTABLISHMENT,LD - East Locality,LD - East Cambs - Special Needs,Residential Care
Cambridgeshire County Council,14-Mar-19,51300775789,"-2,977.44",DECOY FARM,CARE ESTABLISHMENT,LD - East Locality,LD - East Cambs - Special Needs,Residential Care
Cambridgeshire County Council,14-Mar-19,51300775875,"-2,977.44",DECOY FARM,CARE ESTABLISHMENT,LD - East Locality,LD - East Cambs - Special Needs,Residential Care
Cambridgeshire County Council,14-Mar-19,51300775757,"-2,977.44",DECOY FARM,CARE ESTABLISHMENT,LD - East Locality,LD - East Cambs - Special Needs,Residential Care
Cambridgeshire County Council,14-Mar-19,51300788530,"-2,977.44",DECOY FARM,CARE ESTABLISHMENT,LD - East Locality,LD - East Cambs - Special Needs,Residential Care
Cambridgeshire County Council,14-Mar-19,51300775743,"-2,977.44",DECOY FARM,CARE ESTABLISHMENT,LD - East Locality,LD - East Cambs - Special Needs,Residential Care
Cambridgeshire County Council,14-Mar-19,51300788635,"-2,977.44",DECOY FARM,CARE ESTABLISHMENT,LD - East Locality,LD - East Cambs - Special Needs,Residential Care
Cambridgeshire County Council,14-Mar-19,51300788639,"-2,977.44",DECOY FARM,CARE ESTABLISHMENT,LD - East Locality,LD - East Cambs - Special Needs,Residential Care
Cambridgeshire County Council,14-Mar-19,51300788573,"-2,977.44",DECOY FARM,CARE ESTABLISHMENT,LD - East Locality,LD - East Cambs - Special Needs,Residential Care
Cambridgeshire County Council,14-Mar-19,51300788598,"-2,977.44",DECOY FARM,CARE ESTABLISHMENT,LD - East Locality,LD - East Cambs - Special Needs,Residential Care
Cambridgeshire County Council,14-Mar-19,51300788610,"-2,977.44",DECOY FARM,CARE ESTABLISHMENT,LD - East Locality,LD - East Cambs - Special Needs,Residential Care
Cambridgeshire County Council,14-Mar-19,51300775732,"-2,977.44",DECOY FARM,CARE ESTABLISHMENT,LD - East Locality,LD - East Cambs - Special Needs,Residential Care
Cambridgeshire County Council,14-Mar-19,51300788619,"-2,977.44",DECOY FARM,CARE ESTABLISHMENT,LD - East Locality,LD - East Cambs - Special Needs,Residential Care
Cambridgeshire County Council,14-Mar-19,51300788559,"-2,977.44",DECOY FARM,CARE ESTABLISHMENT,LD - East Locality,LD - East Cambs - Special Needs,Residential Care
Cambridgeshire County Council,14-Mar-19,51300775812,"-2,977.44",DECOY FARM,CARE ESTABLISHMENT,LD - East Locality,LD - East Cambs - Special Needs,Residential Care
Cambridgeshire County Council,14-Mar-19,51300788512,"-2,977.44",DECOY FARM,CARE ESTABLISHMENT,LD - East Locality,LD - East Cambs - Special Needs,Residential Care
Cambridgeshire County Council,14-Mar-19,51300775835,"-2,977.44",DECOY FARM,CARE ESTABLISHMENT,LD - East Locality,LD - East Cambs - Special Needs,Residential Care
Cambridgeshire County Council,14-Mar-19,51300788558,"-2,977.44",DECOY FARM,CARE ESTABLISHMENT,LD - East Locality,LD - East Cambs - Special Needs,Residential Care
Cambridgeshire County Council,14-Mar-19,51300788648,"-2,977.44",DECOY FARM,CARE ESTABLISHMENT,LD - East Locality,LD - East Cambs - Special Needs,Residential Care
Cambridgeshire County Council,14-Mar-19,51300775869,"-2,977.44",DECOY FARM,CARE ESTABLISHMENT,LD - East Locality,LD - East Cambs - Special Needs,Residential Care
Cambridgeshire County Council,14-Mar-19,51300775844,"-2,977.44",DECOY FARM,CARE ESTABLISHMENT,LD - East Locality,LD - East Cambs - Special Needs,Residential Care
Cambridgeshire County Council,14-Mar-19,51300775840,"-2,977.44",DECOY FARM,CARE ESTABLISHMENT,LD - East Locality,LD - East Cambs - Special Needs,Residential Care
Cambridgeshire County Council,14-Mar-19,51300788584,"-2,977.44",DECOY FARM,CARE ESTABLISHMENT,LD - East Locality,LD - East Cambs - Special Needs,Residential Care
Cambridgeshire County Council,14-Mar-19,51300788631,"-2,977.44",DECOY FARM,CARE ESTABLISHMENT,LD - East Locality,LD - East Cambs - Special Needs,Residential Care
Cambridgeshire County Council,14-Mar-19,51300775780,"-2,977.44",DECOY FARM,CARE ESTABLISHMENT,LD - East Locality,LD - East Cambs - Special Needs,Residential Care
Cambridgeshire County Council,14-Mar-19,51300775815,"-2,977.44",DECOY FARM,CARE ESTABLISHMENT,LD - East Locality,LD - East Cambs - Special Needs,Residential Care
Cambridgeshire County Council,14-Mar-19,51300788590,"-2,977.44",DECOY FARM,CARE ESTABLISHMENT,LD - East Locality,LD - East Cambs - Special Needs,Residential Care
Cambridgeshire County Council,14-Mar-19,51300788593,"-2,977.44",DECOY FARM,CARE ESTABLISHMENT,LD - East Locality,LD - East Cambs - Special Needs,Residential Care
Cambridgeshire County Council,14-Mar-19,51300775860,"-2,977.44",DECOY FARM,CARE ESTABLISHMENT,LD - East Locality,LD - East Cambs - Special Needs,Residential Care
Cambridgeshire County Council,14-Mar-19,51300788548,"-2,977.44",DECOY FARM,CARE ESTABLISHMENT,LD - East Locality,LD - East Cambs - Special Needs,Residential Care
Cambridgeshire County Council,14-Mar-19,51300775748,"-2,977.44",DECOY FARM,CARE ESTABLISHMENT,LD - East Locality,LD - East Cambs - Special Needs,Residential Care
Cambridgeshire County Council,14-Mar-19,51300775792,"-2,977.44",DECOY FARM,CARE ESTABLISHMENT,LD - East Locality,LD - East Cambs - Special Needs,Residential Care
Cambridgeshire County Council,14-Mar-19,51300775839,"-2,977.44",DECOY FARM,CARE ESTABLISHMENT,LD - East Locality,LD - East Cambs - Special Needs,Residential Care
Cambridgeshire County Council,14-Mar-19,51300775733,"-2,977.44",DECOY FARM,CARE ESTABLISHMENT,LD - East Locality,LD - East Cambs - Special Needs,Residential Care
Cambridgeshire County Council,27-Mar-19,51300800415,"-2,977.44",DECOY FARM,CARE ESTABLISHMENT,LD - East Locality,LD - East Cambs - Special Needs,Residential Care
Cambridgeshire County Council,27-Mar-19,51300800310,"-2,977.44",DECOY FARM,CARE ESTABLISHMENT,LD - East Locality,LD - East Cambs - Special Needs,Residential Care
Cambridgeshire County Council,27-Mar-19,51300800326,"-2,977.44",DECOY FARM,CARE ESTABLISHMENT,LD - East Locality,LD - East Cambs - Special Needs,Residential Care
Cambridgeshire County Council,27-Mar-19,51300800399,"-2,977.44",DECOY FARM,CARE ESTABLISHMENT,LD - East Locality,LD - East Cambs - Special Needs,Residential Care
Cambridgeshire County Council,27-Mar-19,51300800304,"-2,977.44",DECOY FARM,CARE ESTABLISHMENT,LD - East Locality,LD - East Cambs - Special Needs,Residential Care
Cambridgeshire County Council,27-Mar-19,51300800363,"-2,977.44",DECOY FARM,CARE ESTABLISHMENT,LD - East Locality,LD - East Cambs - Special Needs,Residential Care
Cambridgeshire County Council,27-Mar-19,51300800369,"-2,977.44",DECOY FARM,CARE ESTABLISHMENT,LD - East Locality,LD - East Cambs - Special Needs,Residential Care
Cambridgeshire County Council,27-Mar-19,51300800413,"-2,977.44",DECOY FARM,CARE ESTABLISHMENT,LD - East Locality,LD - East Cambs - Special Needs,Residential Care
Cambridgeshire County Council,27-Mar-19,51300800295,"-2,977.44",DECOY FARM,CARE ESTABLISHMENT,LD - East Locality,LD - East Cambs - Special Needs,Residential Care
Cambridgeshire County Council,27-Mar-19,51300800388,"-2,977.44",DECOY FARM,CARE ESTABLISHMENT,LD - East Locality,LD - East Cambs - Special Needs,Residential Care
Cambridgeshire County Council,27-Mar-19,51300800292,"-2,977.44",DECOY FARM,CARE ESTABLISHMENT,LD - East Locality,LD - East Cambs - Special Needs,Residential Care
Cambridgeshire County Council,27-Mar-19,51300800401,"-2,977.44",DECOY FARM,CARE ESTABLISHMENT,LD - East Locality,LD - East Cambs - Special Needs,Residential Care
Cambridgeshire County Council,27-Mar-19,51300800356,"-2,977.44",DECOY FARM,CARE ESTABLISHMENT,LD - East Locality,LD - East Cambs - Special Needs,Residential Care
Cambridgeshire County Council,27-Mar-19,51300800309,"-2,977.44",DECOY FARM,CARE ESTABLISHMENT,LD - East Locality,LD - East Cambs - Special Needs,Residential Care
Cambridgeshire County Council,27-Mar-19,51300800347,"-2,977.44",DECOY FARM,CARE ESTABLISHMENT,LD - East Locality,LD - East Cambs - Special Needs,Residential Care
Cambridgeshire County Council,27-Mar-19,51300800316,"-2,977.44",DECOY FARM,CARE ESTABLISHMENT,LD - East Locality,LD - East Cambs - Special Needs,Residential Care
Cambridgeshire County Council,27-Mar-19,51300800338,"-2,977.44",DECOY FARM,CARE ESTABLISHMENT,LD - East Locality,LD - East Cambs - Special Needs,Residential Care
Cambridgeshire County Council,27-Mar-19,51300800374,"-2,977.44",DECOY FARM,CARE ESTABLISHMENT,LD - East Locality,LD - East Cambs - Special Needs,Residential Care
Cambridgeshire County Council,27-Mar-19,51300800293,"-2,977.44",DECOY FARM,CARE ESTABLISHMENT,LD - East Locality,LD - East Cambs - Special Needs,Residential Care
Cambridgeshire County Council,27-Mar-19,51300800366,"-2,977.44",DECOY FARM,CARE ESTABLISHMENT,LD - East Locality,LD - East Cambs - Special Needs,Residential Care
Cambridgeshire County Council,27-Mar-19,51300800311,"-2,977.44",DECOY FARM,CARE ESTABLISHMENT,LD - East Locality,LD - East Cambs - Special Needs,Residential Care
Cambridgeshire County Council,27-Mar-19,51300800380,"-2,977.44",DECOY FARM,CARE ESTABLISHMENT,LD - East Locality,LD - East Cambs - Special Needs,Residential Care
Cambridgeshire County Council,27-Mar-19,51300800277,"-2,977.44",DECOY FARM,CARE ESTABLISHMENT,LD - East Locality,LD - East Cambs - Special Needs,Residential Care
Cambridgeshire County Council,27-Mar-19,51300800361,"-2,977.44",DECOY FARM,CARE ESTABLISHMENT,LD - East Locality,LD - East Cambs - Special Needs,Residential Care
Cambridgeshire County Council,27-Mar-19,51300800283,"-2,977.44",DECOY FARM,CARE ESTABLISHMENT,LD - East Locality,LD - East Cambs - Special Needs,Residential Care
Cambridgeshire County Council,27-Mar-19,51300800371,"-2,977.44",DECOY FARM,CARE ESTABLISHMENT,LD - East Locality,LD - East Cambs - Special Needs,Residential Care
Cambridgeshire County Council,27-Mar-19,51300800355,"-2,977.44",DECOY FARM,CARE ESTABLISHMENT,LD - East Locality,LD - East Cambs - Special Needs,Residential Care
Cambridgeshire County Council,27-Mar-19,51300800321,"-2,977.44",DECOY FARM,CARE ESTABLISHMENT,LD - East Locality,LD - East Cambs - Special Needs,Residential Care
Cambridgeshire County Council,27-Mar-19,51300800273,"-2,977.44",DECOY FARM,CARE ESTABLISHMENT,LD - East Locality,LD - East Cambs - Special Needs,Residential Care
Cambridgeshire County Council,27-Mar-19,51300800370,"-2,977.44",DECOY FARM,CARE ESTABLISHMENT,LD - East Locality,LD - East Cambs - Special Needs,Residential Care
Cambridgeshire County Council,27-Mar-19,51300800367,"-2,977.44",DECOY FARM,CARE ESTABLISHMENT,LD - East Locality,LD - East Cambs - Special Needs,Residential Care
Cambridgeshire County Council,27-Mar-19,51300800409,"-2,977.44",DECOY FARM,CARE ESTABLISHMENT,LD - East Locality,LD - East Cambs - Special Needs,Residential Care
Cambridgeshire County Council,27-Mar-19,51300800368,"-2,977.44",DECOY FARM,CARE ESTABLISHMENT,LD - East Locality,LD - East Cambs - Special Needs,Residential Care
Cambridgeshire County Council,27-Mar-19,51300800345,"-2,977.44",DECOY FARM,CARE ESTABLISHMENT,LD - East Locality,LD - East Cambs - Special Needs,Residential Care
Cambridgeshire County Council,27-Mar-19,51300800375,"-2,977.44",DECOY FARM,CARE ESTABLISHMENT,LD - East Locality,LD - East Cambs - Special Needs,Residential Care
Cambridgeshire County Council,27-Mar-19,51300800284,"-2,977.44",DECOY FARM,CARE ESTABLISHMENT,LD - East Locality,LD - East Cambs - Special Needs,Residential Care
Cambridgeshire County Council,27-Mar-19,51300800398,"-2,977.44",DECOY FARM,CARE ESTABLISHMENT,LD - East Locality,LD - East Cambs - Special Needs,Residential Care
Cambridgeshire County Council,27-Mar-19,51300800287,"-2,977.44",DECOY FARM,CARE ESTABLISHMENT,LD - East Locality,LD - East Cambs - Special Needs,Residential Care
Cambridgeshire County Council,27-Mar-19,51300800348,"-2,977.44",DECOY FARM,CARE ESTABLISHMENT,LD - East Locality,LD - East Cambs - Special Needs,Residential Care
Cambridgeshire County Council,27-Mar-19,51300800301,"-2,977.44",DECOY FARM,CARE ESTABLISHMENT,LD - East Locality,LD - East Cambs - Special Needs,Residential Care
Cambridgeshire County Council,27-Mar-19,51300800313,"-2,977.44",DECOY FARM,CARE ESTABLISHMENT,LD - East Locality,LD - East Cambs - Special Needs,Residential Care
Cambridgeshire County Council,27-Mar-19,51300800315,"-2,977.44",DECOY FARM,CARE ESTABLISHMENT,LD - East Locality,LD - East Cambs - Special Needs,Residential Care
Cambridgeshire County Council,27-Mar-19,51300800403,"-2,977.44",DECOY FARM,CARE ESTABLISHMENT,LD - East Locality,LD - East Cambs - Special Needs,Residential Care
Cambridgeshire County Council,27-Mar-19,51300800270,"-2,977.44",DECOY FARM,CARE ESTABLISHMENT,LD - East Locality,LD - East Cambs - Special Needs,Residential Care
Cambridgeshire County Council,27-Mar-19,51300800275,"-2,977.44",DECOY FARM,CARE ESTABLISHMENT,LD - East Locality,LD - East Cambs - Special Needs,Residential Care
Cambridgeshire County Council,27-Mar-19,51300800323,"-2,977.44",DECOY FARM,CARE ESTABLISHMENT,LD - East Locality,LD - East Cambs - Special Needs,Residential Care
Cambridgeshire County Council,27-Mar-19,51300800360,"-2,977.44",DECOY FARM,CARE ESTABLISHMENT,LD - East Locality,LD - East Cambs - Special Needs,Residential Care
Cambridgeshire County Council,27-Mar-19,51300800267,"-2,977.44",DECOY FARM,CARE ESTABLISHMENT,LD - East Locality,LD - East Cambs - Special Needs,Residential Care
Cambridgeshire County Council,27-Mar-19,51300800307,"-2,977.44",DECOY FARM,CARE ESTABLISHMENT,LD - East Locality,LD - East Cambs - Special Needs,Residential Care
Cambridgeshire County Council,27-Mar-19,51300800358,"-2,977.44",DECOY FARM,CARE ESTABLISHMENT,LD - East Locality,LD - East Cambs - Special Needs,Residential Care
Cambridgeshire County Council,27-Mar-19,51300800303,"-2,977.44",DECOY FARM,CARE ESTABLISHMENT,LD - East Locality,LD - East Cambs - Special Needs,Residential Care
Cambridgeshire County Council,27-Mar-19,51300800405,"-2,977.44",DECOY FARM,CARE ESTABLISHMENT,LD - East Locality,LD - East Cambs - Special Needs,Residential Care
Cambridgeshire County Council,27-Mar-19,51300800376,"-2,977.44",DECOY FARM,CARE ESTABLISHMENT,LD - East Locality,LD - East Cambs - Special Needs,Residential Care
Cambridgeshire County Council,27-Mar-19,51300800383,"-2,977.44",DECOY FARM,CARE ESTABLISHMENT,LD - East Locality,LD - East Cambs - Special Needs,Residential Care
Cambridgeshire County Council,27-Mar-19,51300800381,"-2,977.44",DECOY FARM,CARE ESTABLISHMENT,LD - East Locality,LD - East Cambs - Special Needs,Residential Care
Cambridgeshire County Council,27-Mar-19,51300800305,"-2,977.44",DECOY FARM,CARE ESTABLISHMENT,LD - East Locality,LD - East Cambs - Special Needs,Residential Care
Cambridgeshire County Council,27-Mar-19,51300800389,"-2,977.44",DECOY FARM,CARE ESTABLISHMENT,LD - East Locality,LD - East Cambs - Special Needs,Residential Care
Cambridgeshire County Council,27-Mar-19,51300800357,"-2,977.44",DECOY FARM,CARE ESTABLISHMENT,LD - East Locality,LD - East Cambs - Special Needs,Residential Care
Cambridgeshire County Council,27-Mar-19,51300800344,"-2,977.44",DECOY FARM,CARE ESTABLISHMENT,LD - East Locality,LD - East Cambs - Special Needs,Residential Care
Cambridgeshire County Council,27-Mar-19,51300800312,"-2,977.44",DECOY FARM,CARE ESTABLISHMENT,LD - East Locality,LD - East Cambs - Special Needs,Residential Care
Cambridgeshire County Council,27-Mar-19,51300800346,"-2,977.44",DECOY FARM,CARE ESTABLISHMENT,LD - East Locality,LD - East Cambs - Special Needs,Residential Care
Cambridgeshire County Council,27-Mar-19,51300800373,"-2,977.44",DECOY FARM,CARE ESTABLISHMENT,LD - East Locality,LD - East Cambs - Special Needs,Residential Care
Cambridgeshire County Council,27-Mar-19,51300800266,"-2,977.44",DECOY FARM,CARE ESTABLISHMENT,LD - East Locality,LD - East Cambs - Special Needs,Residential Care
Cambridgeshire County Council,27-Mar-19,51300800342,"-2,977.44",DECOY FARM,CARE ESTABLISHMENT,LD - East Locality,LD - East Cambs - Special Needs,Residential Care
Cambridgeshire County Council,27-Mar-19,51300800314,"-2,977.44",DECOY FARM,CARE ESTABLISHMENT,LD - East Locality,LD - East Cambs - Special Needs,Residential Care
Cambridgeshire County Council,27-Mar-19,51300800339,"-2,977.44",DECOY FARM,CARE ESTABLISHMENT,LD - East Locality,LD - East Cambs - Special Needs,Residential Care
Cambridgeshire County Council,27-Mar-19,51300800350,"-2,977.44",DECOY FARM,CARE ESTABLISHMENT,LD - East Locality,LD - East Cambs - Special Needs,Residential Care
Cambridgeshire County Council,27-Mar-19,51300800285,"-2,977.44",DECOY FARM,CARE ESTABLISHMENT,LD - East Locality,LD - East Cambs - Special Needs,Residential Care
Cambridgeshire County Council,27-Mar-19,51300800372,"-2,977.44",DECOY FARM,CARE ESTABLISHMENT,LD - East Locality,LD - East Cambs - Special Needs,Residential Care
Cambridgeshire County Council,27-Mar-19,51300800387,"-2,977.44",DECOY FARM,CARE ESTABLISHMENT,LD - East Locality,LD - East Cambs - Special Needs,Residential Care
Cambridgeshire County Council,27-Mar-19,51300800400,"-2,977.44",DECOY FARM,CARE ESTABLISHMENT,LD - East Locality,LD - East Cambs - Special Needs,Residential Care
Cambridgeshire County Council,27-Mar-19,51300800299,"-2,977.44",DECOY FARM,CARE ESTABLISHMENT,LD - East Locality,LD - East Cambs - Special Needs,Residential Care
Cambridgeshire County Council,27-Mar-19,51300800384,"-2,977.44",DECOY FARM,CARE ESTABLISHMENT,LD - East Locality,LD - East Cambs - Special Needs,Residential Care
Cambridgeshire County Council,29-Mar-19,51300840765,"-2,911.90",VOYAGE,CARE ESTABLISHMENT,LD - East Locality,LD - East Cambs - Special Needs,Residential Care
Cambridgeshire County Council,29-Mar-19,51300840709,"-2,911.90",VOYAGE,CARE ESTABLISHMENT,LD - East Locality,LD - East Cambs - Special Needs,Residential Care
Cambridgeshire County Council,27-Mar-19,51300791390,"-2,873.09",VOYAGE,CARE ESTABLISHMENT,LD - Hunts Locality,LD - Huntigndonshire  - Special Needs,Residential Care
Cambridgeshire County Council,27-Mar-19,51300791393,"-2,873.09",VOYAGE,CARE ESTABLISHMENT,LD - Hunts Locality,LD - Huntigndonshire  - Special Needs,Residential Care
Cambridgeshire County Council,27-Mar-19,51300791394,"-2,873.09",VOYAGE,CARE ESTABLISHMENT,LD - Hunts Locality,LD - Huntigndonshire  - Special Needs,Residential Care
Cambridgeshire County Council,27-Mar-19,51300791391,"-2,873.09",VOYAGE,CARE ESTABLISHMENT,LD - Hunts Locality,LD - Huntigndonshire  - Special Needs,Residential Care
Cambridgeshire County Council,26-Mar-19,51300807050,"-2,832.10",NEXUS FOSTERING LTD,CARE ESTABLISHMENT,LAC Placements,Placements - independent fostering,Agency Placements - In County
Cambridgeshire County Council,07-Mar-19,51300717655,"-2,668.96",EAGLE WOOD NEUROLOGICAL CARE,CARE ESTABLISHMENT,OPMH - City & South,Older People Mental Health City & South,Nursing Care
Cambridgeshire County Council,07-Mar-19,51300717643,"-2,668.96",EAGLE WOOD NEUROLOGICAL CARE,CARE ESTABLISHMENT,OPMH - City & South,Older People Mental Health City & South,Nursing Care
Cambridgeshire County Council,07-Mar-19,51300717691,"-2,668.96",EAGLE WOOD NEUROLOGICAL CARE,CARE ESTABLISHMENT,OPMH - City & South,Older People Mental Health City & South,Nursing Care
Cambridgeshire County Council,07-Mar-19,51300717676,"-2,668.96",EAGLE WOOD NEUROLOGICAL CARE,CARE ESTABLISHMENT,OPMH - City & South,Older People Mental Health City & South,Nursing Care
Cambridgeshire County Council,29-Mar-19,51300805357,"-2,664.48",AFFINITY TRUST,CARE ESTABLISHMENT,LD - Fenland Locality,LD - Fenland  - Special Needs,Domiciliary Care
Cambridgeshire County Council,27-Mar-19,51300808643,"-2,607.66",SENSE (MIDLANDS),CARE ESTABLISHMENT,LD - Hunts Locality,LD - Huntigndonshire  - Care,Residential Client Care Contributions
Cambridgeshire County Council,27-Mar-19,51300808643,"-2,607.66",SENSE (MIDLANDS),CARE ESTABLISHMENT,LD - Hunts Locality,LD - Huntigndonshire  - Care,Residential Client Care Contributions
Cambridgeshire County Council,27-Mar-19,51300808643,"-2,607.66",SENSE (MIDLANDS),CARE ESTABLISHMENT,LD - Hunts Locality,LD - Huntigndonshire  - Care,Residential Client Care Contributions
Cambridgeshire County Council,27-Mar-19,51300808643,"-2,607.66",SENSE (MIDLANDS),CARE ESTABLISHMENT,LD - Hunts Locality,LD - Huntigndonshire  - Care,Residential Client Care Contributions
Cambridgeshire County Council,27-Mar-19,51300808643,"-2,607.66",SENSE (MIDLANDS),CARE ESTABLISHMENT,LD - Hunts Locality,LD - Huntigndonshire  - Care,Residential Client Care Contributions
Cambridgeshire County Council,27-Mar-19,51300808643,"-2,607.66",SENSE (MIDLANDS),CARE ESTABLISHMENT,LD - Hunts Locality,LD - Huntigndonshire  - Care,Residential Client Care Contributions
Cambridgeshire County Council,27-Mar-19,51300808643,"-2,607.66",SENSE (MIDLANDS),CARE ESTABLISHMENT,LD - Hunts Locality,LD - Huntigndonshire  - Care,Residential Client Care Contributions
Cambridgeshire County Council,27-Mar-19,51300808643,"-2,607.66",SENSE (MIDLANDS),CARE ESTABLISHMENT,LD - Hunts Locality,LD - Huntigndonshire  - Care,Residential Client Care Contributions
Cambridgeshire County Council,27-Mar-19,51300808643,"-2,607.66",SENSE (MIDLANDS),CARE ESTABLISHMENT,LD - Hunts Locality,LD - Huntigndonshire  - Care,Residential Client Care Contributions
Cambridgeshire County Council,27-Mar-19,51300808643,"-2,607.66",SENSE (MIDLANDS),CARE ESTABLISHMENT,LD - Hunts Locality,LD - Huntigndonshire  - Care,Residential Client Care Contributions
Cambridgeshire County Council,27-Mar-19,51300808643,"-2,607.66",SENSE (MIDLANDS),CARE ESTABLISHMENT,LD - Hunts Locality,LD - Huntigndonshire  - Care,Residential Client Care Contributions
Cambridgeshire County Council,01-Mar-19,51300734907,"-2,552.09",DECOY FARM,CARE ESTABLISHMENT,LD - East Locality,LD - East Cambs - Special Needs,Residential Care
Cambridgeshire County Council,01-Mar-19,51300745858,"-2,552.09",DECOY FARM,CARE ESTABLISHMENT,LD - East Locality,LD - East Cambs - Special Needs,Residential Care
Cambridgeshire County Council,14-Mar-19,51300775771,"-2,552.09",DECOY FARM,CARE ESTABLISHMENT,LD - East Locality,LD - East Cambs - Special Needs,Residential Care
Cambridgeshire County Council,14-Mar-19,51300788541,"-2,552.09",DECOY FARM,CARE ESTABLISHMENT,LD - East Locality,LD - East Cambs - Special Needs,Residential Care
Cambridgeshire County Council,27-Mar-19,51300800320,"-2,552.09",DECOY FARM,CARE ESTABLISHMENT,LD - East Locality,LD - East Cambs - Special Needs,Residential Care
Cambridgeshire County Council,04-Mar-19,51300722865,"-2,468.64",CAPSTONE FOSTER CARE (SOUTH EAST) LTD,CARE ESTABLISHMENT,LAC Placements,Placements - independent fostering,Agency Placements - Out of  County
Cambridgeshire County Council,29-Mar-19,51300813853,"-2,353.09",ALDERTON HOUSE,CARE ESTABLISHMENT,LD - East Locality,LD - East Cambs - Special Needs,Residential Care
Cambridgeshire County Council,29-Mar-19,51300813854,"-2,353.09",ALDERTON HOUSE,CARE ESTABLISHMENT,LD - East Locality,LD - East Cambs - Special Needs,Residential Care
Cambridgeshire County Council,29-Mar-19,51300813856,"-2,353.09",ALDERTON HOUSE,CARE ESTABLISHMENT,LD - East Locality,LD - East Cambs - Special Needs,Residential Care
Cambridgeshire County Council,01-Mar-19,51300738031,"-2,346.92",VOYAGE,CARE ESTABLISHMENT,LD - City Locality,LD - City - Special Needs,Residential Care
Cambridgeshire County Council,01-Mar-19,51300738039,"-2,346.92",VOYAGE,CARE ESTABLISHMENT,LD - City Locality,LD - City - Special Needs,Residential Care
Cambridgeshire County Council,01-Mar-19,51300738036,"-2,346.92",VOYAGE,CARE ESTABLISHMENT,LD - City Locality,LD - City - Special Needs,Residential Care
Cambridgeshire County Council,01-Mar-19,51300738038,"-2,346.92",VOYAGE,CARE ESTABLISHMENT,LD - City Locality,LD - City - Special Needs,Residential Care
Cambridgeshire County Council,01-Mar-19,51300738042,"-2,346.92",VOYAGE,CARE ESTABLISHMENT,LD - City Locality,LD - City - Special Needs,Residential Care
Cambridgeshire County Council,01-Mar-19,51300738035,"-2,346.92",VOYAGE,CARE ESTABLISHMENT,LD - City Locality,LD - City - Special Needs,Residential Care
Cambridgeshire County Council,29-Mar-19,51300838839,"-2,341.61",VOYAGE,CARE ESTABLISHMENT,LD - South Locality,LD - South Cambs - Special Needs,Residential Care
Cambridgeshire County Council,29-Mar-19,51300838828,"-2,341.61",VOYAGE,CARE ESTABLISHMENT,LD - South Locality,LD - South Cambs - Special Needs,Residential Care
Cambridgeshire County Council,29-Mar-19,51300836233,"-2,341.61",VOYAGE,CARE ESTABLISHMENT,LD - South Locality,LD - South Cambs - Special Needs,Residential Care
Cambridgeshire County Council,29-Mar-19,51300836237,"-2,341.61",VOYAGE,CARE ESTABLISHMENT,LD - South Locality,LD - South Cambs - Special Needs,Residential Care
Cambridgeshire County Council,29-Mar-19,51300838831,"-2,341.61",VOYAGE,CARE ESTABLISHMENT,LD - South Locality,LD - South Cambs - Special Needs,Residential Care
Cambridgeshire County Council,29-Mar-19,51300815802,"-2,341.61",VOYAGE,CARE ESTABLISHMENT,LD - South Locality,LD - South Cambs - Special Needs,Residential Care
Cambridgeshire County Council,29-Mar-19,51300838824,"-2,341.61",VOYAGE,CARE ESTABLISHMENT,LD - South Locality,LD - South Cambs - Special Needs,Residential Care
Cambridgeshire County Council,29-Mar-19,51300836232,"-2,341.61",VOYAGE,CARE ESTABLISHMENT,LD - South Locality,LD - South Cambs - Special Needs,Residential Care
Cambridgeshire County Council,29-Mar-19,51300815811,"-2,341.61",VOYAGE,CARE ESTABLISHMENT,LD - South Locality,LD - South Cambs - Special Needs,Residential Care
Cambridgeshire County Council,29-Mar-19,51300836204,"-2,341.61",VOYAGE,CARE ESTABLISHMENT,LD - South Locality,LD - South Cambs - Special Needs,Residential Care
Cambridgeshire County Council,29-Mar-19,51300836224,"-2,341.61",VOYAGE,CARE ESTABLISHMENT,LD - South Locality,LD - South Cambs - Special Needs,Residential Care
Cambridgeshire County Council,29-Mar-19,51300815807,"-2,341.61",VOYAGE,CARE ESTABLISHMENT,LD - South Locality,LD - South Cambs - Special Needs,Residential Care
Cambridgeshire County Council,29-Mar-19,51300836242,"-2,341.61",VOYAGE,CARE ESTABLISHMENT,LD - South Locality,LD - South Cambs - Special Needs,Residential Care
Cambridgeshire County Council,29-Mar-19,51300815803,"-2,341.61",VOYAGE,CARE ESTABLISHMENT,LD - South Locality,LD - South Cambs - Special Needs,Residential Care
Cambridgeshire County Council,29-Mar-19,51300836230,"-2,341.61",VOYAGE,CARE ESTABLISHMENT,LD - South Locality,LD - South Cambs - Special Needs,Residential Care
Cambridgeshire County Council,29-Mar-19,51300815808,"-2,341.61",VOYAGE,CARE ESTABLISHMENT,LD - South Locality,LD - South Cambs - Special Needs,Residential Care
Cambridgeshire County Council,29-Mar-19,51300815816,"-2,341.61",VOYAGE,CARE ESTABLISHMENT,LD - South Locality,LD - South Cambs - Special Needs,Residential Care
Cambridgeshire County Council,29-Mar-19,51300838840,"-2,341.61",VOYAGE,CARE ESTABLISHMENT,LD - South Locality,LD - South Cambs - Special Needs,Residential Care
Cambridgeshire County Council,29-Mar-19,51300838833,"-2,341.61",VOYAGE,CARE ESTABLISHMENT,LD - South Locality,LD - South Cambs - Special Needs,Residential Care
Cambridgeshire County Council,29-Mar-19,51300815804,"-2,341.61",VOYAGE,CARE ESTABLISHMENT,LD - South Locality,LD - South Cambs - Special Needs,Residential Care
Cambridgeshire County Council,29-Mar-19,51300838835,"-2,341.61",VOYAGE,CARE ESTABLISHMENT,LD - South Locality,LD - South Cambs - Special Needs,Residential Care
Cambridgeshire County Council,01-Mar-19,51300770178,"-2,337.29",DIMENSIONS (UK) LTD,CARE ESTABLISHMENT,LD - South Locality,LD - South Cambs - Special Needs,Supported Living
Cambridgeshire County Council,01-Mar-19,51300738956,"-2,337.29",DIMENSIONS (UK) LTD,CARE ESTABLISHMENT,LD - South Locality,LD - South Cambs - Special Needs,Supported Living
Cambridgeshire County Council,01-Mar-19,51300738964,"-2,337.29",DIMENSIONS (UK) LTD,CARE ESTABLISHMENT,LD - South Locality,LD - South Cambs - Special Needs,Supported Living
Cambridgeshire County Council,01-Mar-19,51300728726,"-2,337.29",DIMENSIONS (UK) LTD,CARE ESTABLISHMENT,LD - South Locality,LD - South Cambs - Special Needs,Supported Living
Cambridgeshire County Council,01-Mar-19,51300728714,"-2,337.29",DIMENSIONS (UK) LTD,CARE ESTABLISHMENT,LD - South Locality,LD - South Cambs - Special Needs,Supported Living
Cambridgeshire County Council,01-Mar-19,51300738951,"-2,337.29",DIMENSIONS (UK) LTD,CARE ESTABLISHMENT,LD - South Locality,LD - South Cambs - Special Needs,Supported Living
Cambridgeshire County Council,01-Mar-19,51300728720,"-2,337.29",DIMENSIONS (UK) LTD,CARE ESTABLISHMENT,LD - South Locality,LD - South Cambs - Special Needs,Supported Living
Cambridgeshire County Council,01-Mar-19,51300770172,"-2,337.29",DIMENSIONS (UK) LTD,CARE ESTABLISHMENT,LD - South Locality,LD - South Cambs - Special Needs,Supported Living
Cambridgeshire County Council,01-Mar-19,51300728716,"-2,337.29",DIMENSIONS (UK) LTD,CARE ESTABLISHMENT,LD - South Locality,LD - South Cambs - Special Needs,Supported Living
Cambridgeshire County Council,01-Mar-19,51300738954,"-2,337.29",DIMENSIONS (UK) LTD,CARE ESTABLISHMENT,LD - South Locality,LD - South Cambs - Special Needs,Supported Living
Cambridgeshire County Council,01-Mar-19,51300770188,"-2,337.29",DIMENSIONS (UK) LTD,CARE ESTABLISHMENT,LD - South Locality,LD - South Cambs - Special Needs,Supported Living
Cambridgeshire County Council,01-Mar-19,51300770189,"-2,337.29",DIMENSIONS (UK) LTD,CARE ESTABLISHMENT,LD - South Locality,LD - South Cambs - Special Needs,Supported Living
Cambridgeshire County Council,01-Mar-19,51300770168,"-2,337.29",DIMENSIONS (UK) LTD,CARE ESTABLISHMENT,LD - South Locality,LD - South Cambs - Special Needs,Supported Living
Cambridgeshire County Council,01-Mar-19,51300770181,"-2,337.29",DIMENSIONS (UK) LTD,CARE ESTABLISHMENT,LD - South Locality,LD - South Cambs - Special Needs,Supported Living
Cambridgeshire County Council,01-Mar-19,51300738949,"-2,337.29",DIMENSIONS (UK) LTD,CARE ESTABLISHMENT,LD - City Locality,LD - City - Special Needs,Supported Living
Cambridgeshire County Council,01-Mar-19,51300738960,"-2,337.29",DIMENSIONS (UK) LTD,CARE ESTABLISHMENT,LD - City Locality,LD - City - Special Needs,Supported Living
Cambridgeshire County Council,01-Mar-19,51300770177,"-2,337.29",DIMENSIONS (UK) LTD,CARE ESTABLISHMENT,LD - City Locality,LD - City - Special Needs,Supported Living
Cambridgeshire County Council,01-Mar-19,51300738948,"-2,337.29",DIMENSIONS (UK) LTD,CARE ESTABLISHMENT,LD - City Locality,LD - City - Special Needs,Supported Living
Cambridgeshire County Council,01-Mar-19,51300738952,"-2,337.29",DIMENSIONS (UK) LTD,CARE ESTABLISHMENT,LD - City Locality,LD - City - Special Needs,Supported Living
Cambridgeshire County Council,01-Mar-19,51300728717,"-2,337.29",DIMENSIONS (UK) LTD,CARE ESTABLISHMENT,LD - City Locality,LD - City - Special Needs,Supported Living
Cambridgeshire County Council,01-Mar-19,51300770171,"-2,337.29",DIMENSIONS (UK) LTD,CARE ESTABLISHMENT,LD - City Locality,LD - City - Special Needs,Supported Living
Cambridgeshire County Council,01-Mar-19,51300728710,"-2,337.29",DIMENSIONS (UK) LTD,CARE ESTABLISHMENT,LD - City Locality,LD - City - Special Needs,Supported Living
Cambridgeshire County Council,01-Mar-19,51300728711,"-2,337.29",DIMENSIONS (UK) LTD,CARE ESTABLISHMENT,LD - City Locality,LD - City - Special Needs,Supported Living
Cambridgeshire County Council,01-Mar-19,51300728730,"-2,337.29",DIMENSIONS (UK) LTD,CARE ESTABLISHMENT,LD - City Locality,LD - City - Special Needs,Supported Living
Cambridgeshire County Council,14-Mar-19,51300781776,"-2,337.29",DIMENSIONS (UK) LTD,CARE ESTABLISHMENT,LD - South Locality,LD - South Cambs - Special Needs,Supported Living
Cambridgeshire County Council,14-Mar-19,51300793627,"-2,337.29",DIMENSIONS (UK) LTD,CARE ESTABLISHMENT,LD - South Locality,LD - South Cambs - Special Needs,Supported Living
Cambridgeshire County Council,14-Mar-19,51300781781,"-2,337.29",DIMENSIONS (UK) LTD,CARE ESTABLISHMENT,LD - South Locality,LD - South Cambs - Special Needs,Supported Living
Cambridgeshire County Council,14-Mar-19,51300793633,"-2,337.29",DIMENSIONS (UK) LTD,CARE ESTABLISHMENT,LD - South Locality,LD - South Cambs - Special Needs,Supported Living
Cambridgeshire County Council,14-Mar-19,51300793622,"-2,337.29",DIMENSIONS (UK) LTD,CARE ESTABLISHMENT,LD - South Locality,LD - South Cambs - Special Needs,Supported Living
Cambridgeshire County Council,14-Mar-19,51300793619,"-2,337.29",DIMENSIONS (UK) LTD,CARE ESTABLISHMENT,LD - South Locality,LD - South Cambs - Special Needs,Supported Living
Cambridgeshire County Council,14-Mar-19,51300793623,"-2,337.29",DIMENSIONS (UK) LTD,CARE ESTABLISHMENT,LD - South Locality,LD - South Cambs - Special Needs,Supported Living
Cambridgeshire County Council,14-Mar-19,51300781767,"-2,337.29",DIMENSIONS (UK) LTD,CARE ESTABLISHMENT,LD - City Locality,LD - City - Special Needs,Supported Living
Cambridgeshire County Council,14-Mar-19,51300781766,"-2,337.29",DIMENSIONS (UK) LTD,CARE ESTABLISHMENT,LD - City Locality,LD - City - Special Needs,Supported Living
Cambridgeshire County Council,14-Mar-19,51300781775,"-2,337.29",DIMENSIONS (UK) LTD,CARE ESTABLISHMENT,LD - City Locality,LD - City - Special Needs,Supported Living
Cambridgeshire County Council,14-Mar-19,51300793624,"-2,337.29",DIMENSIONS (UK) LTD,CARE ESTABLISHMENT,LD - City Locality,LD - City - Special Needs,Supported Living
Cambridgeshire County Council,14-Mar-19,51300793634,"-2,337.29",DIMENSIONS (UK) LTD,CARE ESTABLISHMENT,LD - City Locality,LD - City - Special Needs,Supported Living
Cambridgeshire County Council,14-Mar-19,51300781774,"-2,337.29",DIMENSIONS (UK) LTD,CARE ESTABLISHMENT,LD - City Locality,LD - City - Special Needs,Supported Living
Cambridgeshire County Council,14-Mar-19,51300781764,"-2,337.29",DIMENSIONS (UK) LTD,CARE ESTABLISHMENT,LD - City Locality,LD - City - Special Needs,Supported Living
Cambridgeshire County Council,14-Mar-19,51300793625,"-2,337.29",DIMENSIONS (UK) LTD,CARE ESTABLISHMENT,LD - City Locality,LD - City - Special Needs,Supported Living
Cambridgeshire County Council,14-Mar-19,51300781770,"-2,337.29",DIMENSIONS (UK) LTD,CARE ESTABLISHMENT,LD - City Locality,LD - City - Special Needs,Supported Living
Cambridgeshire County Council,21-Mar-19,51300803867,"-2,337.29",DIMENSIONS (UK) LTD,CARE ESTABLISHMENT,LD - South Locality,LD - South Cambs - Special Needs,Supported Living
Cambridgeshire County Council,21-Mar-19,51300803874,"-2,337.29",DIMENSIONS (UK) LTD,CARE ESTABLISHMENT,LD - South Locality,LD - South Cambs - Special Needs,Supported Living
Cambridgeshire County Council,21-Mar-19,51300803862,"-2,337.29",DIMENSIONS (UK) LTD,CARE ESTABLISHMENT,LD - South Locality,LD - South Cambs - Special Needs,Supported Living
Cambridgeshire County Council,21-Mar-19,51300803859,"-2,337.29",DIMENSIONS (UK) LTD,CARE ESTABLISHMENT,LD - South Locality,LD - South Cambs - Special Needs,Supported Living
Cambridgeshire County Council,21-Mar-19,51300803872,"-2,337.29",DIMENSIONS (UK) LTD,CARE ESTABLISHMENT,LD - South Locality,LD - South Cambs - Special Needs,Supported Living
Cambridgeshire County Council,21-Mar-19,51300803871,"-2,337.29",DIMENSIONS (UK) LTD,CARE ESTABLISHMENT,LD - South Locality,LD - South Cambs - Special Needs,Supported Living
Cambridgeshire County Council,21-Mar-19,51300803863,"-2,337.29",DIMENSIONS (UK) LTD,CARE ESTABLISHMENT,LD - City Locality,LD - City - Special Needs,Supported Living
Cambridgeshire County Council,21-Mar-19,51300803860,"-2,337.29",DIMENSIONS (UK) LTD,CARE ESTABLISHMENT,LD - City Locality,LD - City - Special Needs,Supported Living
Cambridgeshire County Council,29-Mar-19,51300832107,"-2,337.29",DIMENSIONS (UK) LTD,CARE ESTABLISHMENT,LD - South Locality,LD - South Cambs - Special Needs,Supported Living
Cambridgeshire County Council,29-Mar-19,51300832104,"-2,337.29",DIMENSIONS (UK) LTD,CARE ESTABLISHMENT,LD - South Locality,LD - South Cambs - Special Needs,Supported Living
Cambridgeshire County Council,29-Mar-19,51300832115,"-2,337.29",DIMENSIONS (UK) LTD,CARE ESTABLISHMENT,LD - South Locality,LD - South Cambs - Special Needs,Supported Living
Cambridgeshire County Council,29-Mar-19,51300832118,"-2,337.29",DIMENSIONS (UK) LTD,CARE ESTABLISHMENT,LD - South Locality,LD - South Cambs - Special Needs,Supported Living
Cambridgeshire County Council,29-Mar-19,51300832116,"-2,337.29",DIMENSIONS (UK) LTD,CARE ESTABLISHMENT,LD - City Locality,LD - City - Special Needs,Supported Living
Cambridgeshire County Council,29-Mar-19,51300832098,"-2,337.29",DIMENSIONS (UK) LTD,CARE ESTABLISHMENT,LD - City Locality,LD - City - Special Needs,Supported Living
Cambridgeshire County Council,29-Mar-19,51300832112,"-2,337.29",DIMENSIONS (UK) LTD,CARE ESTABLISHMENT,LD - City Locality,LD - City - Special Needs,Supported Living
Cambridgeshire County Council,29-Mar-19,51300832109,"-2,337.29",DIMENSIONS (UK) LTD,CARE ESTABLISHMENT,LD - City Locality,LD - City - Special Needs,Supported Living
Cambridgeshire County Council,14-Mar-19,51300570075,"-2,305.92",COSTAIN INTEGRATED TECHNOLOGY SOLUTIONS LIMITED,COMPANY,Highways - IHMC,Highways - IHMC,Construction - External Professional Fees
Cambridgeshire County Council,29-Mar-19,51300813850,"-2,299.61",ALDERTON HOUSE,CARE ESTABLISHMENT,LD - East Locality,LD - East Cambs - Special Needs,Residential Care
Cambridgeshire County Council,29-Mar-19,51300813844,"-2,299.61",ALDERTON HOUSE,CARE ESTABLISHMENT,LD - East Locality,LD - East Cambs - Special Needs,Residential Care
Cambridgeshire County Council,12-Mar-19,51300786277,"-2,162.00",NORTH WEST ANGLIA NHS FOUNDATION TRUST,TRUST (OTHER),Health Care Library,Public Health Advice - Health Care Library,Professional Fees and Hired Services
Cambridgeshire County Council,01-Mar-19,51300763669,"-2,146.52",ALDERTON HOUSE,CARE ESTABLISHMENT,LD - Young Adults Team,LD - Young Adults - Special Needs,Residential Care
Cambridgeshire County Council,01-Mar-19,51300763701,"-2,146.52",ALDERTON HOUSE,CARE ESTABLISHMENT,LD - Young Adults Team,LD - Young Adults - Special Needs,Residential Care
Cambridgeshire County Council,29-Mar-19,51300833273,"-2,142.38",VOYAGE,CARE ESTABLISHMENT,LD - City Locality,LD - City - Special Needs,Residential Care
Cambridgeshire County Council,29-Mar-19,51300833280,"-2,142.38",VOYAGE,CARE ESTABLISHMENT,LD - City Locality,LD - City - Special Needs,Residential Care
Cambridgeshire County Council,29-Mar-19,51300833259,"-2,142.38",VOYAGE,CARE ESTABLISHMENT,LD - City Locality,LD - City - Special Needs,Residential Care
Cambridgeshire County Council,29-Mar-19,51300833258,"-2,142.38",VOYAGE,CARE ESTABLISHMENT,LD - City Locality,LD - City - Special Needs,Residential Care
Cambridgeshire County Council,29-Mar-19,51300833253,"-2,142.38",VOYAGE,CARE ESTABLISHMENT,LD - City Locality,LD - City - Special Needs,Residential Care
Cambridgeshire County Council,29-Mar-19,51300833267,"-2,142.38",VOYAGE,CARE ESTABLISHMENT,LD - City Locality,LD - City - Special Needs,Residential Care
Cambridgeshire County Council,29-Mar-19,51300833268,"-2,142.38",VOYAGE,CARE ESTABLISHMENT,LD - City Locality,LD - City - Special Needs,Residential Care
Cambridgeshire County Council,29-Mar-19,51300811134,"-2,142.38",VOYAGE,CARE ESTABLISHMENT,LD - South Locality,LD - South Cambs - Special Needs,Residential Care
Cambridgeshire County Council,29-Mar-19,51300811135,"-2,142.38",VOYAGE,CARE ESTABLISHMENT,LD - South Locality,LD - South Cambs - Special Needs,Residential Care
Cambridgeshire County Council,29-Mar-19,51300811152,"-2,142.38",VOYAGE,CARE ESTABLISHMENT,LD - South Locality,LD - South Cambs - Special Needs,Residential Care
Cambridgeshire County Council,29-Mar-19,51300811122,"-2,142.38",VOYAGE,CARE ESTABLISHMENT,LD - South Locality,LD - South Cambs - Special Needs,Residential Care
Cambridgeshire County Council,29-Mar-19,51300811110,"-2,142.38",VOYAGE,CARE ESTABLISHMENT,LD - South Locality,LD - South Cambs - Special Needs,Residential Care
Cambridgeshire County Council,29-Mar-19,51300811138,"-2,142.38",VOYAGE,CARE ESTABLISHMENT,LD - South Locality,LD - South Cambs - Special Needs,Residential Care
Cambridgeshire County Council,29-Mar-19,51300811160,"-2,142.38",VOYAGE,CARE ESTABLISHMENT,LD - South Locality,LD - South Cambs - Special Needs,Residential Care
Cambridgeshire County Council,04-Mar-19,51300753603,"-2,112.00",BUTLERS (ROYSTON) LTD,TRADE SUPPLIER,Home to School Transport - Special,Home to School Transport Special - Post 16,Home to School - Contract
Cambridgeshire County Council,29-Mar-19,51300818483,"-2,088.23",VOYAGE (LICHFIELD),CARE ESTABLISHMENT,LD - Fenland Locality,LD - Fenland  - Special Needs,Residential Care
Cambridgeshire County Council,29-Mar-19,51300818492,"-2,088.23",VOYAGE (LICHFIELD),CARE ESTABLISHMENT,LD - Fenland Locality,LD - Fenland  - Special Needs,Residential Care
Cambridgeshire County Council,29-Mar-19,51300818489,"-2,088.23",VOYAGE (LICHFIELD),CARE ESTABLISHMENT,LD - Fenland Locality,LD - Fenland  - Special Needs,Residential Care
Cambridgeshire County Council,29-Mar-19,51300818486,"-2,088.23",VOYAGE (LICHFIELD),CARE ESTABLISHMENT,LD - Fenland Locality,LD - Fenland  - Special Needs,Residential Care
Cambridgeshire County Council,29-Mar-19,51300818491,"-2,088.23",VOYAGE (LICHFIELD),CARE ESTABLISHMENT,LD - Fenland Locality,LD - Fenland  - Special Needs,Residential Care
Cambridgeshire County Council,29-Mar-19,51300818472,"-2,088.23",VOYAGE (LICHFIELD),CARE ESTABLISHMENT,LD - Fenland Locality,LD - Fenland  - Special Needs,Residential Care
Cambridgeshire County Council,29-Mar-19,51300818471,"-2,088.23",VOYAGE (LICHFIELD),CARE ESTABLISHMENT,LD - Fenland Locality,LD - Fenland  - Special Needs,Residential Care
Cambridgeshire County Council,29-Mar-19,51300825929,"-2,061.06",VOYAGE,CARE ESTABLISHMENT,LD - East Locality,LD - East Cambs - Special Needs,Residential Care
Cambridgeshire County Council,29-Mar-19,51300825930,"-2,061.06",VOYAGE,CARE ESTABLISHMENT,LD - East Locality,LD - East Cambs - Special Needs,Residential Care
Cambridgeshire County Council,29-Mar-19,51300818540,"-2,047.53",VOYAGE,CARE ESTABLISHMENT,LD - East Locality,LD - East Cambs - Care,Residential Care
Cambridgeshire County Council,29-Mar-19,51300818532,"-2,047.53",VOYAGE,CARE ESTABLISHMENT,LD - East Locality,LD - East Cambs - Care,Residential Care
Cambridgeshire County Council,29-Mar-19,51300818524,"-2,047.53",VOYAGE,CARE ESTABLISHMENT,LD - East Locality,LD - East Cambs - Care,Residential Care
Cambridgeshire County Council,29-Mar-19,51300818537,"-2,047.53",VOYAGE,CARE ESTABLISHMENT,LD - East Locality,LD - East Cambs - Care,Residential Care
Cambridgeshire County Council,29-Mar-19,51300818530,"-2,047.53",VOYAGE,CARE ESTABLISHMENT,LD - East Locality,LD - East Cambs - Care,Residential Care
Cambridgeshire County Council,29-Mar-19,51300818535,"-2,047.53",VOYAGE,CARE ESTABLISHMENT,LD - East Locality,LD - East Cambs - Care,Residential Care
Cambridgeshire County Council,29-Mar-19,51300818533,"-2,047.53",VOYAGE,CARE ESTABLISHMENT,LD - East Locality,LD - East Cambs - Care,Residential Care
Cambridgeshire County Council,29-Mar-19,51300818543,"-2,047.53",VOYAGE,CARE ESTABLISHMENT,LD - East Locality,LD - East Cambs - Care,Residential Care
Cambridgeshire County Council,29-Mar-19,51300813855,"-2,016.93",ALDERTON HOUSE,CARE ESTABLISHMENT,LD - East Locality,LD - East Cambs - Special Needs,Residential Care
Cambridgeshire County Council,29-Mar-19,51300813858,"-2,016.93",ALDERTON HOUSE,CARE ESTABLISHMENT,LD - East Locality,LD - East Cambs - Special Needs,Residential Care
Cambridgeshire County Council,01-Mar-19,51300738043,"-2,011.65",VOYAGE,CARE ESTABLISHMENT,LD - City Locality,LD - City - Special Needs,Residential Care
Cambridgeshire County Council,29-Mar-19,51300836208,"-2,007.09",VOYAGE,CARE ESTABLISHMENT,LD - South Locality,LD - South Cambs - Special Needs,Residential Care
Cambridgeshire County Council,29-Mar-19,51300815806,"-2,007.09",VOYAGE,CARE ESTABLISHMENT,LD - South Locality,LD - South Cambs - Special Needs,Residential Care
Cambridgeshire County Council,29-Mar-19,51300838836,"-2,007.09",VOYAGE,CARE ESTABLISHMENT,LD - South Locality,LD - South Cambs - Special Needs,Residential Care
Cambridgeshire County Council,29-Mar-19,51300815336,"-1,972.10",VOYAGE,CARE ESTABLISHMENT,LD - East Locality,LD - East Cambs - Special Needs,Residential Care
Cambridgeshire County Council,29-Mar-19,51300815337,"-1,972.10",VOYAGE,CARE ESTABLISHMENT,LD - East Locality,LD - East Cambs - Special Needs,Residential Care
Cambridgeshire County Council,01-Mar-19,51300746396,"-1,971.09",ALDERTON HOUSE,CARE ESTABLISHMENT,LD - East Locality,LD - East Cambs - Special Needs,Residential Care
Cambridgeshire County Council,29-Mar-19,51300840298,"-1,954.90",VOYAGE,CARE ESTABLISHMENT,LD - South Locality,LD - South Cambs - Special Needs,Residential Care
Cambridgeshire County Council,29-Mar-19,51300840288,"-1,954.90",VOYAGE,CARE ESTABLISHMENT,LD - South Locality,LD - South Cambs - Special Needs,Residential Care
Cambridgeshire County Council,29-Mar-19,51300826197,"-1,883.09",VOYAGE,CARE ESTABLISHMENT,LD - South Locality,LD - South Cambs - Special Needs,Residential Care
Cambridgeshire County Council,29-Mar-19,51300826204,"-1,883.09",VOYAGE,CARE ESTABLISHMENT,LD - South Locality,LD - South Cambs - Special Needs,Residential Care
Cambridgeshire County Council,29-Mar-19,51300826214,"-1,883.09",VOYAGE,CARE ESTABLISHMENT,LD - South Locality,LD - South Cambs - Special Needs,Residential Care
Cambridgeshire County Council,29-Mar-19,51300826191,"-1,883.09",VOYAGE,CARE ESTABLISHMENT,LD - South Locality,LD - South Cambs - Special Needs,Residential Care
Cambridgeshire County Council,29-Mar-19,51300826186,"-1,883.09",VOYAGE,CARE ESTABLISHMENT,LD - South Locality,LD - South Cambs - Special Needs,Residential Care
Cambridgeshire County Council,29-Mar-19,51300826189,"-1,883.09",VOYAGE,CARE ESTABLISHMENT,LD - South Locality,LD - South Cambs - Special Needs,Residential Care
Cambridgeshire County Council,29-Mar-19,51300826199,"-1,883.09",VOYAGE,CARE ESTABLISHMENT,LD - South Locality,LD - South Cambs - Special Needs,Residential Care
Cambridgeshire County Council,01-Mar-19,51300763769,"-1,839.87",ALDERTON HOUSE,CARE ESTABLISHMENT,LD - Young Adults Team,LD - Young Adults - Special Needs,Residential Care
Cambridgeshire County Council,29-Mar-19,51300836179,"-1,839.69",VOYAGE,CARE ESTABLISHMENT,LD - City Locality,LD - City - Special Needs,Residential Care
Cambridgeshire County Council,29-Mar-19,51300836173,"-1,839.69",VOYAGE,CARE ESTABLISHMENT,LD - City Locality,LD - City - Special Needs,Residential Care
Cambridgeshire County Council,29-Mar-19,51300836183,"-1,839.69",VOYAGE,CARE ESTABLISHMENT,LD - City Locality,LD - City - Special Needs,Residential Care
Cambridgeshire County Council,29-Mar-19,51300836186,"-1,839.69",VOYAGE,CARE ESTABLISHMENT,LD - City Locality,LD - City - Special Needs,Residential Care
Cambridgeshire County Council,29-Mar-19,51300836175,"-1,839.69",VOYAGE,CARE ESTABLISHMENT,LD - City Locality,LD - City - Special Needs,Residential Care
Cambridgeshire County Council,29-Mar-19,51300836174,"-1,839.69",VOYAGE,CARE ESTABLISHMENT,LD - City Locality,LD - City - Special Needs,Residential Care
Cambridgeshire County Council,29-Mar-19,51300836177,"-1,839.69",VOYAGE,CARE ESTABLISHMENT,LD - City Locality,LD - City - Special Needs,Residential Care
Cambridgeshire County Council,29-Mar-19,51300833272,"-1,836.33",VOYAGE,CARE ESTABLISHMENT,LD - City Locality,LD - City - Special Needs,Residential Care
Cambridgeshire County Council,29-Mar-19,51300811149,"-1,836.33",VOYAGE,CARE ESTABLISHMENT,LD - South Locality,LD - South Cambs - Special Needs,Residential Care
Cambridgeshire County Council,29-Mar-19,51300818467,"-1,789.91",VOYAGE (LICHFIELD),CARE ESTABLISHMENT,LD - Fenland Locality,LD - Fenland  - Special Needs,Residential Care
Cambridgeshire County Council,29-Mar-19,51300840776,"-1,713.96",ALDERTON HOUSE,CARE ESTABLISHMENT,LD - East Locality,LD - East Cambs - Special Needs,Residential Care
Cambridgeshire County Council,29-Mar-19,51300840771,"-1,713.96",ALDERTON HOUSE,CARE ESTABLISHMENT,LD - East Locality,LD - East Cambs - Special Needs,Residential Care
Cambridgeshire County Council,29-Mar-19,51300840751,"-1,713.96",ALDERTON HOUSE,CARE ESTABLISHMENT,LD - East Locality,LD - East Cambs - Special Needs,Residential Care
Cambridgeshire County Council,01-Mar-19,51300728009,"-1,711.36",AFFINITY TRUST,CARE ESTABLISHMENT,LD - Fenland Locality,LD - Fenland  - Care,Supported Living
Cambridgeshire County Council,01-Mar-19,51300728007,"-1,711.36",AFFINITY TRUST,CARE ESTABLISHMENT,LD - Fenland Locality,LD - Fenland  - Care,Supported Living
Cambridgeshire County Council,01-Mar-19,51300728006,"-1,711.36",AFFINITY TRUST,CARE ESTABLISHMENT,LD - Fenland Locality,LD - Fenland  - Care,Supported Living
Cambridgeshire County Council,01-Mar-19,51300738166,"-1,711.36",AFFINITY TRUST,CARE ESTABLISHMENT,LD - Fenland Locality,LD - Fenland  - Care,Supported Living
Cambridgeshire County Council,01-Mar-19,51300717929,"-1,711.36",AFFINITY TRUST,CARE ESTABLISHMENT,LD - Fenland Locality,LD - Fenland  - Care,Supported Living
Cambridgeshire County Council,01-Mar-19,51300728011,"-1,711.36",AFFINITY TRUST,CARE ESTABLISHMENT,LD - Fenland Locality,LD - Fenland  - Care,Supported Living
Cambridgeshire County Council,01-Mar-19,51300768430,"-1,711.36",AFFINITY TRUST,CARE ESTABLISHMENT,LD - Fenland Locality,LD - Fenland  - Care,Supported Living
Cambridgeshire County Council,01-Mar-19,51300728023,"-1,711.36",AFFINITY TRUST,CARE ESTABLISHMENT,LD - Fenland Locality,LD - Fenland  - Care,Supported Living
Cambridgeshire County Council,01-Mar-19,51300738152,"-1,711.36",AFFINITY TRUST,CARE ESTABLISHMENT,LD - Fenland Locality,LD - Fenland  - Care,Supported Living
Cambridgeshire County Council,01-Mar-19,51300768401,"-1,711.36",AFFINITY TRUST,CARE ESTABLISHMENT,LD - Fenland Locality,LD - Fenland  - Care,Supported Living
Cambridgeshire County Council,01-Mar-19,51300768428,"-1,711.36",AFFINITY TRUST,CARE ESTABLISHMENT,LD - Fenland Locality,LD - Fenland  - Care,Supported Living
Cambridgeshire County Council,01-Mar-19,51300727994,"-1,711.36",AFFINITY TRUST,CARE ESTABLISHMENT,LD - Fenland Locality,LD - Fenland  - Care,Supported Living
Cambridgeshire County Council,01-Mar-19,51300717925,"-1,711.36",AFFINITY TRUST,CARE ESTABLISHMENT,LD - Fenland Locality,LD - Fenland  - Care,Supported Living
Cambridgeshire County Council,01-Mar-19,51300768402,"-1,711.36",AFFINITY TRUST,CARE ESTABLISHMENT,LD - Fenland Locality,LD - Fenland  - Care,Supported Living
Cambridgeshire County Council,01-Mar-19,51300768417,"-1,711.36",AFFINITY TRUST,CARE ESTABLISHMENT,LD - Fenland Locality,LD - Fenland  - Care,Supported Living
Cambridgeshire County Council,01-Mar-19,51300727999,"-1,711.36",AFFINITY TRUST,CARE ESTABLISHMENT,LD - Fenland Locality,LD - Fenland  - Care,Supported Living
Cambridgeshire County Council,01-Mar-19,51300738181,"-1,711.36",AFFINITY TRUST,CARE ESTABLISHMENT,LD - Fenland Locality,LD - Fenland  - Care,Supported Living
Cambridgeshire County Council,01-Mar-19,51300717903,"-1,711.36",AFFINITY TRUST,CARE ESTABLISHMENT,LD - Fenland Locality,LD - Fenland  - Care,Supported Living
Cambridgeshire County Council,01-Mar-19,51300717901,"-1,711.36",AFFINITY TRUST,CARE ESTABLISHMENT,LD - Fenland Locality,LD - Fenland  - Care,Supported Living
Cambridgeshire County Council,01-Mar-19,51300768435,"-1,711.36",AFFINITY TRUST,CARE ESTABLISHMENT,LD - Fenland Locality,LD - Fenland  - Care,Supported Living
Cambridgeshire County Council,01-Mar-19,51300768395,"-1,711.36",AFFINITY TRUST,CARE ESTABLISHMENT,LD - Fenland Locality,LD - Fenland  - Care,Supported Living
Cambridgeshire County Council,01-Mar-19,51300768414,"-1,711.36",AFFINITY TRUST,CARE ESTABLISHMENT,LD - Fenland Locality,LD - Fenland  - Care,Supported Living
Cambridgeshire County Council,01-Mar-19,51300717906,"-1,711.36",AFFINITY TRUST,CARE ESTABLISHMENT,LD - Fenland Locality,LD - Fenland  - Care,Supported Living
Cambridgeshire County Council,01-Mar-19,51300738164,"-1,711.36",AFFINITY TRUST,CARE ESTABLISHMENT,LD - Fenland Locality,LD - Fenland  - Care,Supported Living
Cambridgeshire County Council,01-Mar-19,51300768431,"-1,711.36",AFFINITY TRUST,CARE ESTABLISHMENT,LD - Fenland Locality,LD - Fenland  - Care,Supported Living
Cambridgeshire County Council,01-Mar-19,51300738168,"-1,711.36",AFFINITY TRUST,CARE ESTABLISHMENT,LD - Fenland Locality,LD - Fenland  - Care,Supported Living
Cambridgeshire County Council,01-Mar-19,51300728020,"-1,711.36",AFFINITY TRUST,CARE ESTABLISHMENT,LD - Fenland Locality,LD - Fenland  - Care,Supported Living
Cambridgeshire County Council,01-Mar-19,51300728001,"-1,711.36",AFFINITY TRUST,CARE ESTABLISHMENT,LD - Fenland Locality,LD - Fenland  - Care,Supported Living
Cambridgeshire County Council,01-Mar-19,51300717909,"-1,711.36",AFFINITY TRUST,CARE ESTABLISHMENT,LD - Fenland Locality,LD - Fenland  - Care,Supported Living
Cambridgeshire County Council,01-Mar-19,51300728014,"-1,711.36",AFFINITY TRUST,CARE ESTABLISHMENT,LD - Fenland Locality,LD - Fenland  - Care,Supported Living
Cambridgeshire County Council,01-Mar-19,51300768404,"-1,711.36",AFFINITY TRUST,CARE ESTABLISHMENT,LD - Fenland Locality,LD - Fenland  - Care,Supported Living
Cambridgeshire County Council,01-Mar-19,51300738173,"-1,711.36",AFFINITY TRUST,CARE ESTABLISHMENT,LD - Fenland Locality,LD - Fenland  - Care,Supported Living
Cambridgeshire County Council,01-Mar-19,51300738163,"-1,711.36",AFFINITY TRUST,CARE ESTABLISHMENT,LD - Fenland Locality,LD - Fenland  - Care,Supported Living
Cambridgeshire County Council,01-Mar-19,51300717914,"-1,711.36",AFFINITY TRUST,CARE ESTABLISHMENT,LD - Fenland Locality,LD - Fenland  - Special Needs,Supported Living
Cambridgeshire County Council,01-Mar-19,51300727998,"-1,711.36",AFFINITY TRUST,CARE ESTABLISHMENT,LD - Fenland Locality,LD - Fenland  - Special Needs,Supported Living
Cambridgeshire County Council,01-Mar-19,51300717917,"-1,711.36",AFFINITY TRUST,CARE ESTABLISHMENT,LD - Fenland Locality,LD - Fenland  - Special Needs,Supported Living
Cambridgeshire County Council,01-Mar-19,51300738174,"-1,711.36",AFFINITY TRUST,CARE ESTABLISHMENT,LD - Fenland Locality,LD - Fenland  - Special Needs,Supported Living
Cambridgeshire County Council,01-Mar-19,51300768405,"-1,711.36",AFFINITY TRUST,CARE ESTABLISHMENT,LD - Fenland Locality,LD - Fenland  - Special Needs,Supported Living
Cambridgeshire County Council,01-Mar-19,51300768418,"-1,711.36",AFFINITY TRUST,CARE ESTABLISHMENT,LD - Fenland Locality,LD - Fenland  - Special Needs,Supported Living
Cambridgeshire County Council,01-Mar-19,51300717919,"-1,711.36",AFFINITY TRUST,CARE ESTABLISHMENT,LD - Fenland Locality,LD - Fenland  - Special Needs,Supported Living
Cambridgeshire County Council,01-Mar-19,51300728022,"-1,711.36",AFFINITY TRUST,CARE ESTABLISHMENT,LD - Fenland Locality,LD - Fenland  - Special Needs,Supported Living
Cambridgeshire County Council,01-Mar-19,51300738162,"-1,711.36",AFFINITY TRUST,CARE ESTABLISHMENT,LD - Fenland Locality,LD - Fenland  - Special Needs,Supported Living
Cambridgeshire County Council,01-Mar-19,51300717910,"-1,711.36",AFFINITY TRUST,CARE ESTABLISHMENT,LD - Fenland Locality,LD - Fenland  - Special Needs,Supported Living
Cambridgeshire County Council,01-Mar-19,51300738171,"-1,711.36",AFFINITY TRUST,CARE ESTABLISHMENT,LD - Fenland Locality,LD - Fenland  - Special Needs,Supported Living
Cambridgeshire County Council,01-Mar-19,51300738150,"-1,711.36",AFFINITY TRUST,CARE ESTABLISHMENT,LD - Fenland Locality,LD - Fenland  - Special Needs,Supported Living
Cambridgeshire County Council,01-Mar-19,51300738153,"-1,711.36",AFFINITY TRUST,CARE ESTABLISHMENT,LD - Fenland Locality,LD - Fenland  - Special Needs,Supported Living
Cambridgeshire County Council,01-Mar-19,51300717921,"-1,711.36",AFFINITY TRUST,CARE ESTABLISHMENT,LD - Fenland Locality,LD - Fenland  - Special Needs,Supported Living
Cambridgeshire County Council,01-Mar-19,51300738148,"-1,711.36",AFFINITY TRUST,CARE ESTABLISHMENT,LD - Fenland Locality,LD - Fenland  - Special Needs,Supported Living
Cambridgeshire County Council,01-Mar-19,51300728003,"-1,711.36",AFFINITY TRUST,CARE ESTABLISHMENT,LD - Fenland Locality,LD - Fenland  - Special Needs,Supported Living
Cambridgeshire County Council,01-Mar-19,51300768415,"-1,711.36",AFFINITY TRUST,CARE ESTABLISHMENT,LD - Fenland Locality,LD - Fenland  - Special Needs,Supported Living
Cambridgeshire County Council,01-Mar-19,51300717912,"-1,711.36",AFFINITY TRUST,CARE ESTABLISHMENT,LD - Fenland Locality,LD - Fenland  - Special Needs,Supported Living
Cambridgeshire County Council,01-Mar-19,51300728005,"-1,711.36",AFFINITY TRUST,CARE ESTABLISHMENT,LD - Fenland Locality,LD - Fenland  - Special Needs,Supported Living
Cambridgeshire County Council,01-Mar-19,51300738167,"-1,711.36",AFFINITY TRUST,CARE ESTABLISHMENT,LD - Fenland Locality,LD - Fenland  - Special Needs,Supported Living
Cambridgeshire County Council,01-Mar-19,51300738156,"-1,711.36",AFFINITY TRUST,CARE ESTABLISHMENT,LD - Fenland Locality,LD - Fenland  - Special Needs,Supported Living
Cambridgeshire County Council,01-Mar-19,51300717933,"-1,711.36",AFFINITY TRUST,CARE ESTABLISHMENT,LD - Fenland Locality,LD - Fenland  - Special Needs,Supported Living
Cambridgeshire County Council,01-Mar-19,51300728018,"-1,711.36",AFFINITY TRUST,CARE ESTABLISHMENT,LD - Fenland Locality,LD - Fenland  - Special Needs,Supported Living
Cambridgeshire County Council,01-Mar-19,51300768423,"-1,711.36",AFFINITY TRUST,CARE ESTABLISHMENT,LD - Fenland Locality,LD - Fenland  - Special Needs,Supported Living
Cambridgeshire County Council,01-Mar-19,51300738155,"-1,711.36",AFFINITY TRUST,CARE ESTABLISHMENT,LD - Fenland Locality,LD - Fenland  - Special Needs,Supported Living
Cambridgeshire County Council,01-Mar-19,51300768433,"-1,711.36",AFFINITY TRUST,CARE ESTABLISHMENT,LD - Fenland Locality,LD - Fenland  - Special Needs,Supported Living
Cambridgeshire County Council,01-Mar-19,51300768397,"-1,711.36",AFFINITY TRUST,CARE ESTABLISHMENT,LD - Fenland Locality,LD - Fenland  - Special Needs,Supported Living
Cambridgeshire County Council,01-Mar-19,51300717918,"-1,711.36",AFFINITY TRUST,CARE ESTABLISHMENT,LD - Fenland Locality,LD - Fenland  - Special Needs,Supported Living
Cambridgeshire County Council,01-Mar-19,51300727997,"-1,711.36",AFFINITY TRUST,CARE ESTABLISHMENT,LD - Fenland Locality,LD - Fenland  - Special Needs,Supported Living
Cambridgeshire County Council,01-Mar-19,51300717904,"-1,711.36",AFFINITY TRUST,CARE ESTABLISHMENT,LD - Fenland Locality,LD - Fenland  - Special Needs,Supported Living
Cambridgeshire County Council,01-Mar-19,51300717926,"-1,711.36",AFFINITY TRUST,CARE ESTABLISHMENT,LD - Fenland Locality,LD - Fenland  - Special Needs,Supported Living
Cambridgeshire County Council,29-Mar-19,51300830332,"-1,711.36",AFFINITY TRUST,CARE ESTABLISHMENT,LD - Fenland Locality,LD - Fenland  - Care,Supported Living
Cambridgeshire County Council,29-Mar-19,51300830320,"-1,711.36",AFFINITY TRUST,CARE ESTABLISHMENT,LD - Fenland Locality,LD - Fenland  - Care,Supported Living
Cambridgeshire County Council,29-Mar-19,51300792703,"-1,711.36",AFFINITY TRUST,CARE ESTABLISHMENT,LD - Fenland Locality,LD - Fenland  - Care,Supported Living
Cambridgeshire County Council,29-Mar-19,51300792693,"-1,711.36",AFFINITY TRUST,CARE ESTABLISHMENT,LD - Fenland Locality,LD - Fenland  - Care,Supported Living
Cambridgeshire County Council,29-Mar-19,51300792692,"-1,711.36",AFFINITY TRUST,CARE ESTABLISHMENT,LD - Fenland Locality,LD - Fenland  - Care,Supported Living
Cambridgeshire County Council,29-Mar-19,51300792712,"-1,711.36",AFFINITY TRUST,CARE ESTABLISHMENT,LD - Fenland Locality,LD - Fenland  - Care,Supported Living
Cambridgeshire County Council,29-Mar-19,51300830328,"-1,711.36",AFFINITY TRUST,CARE ESTABLISHMENT,LD - Fenland Locality,LD - Fenland  - Care,Supported Living
Cambridgeshire County Council,29-Mar-19,51300780837,"-1,711.36",AFFINITY TRUST,CARE ESTABLISHMENT,LD - Fenland Locality,LD - Fenland  - Care,Supported Living
Cambridgeshire County Council,29-Mar-19,51300792713,"-1,711.36",AFFINITY TRUST,CARE ESTABLISHMENT,LD - Fenland Locality,LD - Fenland  - Care,Supported Living
Cambridgeshire County Council,29-Mar-19,51300792715,"-1,711.36",AFFINITY TRUST,CARE ESTABLISHMENT,LD - Fenland Locality,LD - Fenland  - Care,Supported Living
Cambridgeshire County Council,29-Mar-19,51300803084,"-1,711.36",AFFINITY TRUST,CARE ESTABLISHMENT,LD - Fenland Locality,LD - Fenland  - Care,Supported Living
Cambridgeshire County Council,29-Mar-19,51300830303,"-1,711.36",AFFINITY TRUST,CARE ESTABLISHMENT,LD - Fenland Locality,LD - Fenland  - Care,Supported Living
Cambridgeshire County Council,29-Mar-19,51300803077,"-1,711.36",AFFINITY TRUST,CARE ESTABLISHMENT,LD - Fenland Locality,LD - Fenland  - Care,Supported Living
Cambridgeshire County Council,29-Mar-19,51300792695,"-1,711.36",AFFINITY TRUST,CARE ESTABLISHMENT,LD - Fenland Locality,LD - Fenland  - Care,Supported Living
Cambridgeshire County Council,29-Mar-19,51300803096,"-1,711.36",AFFINITY TRUST,CARE ESTABLISHMENT,LD - Fenland Locality,LD - Fenland  - Care,Supported Living
Cambridgeshire County Council,29-Mar-19,51300803097,"-1,711.36",AFFINITY TRUST,CARE ESTABLISHMENT,LD - Fenland Locality,LD - Fenland  - Care,Supported Living
Cambridgeshire County Council,29-Mar-19,51300803086,"-1,711.36",AFFINITY TRUST,CARE ESTABLISHMENT,LD - Fenland Locality,LD - Fenland  - Care,Supported Living
Cambridgeshire County Council,29-Mar-19,51300803108,"-1,711.36",AFFINITY TRUST,CARE ESTABLISHMENT,LD - Fenland Locality,LD - Fenland  - Care,Supported Living
Cambridgeshire County Council,29-Mar-19,51300780829,"-1,711.36",AFFINITY TRUST,CARE ESTABLISHMENT,LD - Fenland Locality,LD - Fenland  - Care,Supported Living
Cambridgeshire County Council,29-Mar-19,51300780841,"-1,711.36",AFFINITY TRUST,CARE ESTABLISHMENT,LD - Fenland Locality,LD - Fenland  - Care,Supported Living
Cambridgeshire County Council,29-Mar-19,51300792691,"-1,711.36",AFFINITY TRUST,CARE ESTABLISHMENT,LD - Fenland Locality,LD - Fenland  - Care,Supported Living
Cambridgeshire County Council,29-Mar-19,51300792687,"-1,711.36",AFFINITY TRUST,CARE ESTABLISHMENT,LD - Fenland Locality,LD - Fenland  - Care,Supported Living
Cambridgeshire County Council,29-Mar-19,51300792705,"-1,711.36",AFFINITY TRUST,CARE ESTABLISHMENT,LD - Fenland Locality,LD - Fenland  - Care,Supported Living
Cambridgeshire County Council,29-Mar-19,51300830322,"-1,711.36",AFFINITY TRUST,CARE ESTABLISHMENT,LD - Fenland Locality,LD - Fenland  - Care,Supported Living
Cambridgeshire County Council,29-Mar-19,51300803089,"-1,711.36",AFFINITY TRUST,CARE ESTABLISHMENT,LD - Fenland Locality,LD - Fenland  - Care,Supported Living
Cambridgeshire County Council,29-Mar-19,51300830315,"-1,711.36",AFFINITY TRUST,CARE ESTABLISHMENT,LD - Fenland Locality,LD - Fenland  - Care,Supported Living
Cambridgeshire County Council,29-Mar-19,51300803099,"-1,711.36",AFFINITY TRUST,CARE ESTABLISHMENT,LD - Fenland Locality,LD - Fenland  - Care,Supported Living
Cambridgeshire County Council,29-Mar-19,51300830312,"-1,711.36",AFFINITY TRUST,CARE ESTABLISHMENT,LD - Fenland Locality,LD - Fenland  - Care,Supported Living
Cambridgeshire County Council,29-Mar-19,51300792690,"-1,711.36",AFFINITY TRUST,CARE ESTABLISHMENT,LD - Fenland Locality,LD - Fenland  - Care,Supported Living
Cambridgeshire County Council,29-Mar-19,51300830324,"-1,711.36",AFFINITY TRUST,CARE ESTABLISHMENT,LD - Fenland Locality,LD - Fenland  - Care,Supported Living
Cambridgeshire County Council,29-Mar-19,51300780839,"-1,711.36",AFFINITY TRUST,CARE ESTABLISHMENT,LD - Fenland Locality,LD - Fenland  - Care,Supported Living
Cambridgeshire County Council,29-Mar-19,51300780816,"-1,711.36",AFFINITY TRUST,CARE ESTABLISHMENT,LD - Fenland Locality,LD - Fenland  - Care,Supported Living
Cambridgeshire County Council,29-Mar-19,51300780830,"-1,711.36",AFFINITY TRUST,CARE ESTABLISHMENT,LD - Fenland Locality,LD - Fenland  - Care,Supported Living
Cambridgeshire County Council,29-Mar-19,51300780821,"-1,711.36",AFFINITY TRUST,CARE ESTABLISHMENT,LD - Fenland Locality,LD - Fenland  - Care,Supported Living
Cambridgeshire County Council,29-Mar-19,51300830330,"-1,711.36",AFFINITY TRUST,CARE ESTABLISHMENT,LD - Fenland Locality,LD - Fenland  - Care,Supported Living
Cambridgeshire County Council,29-Mar-19,51300830319,"-1,711.36",AFFINITY TRUST,CARE ESTABLISHMENT,LD - Fenland Locality,LD - Fenland  - Care,Supported Living
Cambridgeshire County Council,29-Mar-19,51300830338,"-1,711.36",AFFINITY TRUST,CARE ESTABLISHMENT,LD - Fenland Locality,LD - Fenland  - Care,Supported Living
Cambridgeshire County Council,29-Mar-19,51300780815,"-1,711.36",AFFINITY TRUST,CARE ESTABLISHMENT,LD - Fenland Locality,LD - Fenland  - Care,Supported Living
Cambridgeshire County Council,29-Mar-19,51300830331,"-1,711.36",AFFINITY TRUST,CARE ESTABLISHMENT,LD - Fenland Locality,LD - Fenland  - Care,Supported Living
Cambridgeshire County Council,29-Mar-19,51300780845,"-1,711.36",AFFINITY TRUST,CARE ESTABLISHMENT,LD - Fenland Locality,LD - Fenland  - Special Needs,Supported Living
Cambridgeshire County Council,29-Mar-19,51300792717,"-1,711.36",AFFINITY TRUST,CARE ESTABLISHMENT,LD - Fenland Locality,LD - Fenland  - Special Needs,Supported Living
Cambridgeshire County Council,29-Mar-19,51300830301,"-1,711.36",AFFINITY TRUST,CARE ESTABLISHMENT,LD - Fenland Locality,LD - Fenland  - Special Needs,Supported Living
Cambridgeshire County Council,29-Mar-19,51300780833,"-1,711.36",AFFINITY TRUST,CARE ESTABLISHMENT,LD - Fenland Locality,LD - Fenland  - Special Needs,Supported Living
Cambridgeshire County Council,29-Mar-19,51300830323,"-1,711.36",AFFINITY TRUST,CARE ESTABLISHMENT,LD - Fenland Locality,LD - Fenland  - Special Needs,Supported Living
Cambridgeshire County Council,29-Mar-19,51300792696,"-1,711.36",AFFINITY TRUST,CARE ESTABLISHMENT,LD - Fenland Locality,LD - Fenland  - Special Needs,Supported Living
Cambridgeshire County Council,29-Mar-19,51300803085,"-1,711.36",AFFINITY TRUST,CARE ESTABLISHMENT,LD - Fenland Locality,LD - Fenland  - Special Needs,Supported Living
Cambridgeshire County Council,29-Mar-19,51300803081,"-1,711.36",AFFINITY TRUST,CARE ESTABLISHMENT,LD - Fenland Locality,LD - Fenland  - Special Needs,Supported Living
Cambridgeshire County Council,29-Mar-19,51300803087,"-1,711.36",AFFINITY TRUST,CARE ESTABLISHMENT,LD - Fenland Locality,LD - Fenland  - Special Needs,Supported Living
Cambridgeshire County Council,29-Mar-19,51300803102,"-1,711.36",AFFINITY TRUST,CARE ESTABLISHMENT,LD - Fenland Locality,LD - Fenland  - Special Needs,Supported Living
Cambridgeshire County Council,29-Mar-19,51300830326,"-1,711.36",AFFINITY TRUST,CARE ESTABLISHMENT,LD - Fenland Locality,LD - Fenland  - Special Needs,Supported Living
Cambridgeshire County Council,29-Mar-19,51300780824,"-1,711.36",AFFINITY TRUST,CARE ESTABLISHMENT,LD - Fenland Locality,LD - Fenland  - Special Needs,Supported Living
Cambridgeshire County Council,29-Mar-19,51300780838,"-1,711.36",AFFINITY TRUST,CARE ESTABLISHMENT,LD - Fenland Locality,LD - Fenland  - Special Needs,Supported Living
Cambridgeshire County Council,29-Mar-19,51300803104,"-1,711.36",AFFINITY TRUST,CARE ESTABLISHMENT,LD - Fenland Locality,LD - Fenland  - Special Needs,Supported Living
Cambridgeshire County Council,29-Mar-19,51300803100,"-1,711.36",AFFINITY TRUST,CARE ESTABLISHMENT,LD - Fenland Locality,LD - Fenland  - Special Needs,Supported Living
Cambridgeshire County Council,29-Mar-19,51300780832,"-1,711.36",AFFINITY TRUST,CARE ESTABLISHMENT,LD - Fenland Locality,LD - Fenland  - Special Needs,Supported Living
Cambridgeshire County Council,29-Mar-19,51300803101,"-1,711.36",AFFINITY TRUST,CARE ESTABLISHMENT,LD - Fenland Locality,LD - Fenland  - Special Needs,Supported Living
Cambridgeshire County Council,29-Mar-19,51300803078,"-1,711.36",AFFINITY TRUST,CARE ESTABLISHMENT,LD - Fenland Locality,LD - Fenland  - Special Needs,Supported Living
Cambridgeshire County Council,29-Mar-19,51300780814,"-1,711.36",AFFINITY TRUST,CARE ESTABLISHMENT,LD - Fenland Locality,LD - Fenland  - Special Needs,Supported Living
Cambridgeshire County Council,29-Mar-19,51300780840,"-1,711.36",AFFINITY TRUST,CARE ESTABLISHMENT,LD - Fenland Locality,LD - Fenland  - Special Needs,Supported Living
Cambridgeshire County Council,29-Mar-19,51300780822,"-1,711.36",AFFINITY TRUST,CARE ESTABLISHMENT,LD - Fenland Locality,LD - Fenland  - Special Needs,Supported Living
Cambridgeshire County Council,29-Mar-19,51300792706,"-1,711.36",AFFINITY TRUST,CARE ESTABLISHMENT,LD - Fenland Locality,LD - Fenland  - Special Needs,Supported Living
Cambridgeshire County Council,29-Mar-19,51300792716,"-1,711.36",AFFINITY TRUST,CARE ESTABLISHMENT,LD - Fenland Locality,LD - Fenland  - Special Needs,Supported Living
Cambridgeshire County Council,29-Mar-19,51300830317,"-1,711.36",AFFINITY TRUST,CARE ESTABLISHMENT,LD - Fenland Locality,LD - Fenland  - Special Needs,Supported Living
Cambridgeshire County Council,29-Mar-19,51300792709,"-1,711.36",AFFINITY TRUST,CARE ESTABLISHMENT,LD - Fenland Locality,LD - Fenland  - Special Needs,Supported Living
Cambridgeshire County Council,01-Mar-19,51300759414,"-1,673.85",ALDERTON HOUSE,CARE ESTABLISHMENT,LD - East Locality,LD - East Cambs - Special Needs,Residential Care
Cambridgeshire County Council,01-Mar-19,51300759422,"-1,673.85",ALDERTON HOUSE,CARE ESTABLISHMENT,LD - East Locality,LD - East Cambs - Special Needs,Residential Care
Cambridgeshire County Council,29-Mar-19,51300840712,"-1,673.85",ALDERTON HOUSE,CARE ESTABLISHMENT,LD - East Locality,LD - East Cambs - Special Needs,Residential Care
Cambridgeshire County Council,29-Mar-19,51300840787,"-1,673.85",ALDERTON HOUSE,CARE ESTABLISHMENT,LD - East Locality,LD - East Cambs - Special Needs,Residential Care
Cambridgeshire County Council,14-Mar-19,51300793390,"-1,623.04",GUYATT HOUSE CARE LTD,CARE ESTABLISHMENT,LD - Young Adults Team,LD - Young Adults - Special Needs,Domiciliary Care
Cambridgeshire County Council,14-Mar-19,51300793531,"-1,623.04",GUYATT HOUSE CARE LTD,CARE ESTABLISHMENT,LD - Young Adults Team,LD - Young Adults - Special Needs,Domiciliary Care
Cambridgeshire County Council,14-Mar-19,51300793562,"-1,623.04",GUYATT HOUSE CARE LTD,CARE ESTABLISHMENT,LD - Young Adults Team,LD - Young Adults - Special Needs,Domiciliary Care
Cambridgeshire County Council,14-Mar-19,51300793421,"-1,623.04",GUYATT HOUSE CARE LTD,CARE ESTABLISHMENT,LD - Young Adults Team,LD - Young Adults - Special Needs,Domiciliary Care
Cambridgeshire County Council,14-Mar-19,51300793530,"-1,623.04",GUYATT HOUSE CARE LTD,CARE ESTABLISHMENT,LD - Young Adults Team,LD - Young Adults - Special Needs,Domiciliary Care
Cambridgeshire County Council,14-Mar-19,51300793435,"-1,623.04",GUYATT HOUSE CARE LTD,CARE ESTABLISHMENT,LD - Young Adults Team,LD - Young Adults - Special Needs,Domiciliary Care
Cambridgeshire County Council,14-Mar-19,51300793529,"-1,623.04",GUYATT HOUSE CARE LTD,CARE ESTABLISHMENT,LD - Young Adults Team,LD - Young Adults - Special Needs,Domiciliary Care
Cambridgeshire County Council,14-Mar-19,51300793423,"-1,623.04",GUYATT HOUSE CARE LTD,CARE ESTABLISHMENT,LD - Young Adults Team,LD - Young Adults - Special Needs,Domiciliary Care
Cambridgeshire County Council,14-Mar-19,51300793486,"-1,623.04",GUYATT HOUSE CARE LTD,CARE ESTABLISHMENT,LD - Young Adults Team,LD - Young Adults - Special Needs,Domiciliary Care
Cambridgeshire County Council,14-Mar-19,51300793599,"-1,623.04",GUYATT HOUSE CARE LTD,CARE ESTABLISHMENT,LD - Young Adults Team,LD - Young Adults - Special Needs,Domiciliary Care
Cambridgeshire County Council,14-Mar-19,51300793351,"-1,623.04",GUYATT HOUSE CARE LTD,CARE ESTABLISHMENT,LD - Young Adults Team,LD - Young Adults - Special Needs,Domiciliary Care
Cambridgeshire County Council,14-Mar-19,51300793489,"-1,623.04",GUYATT HOUSE CARE LTD,CARE ESTABLISHMENT,LD - Young Adults Team,LD - Young Adults - Special Needs,Domiciliary Care
Cambridgeshire County Council,14-Mar-19,51300793363,"-1,623.04",GUYATT HOUSE CARE LTD,CARE ESTABLISHMENT,LD - Young Adults Team,LD - Young Adults - Special Needs,Domiciliary Care
Cambridgeshire County Council,29-Mar-19,51300817018,"-1,619.18",HFT TRUST LTD,TRUST (OTHER),LD - Hunts Locality,LD - Huntigndonshire  - Special Needs,Residential Care
Cambridgeshire County Council,29-Mar-19,51300817019,"-1,619.18",HFT TRUST LTD,TRUST (OTHER),LD - Hunts Locality,LD - Huntigndonshire  - Special Needs,Residential Care
Cambridgeshire County Council,29-Mar-19,51300826215,"-1,614.08",VOYAGE,CARE ESTABLISHMENT,LD - South Locality,LD - South Cambs - Special Needs,Residential Care
Cambridgeshire County Council,29-Mar-19,51300836180,"-1,576.88",VOYAGE,CARE ESTABLISHMENT,LD - City Locality,LD - City - Special Needs,Residential Care
Cambridgeshire County Council,01-Mar-19,51300554604,"-1,574.77",22 KINGS RIPTON ROAD (REGARD),CARE ESTABLISHMENT,LD - Hunts Locality,LD - Huntigndonshire  - Special Needs,Supported Living
Cambridgeshire County Council,01-Mar-19,51300554600,"-1,574.77",22 KINGS RIPTON ROAD (REGARD),CARE ESTABLISHMENT,LD - Hunts Locality,LD - Huntigndonshire  - Special Needs,Supported Living
Cambridgeshire County Council,01-Mar-19,51300554550,"-1,574.77",22 KINGS RIPTON ROAD (REGARD),CARE ESTABLISHMENT,LD - Hunts Locality,LD - Huntigndonshire  - Special Needs,Supported Living
Cambridgeshire County Council,01-Mar-19,51300554533,"-1,574.77",22 KINGS RIPTON ROAD (REGARD),CARE ESTABLISHMENT,LD - Hunts Locality,LD - Huntigndonshire  - Special Needs,Supported Living
Cambridgeshire County Council,01-Mar-19,51300554585,"-1,574.77",22 KINGS RIPTON ROAD (REGARD),CARE ESTABLISHMENT,LD - Hunts Locality,LD - Huntigndonshire  - Special Needs,Supported Living
Cambridgeshire County Council,01-Mar-19,51300554547,"-1,574.77",22 KINGS RIPTON ROAD (REGARD),CARE ESTABLISHMENT,LD - Hunts Locality,LD - Huntigndonshire  - Special Needs,Supported Living
Cambridgeshire County Council,01-Mar-19,51300554624,"-1,574.77",22 KINGS RIPTON ROAD (REGARD),CARE ESTABLISHMENT,LD - Hunts Locality,LD - Huntigndonshire  - Special Needs,Supported Living
Cambridgeshire County Council,01-Mar-19,51300554608,"-1,574.77",22 KINGS RIPTON ROAD (REGARD),CARE ESTABLISHMENT,LD - Hunts Locality,LD - Huntigndonshire  - Special Needs,Supported Living
Cambridgeshire County Council,01-Mar-19,51300554586,"-1,574.77",22 KINGS RIPTON ROAD (REGARD),CARE ESTABLISHMENT,LD - Hunts Locality,LD - Huntigndonshire  - Special Needs,Supported Living
Cambridgeshire County Council,01-Mar-19,51300554540,"-1,574.77",22 KINGS RIPTON ROAD (REGARD),CARE ESTABLISHMENT,LD - Hunts Locality,LD - Huntigndonshire  - Special Needs,Supported Living
Cambridgeshire County Council,01-Mar-19,51300554595,"-1,574.77",22 KINGS RIPTON ROAD (REGARD),CARE ESTABLISHMENT,LD - Hunts Locality,LD - Huntigndonshire  - Special Needs,Supported Living
Cambridgeshire County Council,01-Mar-19,51300554569,"-1,574.77",22 KINGS RIPTON ROAD (REGARD),CARE ESTABLISHMENT,LD - Hunts Locality,LD - Huntigndonshire  - Special Needs,Supported Living
Cambridgeshire County Council,01-Mar-19,51300554579,"-1,574.77",22 KINGS RIPTON ROAD (REGARD),CARE ESTABLISHMENT,LD - Hunts Locality,LD - Huntigndonshire  - Special Needs,Supported Living
Cambridgeshire County Council,01-Mar-19,51300554623,"-1,574.77",22 KINGS RIPTON ROAD (REGARD),CARE ESTABLISHMENT,LD - Hunts Locality,LD - Huntigndonshire  - Special Needs,Supported Living
Cambridgeshire County Council,01-Mar-19,51300554622,"-1,574.77",22 KINGS RIPTON ROAD (REGARD),CARE ESTABLISHMENT,LD - Hunts Locality,LD - Huntigndonshire  - Special Needs,Supported Living
Cambridgeshire County Council,01-Mar-19,51300554562,"-1,574.77",22 KINGS RIPTON ROAD (REGARD),CARE ESTABLISHMENT,LD - Hunts Locality,LD - Huntigndonshire  - Special Needs,Supported Living
Cambridgeshire County Council,01-Mar-19,51300554559,"-1,574.77",22 KINGS RIPTON ROAD (REGARD),CARE ESTABLISHMENT,LD - Hunts Locality,LD - Huntigndonshire  - Special Needs,Supported Living
Cambridgeshire County Council,01-Mar-19,51300554621,"-1,574.77",22 KINGS RIPTON ROAD (REGARD),CARE ESTABLISHMENT,LD - Hunts Locality,LD - Huntigndonshire  - Special Needs,Supported Living
Cambridgeshire County Council,01-Mar-19,51300554584,"-1,574.77",22 KINGS RIPTON ROAD (REGARD),CARE ESTABLISHMENT,LD - Hunts Locality,LD - Huntigndonshire  - Special Needs,Supported Living
Cambridgeshire County Council,01-Mar-19,51300554560,"-1,574.77",22 KINGS RIPTON ROAD (REGARD),CARE ESTABLISHMENT,LD - Hunts Locality,LD - Huntigndonshire  - Special Needs,Supported Living
Cambridgeshire County Council,01-Mar-19,51300554616,"-1,574.77",22 KINGS RIPTON ROAD (REGARD),CARE ESTABLISHMENT,LD - Hunts Locality,LD - Huntigndonshire  - Special Needs,Supported Living
Cambridgeshire County Council,01-Mar-19,51300554597,"-1,574.77",22 KINGS RIPTON ROAD (REGARD),CARE ESTABLISHMENT,LD - Hunts Locality,LD - Huntigndonshire  - Special Needs,Supported Living
Cambridgeshire County Council,01-Mar-19,51300554578,"-1,574.77",22 KINGS RIPTON ROAD (REGARD),CARE ESTABLISHMENT,LD - Hunts Locality,LD - Huntigndonshire  - Special Needs,Supported Living
Cambridgeshire County Council,01-Mar-19,51300554554,"-1,574.77",22 KINGS RIPTON ROAD (REGARD),CARE ESTABLISHMENT,LD - Hunts Locality,LD - Huntigndonshire  - Special Needs,Supported Living
Cambridgeshire County Council,01-Mar-19,51300554583,"-1,574.77",22 KINGS RIPTON ROAD (REGARD),CARE ESTABLISHMENT,LD - Hunts Locality,LD - Huntigndonshire  - Special Needs,Supported Living
Cambridgeshire County Council,01-Mar-19,51300554592,"-1,574.77",22 KINGS RIPTON ROAD (REGARD),CARE ESTABLISHMENT,LD - Hunts Locality,LD - Huntigndonshire  - Special Needs,Supported Living
Cambridgeshire County Council,01-Mar-19,51300554561,"-1,574.77",22 KINGS RIPTON ROAD (REGARD),CARE ESTABLISHMENT,LD - Hunts Locality,LD - Huntigndonshire  - Special Needs,Supported Living
Cambridgeshire County Council,01-Mar-19,51300554625,"-1,574.77",22 KINGS RIPTON ROAD (REGARD),CARE ESTABLISHMENT,LD - Hunts Locality,LD - Huntigndonshire  - Special Needs,Supported Living
Cambridgeshire County Council,01-Mar-19,51300554594,"-1,574.77",22 KINGS RIPTON ROAD (REGARD),CARE ESTABLISHMENT,LD - Hunts Locality,LD - Huntigndonshire  - Special Needs,Supported Living
Cambridgeshire County Council,01-Mar-19,51300554611,"-1,574.77",22 KINGS RIPTON ROAD (REGARD),CARE ESTABLISHMENT,LD - Hunts Locality,LD - Huntigndonshire  - Special Needs,Supported Living
Cambridgeshire County Council,01-Mar-19,51300554524,"-1,574.77",22 KINGS RIPTON ROAD (REGARD),CARE ESTABLISHMENT,LD - Hunts Locality,LD - Huntigndonshire  - Special Needs,Supported Living
Cambridgeshire County Council,01-Mar-19,51300554605,"-1,574.77",22 KINGS RIPTON ROAD (REGARD),CARE ESTABLISHMENT,LD - Hunts Locality,LD - Huntigndonshire  - Special Needs,Supported Living
Cambridgeshire County Council,01-Mar-19,51300554530,"-1,574.77",22 KINGS RIPTON ROAD (REGARD),CARE ESTABLISHMENT,LD - Hunts Locality,LD - Huntigndonshire  - Special Needs,Supported Living
Cambridgeshire County Council,01-Mar-19,51300554529,"-1,574.77",22 KINGS RIPTON ROAD (REGARD),CARE ESTABLISHMENT,LD - Hunts Locality,LD - Huntigndonshire  - Special Needs,Supported Living
Cambridgeshire County Council,01-Mar-19,51300554593,"-1,574.77",22 KINGS RIPTON ROAD (REGARD),CARE ESTABLISHMENT,LD - Hunts Locality,LD - Huntigndonshire  - Special Needs,Supported Living
Cambridgeshire County Council,01-Mar-19,51300554532,"-1,574.77",22 KINGS RIPTON ROAD (REGARD),CARE ESTABLISHMENT,LD - Hunts Locality,LD - Huntigndonshire  - Special Needs,Supported Living
Cambridgeshire County Council,01-Mar-19,51300554525,"-1,574.77",22 KINGS RIPTON ROAD (REGARD),CARE ESTABLISHMENT,LD - Hunts Locality,LD - Huntigndonshire  - Special Needs,Supported Living
Cambridgeshire County Council,01-Mar-19,51300554615,"-1,574.77",22 KINGS RIPTON ROAD (REGARD),CARE ESTABLISHMENT,LD - Hunts Locality,LD - Huntigndonshire  - Special Needs,Supported Living
Cambridgeshire County Council,01-Mar-19,51300554556,"-1,574.77",22 KINGS RIPTON ROAD (REGARD),CARE ESTABLISHMENT,LD - Hunts Locality,LD - Huntigndonshire  - Special Needs,Supported Living
Cambridgeshire County Council,01-Mar-19,51300554553,"-1,574.77",22 KINGS RIPTON ROAD (REGARD),CARE ESTABLISHMENT,LD - Hunts Locality,LD - Huntigndonshire  - Special Needs,Supported Living
Cambridgeshire County Council,01-Mar-19,51300554557,"-1,574.77",22 KINGS RIPTON ROAD (REGARD),CARE ESTABLISHMENT,LD - Hunts Locality,LD - Huntigndonshire  - Special Needs,Supported Living
Cambridgeshire County Council,01-Mar-19,51300554587,"-1,574.77",22 KINGS RIPTON ROAD (REGARD),CARE ESTABLISHMENT,LD - Hunts Locality,LD - Huntigndonshire  - Special Needs,Supported Living
Cambridgeshire County Council,29-Mar-19,51300828309,"-1,510.70",BROAD OAKS VCT LTD,CARE ESTABLISHMENT,LD - Fenland Locality,LD - Fenland  - Special Needs,Residential Care
Cambridgeshire County Council,29-Mar-19,51300828330,"-1,510.70",BROAD OAKS VCT LTD,CARE ESTABLISHMENT,LD - Fenland Locality,LD - Fenland  - Special Needs,Residential Care
Cambridgeshire County Council,29-Mar-19,51300828327,"-1,510.70",BROAD OAKS VCT LTD,CARE ESTABLISHMENT,LD - Fenland Locality,LD - Fenland  - Special Needs,Residential Care
Cambridgeshire County Council,29-Mar-19,51300828321,"-1,510.70",BROAD OAKS VCT LTD,CARE ESTABLISHMENT,LD - Fenland Locality,LD - Fenland  - Special Needs,Residential Care
Cambridgeshire County Council,29-Mar-19,51300828310,"-1,510.70",BROAD OAKS VCT LTD,CARE ESTABLISHMENT,LD - Fenland Locality,LD - Fenland  - Special Needs,Residential Care
Cambridgeshire County Council,29-Mar-19,51300828325,"-1,510.70",BROAD OAKS VCT LTD,CARE ESTABLISHMENT,LD - Fenland Locality,LD - Fenland  - Special Needs,Residential Care
Cambridgeshire County Council,29-Mar-19,51300828319,"-1,510.70",BROAD OAKS VCT LTD,CARE ESTABLISHMENT,LD - Fenland Locality,LD - Fenland  - Special Needs,Residential Care
Cambridgeshire County Council,29-Mar-19,51300828320,"-1,510.70",BROAD OAKS VCT LTD,CARE ESTABLISHMENT,LD - Fenland Locality,LD - Fenland  - Special Needs,Residential Care
Cambridgeshire County Council,29-Mar-19,51300826351,"-1,510.68",BROAD OAKS VCT LTD,CARE ESTABLISHMENT,LD - Fenland Locality,LD - Fenland  - Special Needs,Residential Care
Cambridgeshire County Council,29-Mar-19,51300826356,"-1,510.68",BROAD OAKS VCT LTD,CARE ESTABLISHMENT,LD - Fenland Locality,LD - Fenland  - Special Needs,Residential Care
Cambridgeshire County Council,29-Mar-19,51300826365,"-1,510.68",BROAD OAKS VCT LTD,CARE ESTABLISHMENT,LD - Fenland Locality,LD - Fenland  - Special Needs,Residential Care
Cambridgeshire County Council,29-Mar-19,51300826368,"-1,510.68",BROAD OAKS VCT LTD,CARE ESTABLISHMENT,LD - Fenland Locality,LD - Fenland  - Special Needs,Residential Care
Cambridgeshire County Council,29-Mar-19,51300826366,"-1,510.68",BROAD OAKS VCT LTD,CARE ESTABLISHMENT,LD - Fenland Locality,LD - Fenland  - Special Needs,Residential Care
Cambridgeshire County Council,29-Mar-19,51300826364,"-1,510.68",BROAD OAKS VCT LTD,CARE ESTABLISHMENT,LD - Fenland Locality,LD - Fenland  - Special Needs,Residential Care
Cambridgeshire County Council,29-Mar-19,51300826355,"-1,510.68",BROAD OAKS VCT LTD,CARE ESTABLISHMENT,LD - Fenland Locality,LD - Fenland  - Special Needs,Residential Care
Cambridgeshire County Council,29-Mar-19,51300826343,"-1,510.68",BROAD OAKS VCT LTD,CARE ESTABLISHMENT,LD - Fenland Locality,LD - Fenland  - Special Needs,Residential Care
Cambridgeshire County Council,29-Mar-19,51300827704,"-1,510.50",BROAD OAKS VCT LTD,CARE ESTABLISHMENT,LD - Fenland Locality,LD - Fenland  - Special Needs,Residential Care
Cambridgeshire County Council,29-Mar-19,51300827706,"-1,510.50",BROAD OAKS VCT LTD,CARE ESTABLISHMENT,LD - Fenland Locality,LD - Fenland  - Special Needs,Residential Care
Cambridgeshire County Council,29-Mar-19,51300827701,"-1,510.50",BROAD OAKS VCT LTD,CARE ESTABLISHMENT,LD - Fenland Locality,LD - Fenland  - Special Needs,Residential Care
Cambridgeshire County Council,29-Mar-19,51300827700,"-1,510.50",BROAD OAKS VCT LTD,CARE ESTABLISHMENT,LD - Fenland Locality,LD - Fenland  - Special Needs,Residential Care
Cambridgeshire County Council,29-Mar-19,51300827708,"-1,510.50",BROAD OAKS VCT LTD,CARE ESTABLISHMENT,LD - Fenland Locality,LD - Fenland  - Special Needs,Residential Care
Cambridgeshire County Council,29-Mar-19,51300827714,"-1,510.50",BROAD OAKS VCT LTD,CARE ESTABLISHMENT,LD - Fenland Locality,LD - Fenland  - Special Needs,Residential Care
Cambridgeshire County Council,29-Mar-19,51300827709,"-1,510.50",BROAD OAKS VCT LTD,CARE ESTABLISHMENT,LD - Fenland Locality,LD - Fenland  - Special Needs,Residential Care
Cambridgeshire County Council,29-Mar-19,51300827702,"-1,510.50",BROAD OAKS VCT LTD,CARE ESTABLISHMENT,LD - Fenland Locality,LD - Fenland  - Special Needs,Residential Care
Cambridgeshire County Council,22-Mar-19,51300786929,"-1,470.00",CRICK SOFTWARE LTD,TRADE SUPPLIER,ICT Service,ICT Service Sales,Materials for resale
Cambridgeshire County Council,29-Mar-19,51300840743,"-1,469.11",ALDERTON HOUSE,CARE ESTABLISHMENT,LD - East Locality,LD - East Cambs - Special Needs,Residential Care
Cambridgeshire County Council,29-Mar-19,51300840775,"-1,469.11",ALDERTON HOUSE,CARE ESTABLISHMENT,LD - East Locality,LD - East Cambs - Special Needs,Residential Care
Cambridgeshire County Council,29-Mar-19,51300818527,"-1,462.52",VOYAGE,CARE ESTABLISHMENT,LD - East Locality,LD - East Cambs - Care,Residential Care
Cambridgeshire County Council,01-Mar-19,51300752931,"-1,454.45",THERA EAST ANGLIA,CARE ESTABLISHMENT,LD - East Locality,LD - East Cambs - Special Needs,Supported Living
Cambridgeshire County Council,01-Mar-19,51300752939,"-1,454.45",THERA EAST ANGLIA,CARE ESTABLISHMENT,LD - East Locality,LD - East Cambs - Special Needs,Supported Living
Cambridgeshire County Council,29-Mar-19,51300825345,"-1,450.59",VOYAGE,CARE ESTABLISHMENT,LD - South Locality,LD - South Cambs - Special Needs,Residential Care
Cambridgeshire County Council,29-Mar-19,51300825346,"-1,450.59",VOYAGE,CARE ESTABLISHMENT,LD - South Locality,LD - South Cambs - Special Needs,Residential Care
Cambridgeshire County Council,29-Mar-19,51300825350,"-1,450.59",VOYAGE,CARE ESTABLISHMENT,LD - South Locality,LD - South Cambs - Special Needs,Residential Care
Cambridgeshire County Council,29-Mar-19,51300825348,"-1,450.59",VOYAGE,CARE ESTABLISHMENT,LD - South Locality,LD - South Cambs - Special Needs,Residential Care
Cambridgeshire County Council,29-Mar-19,51300825341,"-1,450.59",VOYAGE,CARE ESTABLISHMENT,LD - South Locality,LD - South Cambs - Special Needs,Residential Care
Cambridgeshire County Council,29-Mar-19,51300825344,"-1,450.59",VOYAGE,CARE ESTABLISHMENT,LD - South Locality,LD - South Cambs - Special Needs,Residential Care
Cambridgeshire County Council,29-Mar-19,51300825351,"-1,450.59",VOYAGE,CARE ESTABLISHMENT,LD - South Locality,LD - South Cambs - Special Needs,Residential Care
Cambridgeshire County Council,07-Mar-19,51300777275,"-1,442.10",CARETECH COMMUNITY SERVICES,CARE ESTABLISHMENT,LD - City Locality,LD - City - Care,Residential Care
Cambridgeshire County Council,07-Mar-19,51300777285,"-1,442.10",CARETECH COMMUNITY SERVICES,CARE ESTABLISHMENT,LD - City Locality,LD - City - Care,Residential Care
Cambridgeshire County Council,07-Mar-19,51300777279,"-1,442.10",CARETECH COMMUNITY SERVICES,CARE ESTABLISHMENT,LD - City Locality,LD - City - Care,Residential Care
Cambridgeshire County Council,07-Mar-19,51300777262,"-1,442.10",CARETECH COMMUNITY SERVICES,CARE ESTABLISHMENT,LD - City Locality,LD - City - Care,Residential Care
Cambridgeshire County Council,07-Mar-19,51300777261,"-1,442.10",CARETECH COMMUNITY SERVICES,CARE ESTABLISHMENT,LD - City Locality,LD - City - Care,Residential Care
Cambridgeshire County Council,07-Mar-19,51300777252,"-1,442.10",CARETECH COMMUNITY SERVICES,CARE ESTABLISHMENT,LD - City Locality,LD - City - Care,Residential Care
Cambridgeshire County Council,07-Mar-19,51300777278,"-1,442.10",CARETECH COMMUNITY SERVICES,CARE ESTABLISHMENT,LD - City Locality,LD - City - Care,Residential Care
Cambridgeshire County Council,07-Mar-19,51300777276,"-1,442.10",CARETECH COMMUNITY SERVICES,CARE ESTABLISHMENT,LD - City Locality,LD - City - Care,Residential Care
Cambridgeshire County Council,07-Mar-19,51300777282,"-1,442.10",CARETECH COMMUNITY SERVICES,CARE ESTABLISHMENT,LD - City Locality,LD - City - Care,Residential Care
Cambridgeshire County Council,07-Mar-19,51300777250,"-1,442.10",CARETECH COMMUNITY SERVICES,CARE ESTABLISHMENT,LD - City Locality,LD - City - Care,Residential Care
Cambridgeshire County Council,07-Mar-19,51300777251,"-1,442.10",CARETECH COMMUNITY SERVICES,CARE ESTABLISHMENT,LD - City Locality,LD - City - Care,Residential Care
Cambridgeshire County Council,07-Mar-19,51300777290,"-1,442.10",CARETECH COMMUNITY SERVICES,CARE ESTABLISHMENT,LD - City Locality,LD - City - Care,Residential Care
Cambridgeshire County Council,07-Mar-19,51300777241,"-1,442.10",CARETECH COMMUNITY SERVICES,CARE ESTABLISHMENT,LD - City Locality,LD - City - Care,Residential Care
Cambridgeshire County Council,07-Mar-19,51300777247,"-1,442.10",CARETECH COMMUNITY SERVICES,CARE ESTABLISHMENT,LD - City Locality,LD - City - Care,Residential Care
Cambridgeshire County Council,07-Mar-19,51300777244,"-1,442.10",CARETECH COMMUNITY SERVICES,CARE ESTABLISHMENT,LD - City Locality,LD - City - Care,Residential Care
Cambridgeshire County Council,07-Mar-19,51300777287,"-1,442.10",CARETECH COMMUNITY SERVICES,CARE ESTABLISHMENT,LD - City Locality,LD - City - Care,Residential Care
Cambridgeshire County Council,07-Mar-19,51300777259,"-1,442.10",CARETECH COMMUNITY SERVICES,CARE ESTABLISHMENT,LD - City Locality,LD - City - Care,Residential Care
Cambridgeshire County Council,07-Mar-19,51300777249,"-1,442.10",CARETECH COMMUNITY SERVICES,CARE ESTABLISHMENT,LD - City Locality,LD - City - Care,Residential Care
Cambridgeshire County Council,07-Mar-19,51300777265,"-1,442.10",CARETECH COMMUNITY SERVICES,CARE ESTABLISHMENT,LD - City Locality,LD - City - Care,Residential Care
Cambridgeshire County Council,07-Mar-19,51300777268,"-1,442.10",CARETECH COMMUNITY SERVICES,CARE ESTABLISHMENT,LD - City Locality,LD - City - Care,Residential Care
Cambridgeshire County Council,07-Mar-19,51300777245,"-1,442.10",CARETECH COMMUNITY SERVICES,CARE ESTABLISHMENT,LD - City Locality,LD - City - Care,Residential Care
Cambridgeshire County Council,07-Mar-19,51300777264,"-1,442.10",CARETECH COMMUNITY SERVICES,CARE ESTABLISHMENT,LD - City Locality,LD - City - Care,Residential Care
Cambridgeshire County Council,04-Mar-19,51300773614,"-1,434.84",Redacted Personal Data,INDIVIDUAL,Park & Ride Parking,Park and Ride Admin,Professional Fees and Hired Services
Cambridgeshire County Council,01-Mar-19,51300759413,"-1,434.73",ALDERTON HOUSE,CARE ESTABLISHMENT,LD - East Locality,LD - East Cambs - Special Needs,Residential Care
Cambridgeshire County Council,29-Mar-19,51300834889,"-1,416.71",VOYAGE,CARE ESTABLISHMENT,LD - City Locality,LD - City - Special Needs,Residential Care
Cambridgeshire County Council,29-Mar-19,51300834888,"-1,416.71",VOYAGE,CARE ESTABLISHMENT,LD - City Locality,LD - City - Special Needs,Residential Care
Cambridgeshire County Council,29-Mar-19,51300834884,"-1,416.71",VOYAGE,CARE ESTABLISHMENT,LD - City Locality,LD - City - Special Needs,Residential Care
Cambridgeshire County Council,29-Mar-19,51300834873,"-1,416.71",VOYAGE,CARE ESTABLISHMENT,LD - City Locality,LD - City - Special Needs,Residential Care
Cambridgeshire County Council,29-Mar-19,51300834891,"-1,416.71",VOYAGE,CARE ESTABLISHMENT,LD - City Locality,LD - City - Special Needs,Residential Care
Cambridgeshire County Council,29-Mar-19,51300834897,"-1,416.71",VOYAGE,CARE ESTABLISHMENT,LD - City Locality,LD - City - Special Needs,Residential Care
Cambridgeshire County Council,29-Mar-19,51300834878,"-1,416.71",VOYAGE,CARE ESTABLISHMENT,LD - City Locality,LD - City - Special Needs,Residential Care
Cambridgeshire County Council,01-Mar-19,51300554598,"-1,390.00",22 KINGS RIPTON ROAD (REGARD),CARE ESTABLISHMENT,LD - Hunts Locality,LD - Huntigndonshire  - Special Needs,Supported Living
Cambridgeshire County Council,01-Mar-19,51300554539,"-1,390.00",22 KINGS RIPTON ROAD (REGARD),CARE ESTABLISHMENT,LD - Hunts Locality,LD - Huntigndonshire  - Special Needs,Supported Living
Cambridgeshire County Council,01-Mar-19,51300554571,"-1,390.00",22 KINGS RIPTON ROAD (REGARD),CARE ESTABLISHMENT,LD - Hunts Locality,LD - Huntigndonshire  - Special Needs,Supported Living
Cambridgeshire County Council,01-Mar-19,51300554591,"-1,390.00",22 KINGS RIPTON ROAD (REGARD),CARE ESTABLISHMENT,LD - Hunts Locality,LD - Huntigndonshire  - Special Needs,Supported Living
Cambridgeshire County Council,01-Mar-19,51300554601,"-1,390.00",22 KINGS RIPTON ROAD (REGARD),CARE ESTABLISHMENT,LD - Hunts Locality,LD - Huntigndonshire  - Special Needs,Supported Living
Cambridgeshire County Council,01-Mar-19,51300554576,"-1,390.00",22 KINGS RIPTON ROAD (REGARD),CARE ESTABLISHMENT,LD - Hunts Locality,LD - Huntigndonshire  - Special Needs,Supported Living
Cambridgeshire County Council,01-Mar-19,51300554580,"-1,390.00",22 KINGS RIPTON ROAD (REGARD),CARE ESTABLISHMENT,LD - Hunts Locality,LD - Huntigndonshire  - Special Needs,Supported Living
Cambridgeshire County Council,01-Mar-19,51300554528,"-1,390.00",22 KINGS RIPTON ROAD (REGARD),CARE ESTABLISHMENT,LD - Hunts Locality,LD - Huntigndonshire  - Special Needs,Supported Living
Cambridgeshire County Council,01-Mar-19,51300554544,"-1,390.00",22 KINGS RIPTON ROAD (REGARD),CARE ESTABLISHMENT,LD - Hunts Locality,LD - Huntigndonshire  - Special Needs,Supported Living
Cambridgeshire County Council,01-Mar-19,51300554599,"-1,390.00",22 KINGS RIPTON ROAD (REGARD),CARE ESTABLISHMENT,LD - Hunts Locality,LD - Huntigndonshire  - Special Needs,Supported Living
Cambridgeshire County Council,01-Mar-19,51300554581,"-1,390.00",22 KINGS RIPTON ROAD (REGARD),CARE ESTABLISHMENT,LD - Hunts Locality,LD - Huntigndonshire  - Special Needs,Supported Living
Cambridgeshire County Council,01-Mar-19,51300554582,"-1,390.00",22 KINGS RIPTON ROAD (REGARD),CARE ESTABLISHMENT,LD - Hunts Locality,LD - Huntigndonshire  - Special Needs,Supported Living
Cambridgeshire County Council,01-Mar-19,51300554614,"-1,390.00",22 KINGS RIPTON ROAD (REGARD),CARE ESTABLISHMENT,LD - Hunts Locality,LD - Huntigndonshire  - Special Needs,Supported Living
Cambridgeshire County Council,01-Mar-19,51300554538,"-1,390.00",22 KINGS RIPTON ROAD (REGARD),CARE ESTABLISHMENT,LD - Hunts Locality,LD - Huntigndonshire  - Special Needs,Supported Living
Cambridgeshire County Council,01-Mar-19,51300554619,"-1,390.00",22 KINGS RIPTON ROAD (REGARD),CARE ESTABLISHMENT,LD - Hunts Locality,LD - Huntigndonshire  - Special Needs,Supported Living
Cambridgeshire County Council,01-Mar-19,51300554535,"-1,390.00",22 KINGS RIPTON ROAD (REGARD),CARE ESTABLISHMENT,LD - Hunts Locality,LD - Huntigndonshire  - Special Needs,Supported Living
Cambridgeshire County Council,01-Mar-19,51300554537,"-1,390.00",22 KINGS RIPTON ROAD (REGARD),CARE ESTABLISHMENT,LD - Hunts Locality,LD - Huntigndonshire  - Special Needs,Supported Living
Cambridgeshire County Council,01-Mar-19,51300554564,"-1,390.00",22 KINGS RIPTON ROAD (REGARD),CARE ESTABLISHMENT,LD - Hunts Locality,LD - Huntigndonshire  - Special Needs,Supported Living
Cambridgeshire County Council,01-Mar-19,51300554568,"-1,390.00",22 KINGS RIPTON ROAD (REGARD),CARE ESTABLISHMENT,LD - Hunts Locality,LD - Huntigndonshire  - Special Needs,Supported Living
Cambridgeshire County Council,01-Mar-19,51300554570,"-1,390.00",22 KINGS RIPTON ROAD (REGARD),CARE ESTABLISHMENT,LD - Hunts Locality,LD - Huntigndonshire  - Special Needs,Supported Living
Cambridgeshire County Council,01-Mar-19,51300554603,"-1,390.00",22 KINGS RIPTON ROAD (REGARD),CARE ESTABLISHMENT,LD - Hunts Locality,LD - Huntigndonshire  - Special Needs,Supported Living
Cambridgeshire County Council,01-Mar-19,51300554558,"-1,390.00",22 KINGS RIPTON ROAD (REGARD),CARE ESTABLISHMENT,LD - Hunts Locality,LD - Huntigndonshire  - Special Needs,Supported Living
Cambridgeshire County Council,01-Mar-19,51300554574,"-1,390.00",22 KINGS RIPTON ROAD (REGARD),CARE ESTABLISHMENT,LD - Hunts Locality,LD - Huntigndonshire  - Special Needs,Supported Living
Cambridgeshire County Council,01-Mar-19,51300554607,"-1,390.00",22 KINGS RIPTON ROAD (REGARD),CARE ESTABLISHMENT,LD - Hunts Locality,LD - Huntigndonshire  - Special Needs,Supported Living
Cambridgeshire County Council,01-Mar-19,51300554549,"-1,349.80",22 KINGS RIPTON ROAD (REGARD),CARE ESTABLISHMENT,LD - Hunts Locality,LD - Huntigndonshire  - Special Needs,Supported Living
Cambridgeshire County Council,01-Mar-19,51300743782,"-1,336.87",ALDERTON HOUSE,CARE ESTABLISHMENT,LD - East Locality,LD - East Cambs - Special Needs,Residential Care
Cambridgeshire County Council,01-Mar-19,51300743778,"-1,336.87",ALDERTON HOUSE,CARE ESTABLISHMENT,LD - East Locality,LD - East Cambs - Special Needs,Residential Care
Cambridgeshire County Council,25-Mar-19,51300797259,"-1,335.00",ACTION FOR CHILDREN SERVICES LTD,CARE ESTABLISHMENT,Community Support Service,Community Support Service ECF,Grants to Voluntary Bodies
Cambridgeshire County Council,01-Mar-19,51300755335,"-1,328.44",CARE MANAGEMENT GROUP (64-66 CARLTON),CARE ESTABLISHMENT,LD - East Locality,LD - East Cambs - Special Needs,Residential Care
Cambridgeshire County Council,01-Mar-19,51300755338,"-1,328.44",CARE MANAGEMENT GROUP (64-66 CARLTON),CARE ESTABLISHMENT,LD - East Locality,LD - East Cambs - Special Needs,Residential Care
Cambridgeshire County Council,01-Mar-19,51300755234,"-1,328.44",CARE MANAGEMENT GROUP (64-66 CARLTON),CARE ESTABLISHMENT,LD - East Locality,LD - East Cambs - Special Needs,Residential Care
Cambridgeshire County Council,01-Mar-19,51300755323,"-1,328.44",CARE MANAGEMENT GROUP (64-66 CARLTON),CARE ESTABLISHMENT,LD - East Locality,LD - East Cambs - Special Needs,Residential Care
Cambridgeshire County Council,01-Mar-19,51300739992,"-1,328.44",CARE MANAGEMENT GROUP (64-66 CARLTON),CARE ESTABLISHMENT,LD - East Locality,LD - East Cambs - Special Needs,Residential Care
Cambridgeshire County Council,01-Mar-19,51300740051,"-1,328.44",CARE MANAGEMENT GROUP (64-66 CARLTON),CARE ESTABLISHMENT,LD - East Locality,LD - East Cambs - Special Needs,Residential Care
Cambridgeshire County Council,01-Mar-19,51300739957,"-1,328.44",CARE MANAGEMENT GROUP (64-66 CARLTON),CARE ESTABLISHMENT,LD - East Locality,LD - East Cambs - Special Needs,Residential Care
Cambridgeshire County Council,01-Mar-19,51300755321,"-1,328.44",CARE MANAGEMENT GROUP (64-66 CARLTON),CARE ESTABLISHMENT,LD - East Locality,LD - East Cambs - Special Needs,Residential Care
Cambridgeshire County Council,01-Mar-19,51300755300,"-1,328.44",CARE MANAGEMENT GROUP (64-66 CARLTON),CARE ESTABLISHMENT,LD - East Locality,LD - East Cambs - Special Needs,Residential Care
Cambridgeshire County Council,01-Mar-19,51300755377,"-1,328.44",CARE MANAGEMENT GROUP (64-66 CARLTON),CARE ESTABLISHMENT,LD - East Locality,LD - East Cambs - Special Needs,Residential Care
Cambridgeshire County Council,01-Mar-19,51300755241,"-1,328.44",CARE MANAGEMENT GROUP (64-66 CARLTON),CARE ESTABLISHMENT,LD - East Locality,LD - East Cambs - Special Needs,Residential Care
Cambridgeshire County Council,01-Mar-19,51300755229,"-1,328.44",CARE MANAGEMENT GROUP (64-66 CARLTON),CARE ESTABLISHMENT,LD - East Locality,LD - East Cambs - Special Needs,Residential Care
Cambridgeshire County Council,01-Mar-19,51300740013,"-1,328.44",CARE MANAGEMENT GROUP (64-66 CARLTON),CARE ESTABLISHMENT,LD - East Locality,LD - East Cambs - Special Needs,Residential Care
Cambridgeshire County Council,01-Mar-19,51300755317,"-1,328.44",CARE MANAGEMENT GROUP (64-66 CARLTON),CARE ESTABLISHMENT,LD - East Locality,LD - East Cambs - Special Needs,Residential Care
Cambridgeshire County Council,01-Mar-19,51300755313,"-1,328.44",CARE MANAGEMENT GROUP (64-66 CARLTON),CARE ESTABLISHMENT,LD - East Locality,LD - East Cambs - Special Needs,Residential Care
Cambridgeshire County Council,01-Mar-19,51300755324,"-1,328.44",CARE MANAGEMENT GROUP (64-66 CARLTON),CARE ESTABLISHMENT,LD - East Locality,LD - East Cambs - Special Needs,Residential Care
Cambridgeshire County Council,01-Mar-19,51300740068,"-1,328.44",CARE MANAGEMENT GROUP (64-66 CARLTON),CARE ESTABLISHMENT,LD - East Locality,LD - East Cambs - Special Needs,Residential Care
Cambridgeshire County Council,01-Mar-19,51300739993,"-1,328.44",CARE MANAGEMENT GROUP (64-66 CARLTON),CARE ESTABLISHMENT,LD - East Locality,LD - East Cambs - Special Needs,Residential Care
Cambridgeshire County Council,01-Mar-19,51300740044,"-1,328.44",CARE MANAGEMENT GROUP (64-66 CARLTON),CARE ESTABLISHMENT,LD - East Locality,LD - East Cambs - Special Needs,Residential Care
Cambridgeshire County Council,01-Mar-19,51300740076,"-1,328.44",CARE MANAGEMENT GROUP (64-66 CARLTON),CARE ESTABLISHMENT,LD - East Locality,LD - East Cambs - Special Needs,Residential Care
Cambridgeshire County Council,01-Mar-19,51300739968,"-1,328.44",CARE MANAGEMENT GROUP (64-66 CARLTON),CARE ESTABLISHMENT,LD - East Locality,LD - East Cambs - Special Needs,Residential Care
Cambridgeshire County Council,01-Mar-19,51300755233,"-1,328.44",CARE MANAGEMENT GROUP (64-66 CARLTON),CARE ESTABLISHMENT,LD - East Locality,LD - East Cambs - Special Needs,Residential Care
Cambridgeshire County Council,01-Mar-19,51300755242,"-1,328.44",CARE MANAGEMENT GROUP (64-66 CARLTON),CARE ESTABLISHMENT,LD - East Locality,LD - East Cambs - Special Needs,Residential Care
Cambridgeshire County Council,01-Mar-19,51300755290,"-1,328.44",CARE MANAGEMENT GROUP (64-66 CARLTON),CARE ESTABLISHMENT,LD - East Locality,LD - East Cambs - Special Needs,Residential Care
Cambridgeshire County Council,01-Mar-19,51300740089,"-1,328.44",CARE MANAGEMENT GROUP (64-66 CARLTON),CARE ESTABLISHMENT,LD - East Locality,LD - East Cambs - Special Needs,Residential Care
Cambridgeshire County Council,01-Mar-19,51300740040,"-1,328.44",CARE MANAGEMENT GROUP (64-66 CARLTON),CARE ESTABLISHMENT,LD - East Locality,LD - East Cambs - Special Needs,Residential Care
Cambridgeshire County Council,01-Mar-19,51300739980,"-1,328.44",CARE MANAGEMENT GROUP (64-66 CARLTON),CARE ESTABLISHMENT,LD - East Locality,LD - East Cambs - Special Needs,Residential Care
Cambridgeshire County Council,01-Mar-19,51300755243,"-1,328.44",CARE MANAGEMENT GROUP (64-66 CARLTON),CARE ESTABLISHMENT,LD - East Locality,LD - East Cambs - Special Needs,Residential Care
Cambridgeshire County Council,01-Mar-19,51300740061,"-1,328.44",CARE MANAGEMENT GROUP (64-66 CARLTON),CARE ESTABLISHMENT,LD - East Locality,LD - East Cambs - Special Needs,Residential Care
Cambridgeshire County Council,01-Mar-19,51300739958,"-1,328.44",CARE MANAGEMENT GROUP (64-66 CARLTON),CARE ESTABLISHMENT,LD - East Locality,LD - East Cambs - Special Needs,Residential Care
Cambridgeshire County Council,01-Mar-19,51300739989,"-1,328.44",CARE MANAGEMENT GROUP (64-66 CARLTON),CARE ESTABLISHMENT,LD - East Locality,LD - East Cambs - Special Needs,Residential Care
Cambridgeshire County Council,01-Mar-19,51300755318,"-1,328.44",CARE MANAGEMENT GROUP (64-66 CARLTON),CARE ESTABLISHMENT,LD - East Locality,LD - East Cambs - Special Needs,Residential Care
Cambridgeshire County Council,01-Mar-19,51300740087,"-1,328.44",CARE MANAGEMENT GROUP (64-66 CARLTON),CARE ESTABLISHMENT,LD - East Locality,LD - East Cambs - Special Needs,Residential Care
Cambridgeshire County Council,01-Mar-19,51300739966,"-1,328.44",CARE MANAGEMENT GROUP (64-66 CARLTON),CARE ESTABLISHMENT,LD - East Locality,LD - East Cambs - Special Needs,Residential Care
Cambridgeshire County Council,01-Mar-19,51300755298,"-1,328.44",CARE MANAGEMENT GROUP (64-66 CARLTON),CARE ESTABLISHMENT,LD - East Locality,LD - East Cambs - Special Needs,Residential Care
Cambridgeshire County Council,01-Mar-19,51300755379,"-1,328.44",CARE MANAGEMENT GROUP (64-66 CARLTON),CARE ESTABLISHMENT,LD - East Locality,LD - East Cambs - Special Needs,Residential Care
Cambridgeshire County Council,01-Mar-19,51300755277,"-1,328.44",CARE MANAGEMENT GROUP (64-66 CARLTON),CARE ESTABLISHMENT,LD - East Locality,LD - East Cambs - Special Needs,Residential Care
Cambridgeshire County Council,01-Mar-19,51300740014,"-1,328.44",CARE MANAGEMENT GROUP (64-66 CARLTON),CARE ESTABLISHMENT,LD - East Locality,LD - East Cambs - Special Needs,Residential Care
Cambridgeshire County Council,01-Mar-19,51300739970,"-1,328.44",CARE MANAGEMENT GROUP (64-66 CARLTON),CARE ESTABLISHMENT,LD - East Locality,LD - East Cambs - Special Needs,Residential Care
Cambridgeshire County Council,01-Mar-19,51300740025,"-1,328.44",CARE MANAGEMENT GROUP (64-66 CARLTON),CARE ESTABLISHMENT,LD - East Locality,LD - East Cambs - Special Needs,Residential Care
Cambridgeshire County Council,01-Mar-19,51300740026,"-1,328.44",CARE MANAGEMENT GROUP (64-66 CARLTON),CARE ESTABLISHMENT,LD - East Locality,LD - East Cambs - Special Needs,Residential Care
Cambridgeshire County Council,01-Mar-19,51300740043,"-1,328.44",CARE MANAGEMENT GROUP (64-66 CARLTON),CARE ESTABLISHMENT,LD - East Locality,LD - East Cambs - Special Needs,Residential Care
Cambridgeshire County Council,01-Mar-19,51300739990,"-1,328.44",CARE MANAGEMENT GROUP (64-66 CARLTON),CARE ESTABLISHMENT,LD - East Locality,LD - East Cambs - Special Needs,Residential Care
Cambridgeshire County Council,01-Mar-19,51300755264,"-1,328.44",CARE MANAGEMENT GROUP (64-66 CARLTON),CARE ESTABLISHMENT,LD - East Locality,LD - East Cambs - Special Needs,Residential Care
Cambridgeshire County Council,01-Mar-19,51300755310,"-1,328.44",CARE MANAGEMENT GROUP (64-66 CARLTON),CARE ESTABLISHMENT,LD - East Locality,LD - East Cambs - Special Needs,Residential Care
Cambridgeshire County Council,01-Mar-19,51300755288,"-1,328.44",CARE MANAGEMENT GROUP (64-66 CARLTON),CARE ESTABLISHMENT,LD - East Locality,LD - East Cambs - Special Needs,Residential Care
Cambridgeshire County Council,01-Mar-19,51300740067,"-1,328.44",CARE MANAGEMENT GROUP (64-66 CARLTON),CARE ESTABLISHMENT,LD - East Locality,LD - East Cambs - Special Needs,Residential Care
Cambridgeshire County Council,01-Mar-19,51300739998,"-1,328.44",CARE MANAGEMENT GROUP (64-66 CARLTON),CARE ESTABLISHMENT,LD - East Locality,LD - East Cambs - Special Needs,Residential Care
Cambridgeshire County Council,01-Mar-19,51300739981,"-1,328.44",CARE MANAGEMENT GROUP (64-66 CARLTON),CARE ESTABLISHMENT,LD - East Locality,LD - East Cambs - Special Needs,Residential Care
Cambridgeshire County Council,01-Mar-19,51300739988,"-1,328.44",CARE MANAGEMENT GROUP (64-66 CARLTON),CARE ESTABLISHMENT,LD - East Locality,LD - East Cambs - Special Needs,Residential Care
Cambridgeshire County Council,01-Mar-19,51300740102,"-1,328.44",CARE MANAGEMENT GROUP (64-66 CARLTON),CARE ESTABLISHMENT,LD - East Locality,LD - East Cambs - Special Needs,Residential Care
Cambridgeshire County Council,01-Mar-19,51300755343,"-1,328.44",CARE MANAGEMENT GROUP (64-66 CARLTON),CARE ESTABLISHMENT,LD - East Locality,LD - East Cambs - Special Needs,Residential Care
Cambridgeshire County Council,01-Mar-19,51300755260,"-1,328.44",CARE MANAGEMENT GROUP (64-66 CARLTON),CARE ESTABLISHMENT,LD - East Locality,LD - East Cambs - Special Needs,Residential Care
Cambridgeshire County Council,01-Mar-19,51300755254,"-1,328.44",CARE MANAGEMENT GROUP (64-66 CARLTON),CARE ESTABLISHMENT,LD - East Locality,LD - East Cambs - Special Needs,Residential Care
Cambridgeshire County Council,01-Mar-19,51300755248,"-1,328.44",CARE MANAGEMENT GROUP (64-66 CARLTON),CARE ESTABLISHMENT,LD - East Locality,LD - East Cambs - Special Needs,Residential Care
Cambridgeshire County Council,01-Mar-19,51300755326,"-1,328.44",CARE MANAGEMENT GROUP (64-66 CARLTON),CARE ESTABLISHMENT,LD - East Locality,LD - East Cambs - Special Needs,Residential Care
Cambridgeshire County Council,01-Mar-19,51300755282,"-1,328.44",CARE MANAGEMENT GROUP (64-66 CARLTON),CARE ESTABLISHMENT,LD - East Locality,LD - East Cambs - Special Needs,Residential Care
Cambridgeshire County Council,01-Mar-19,51300755327,"-1,328.44",CARE MANAGEMENT GROUP (64-66 CARLTON),CARE ESTABLISHMENT,LD - East Locality,LD - East Cambs - Special Needs,Residential Care
Cambridgeshire County Council,01-Mar-19,51300740011,"-1,328.44",CARE MANAGEMENT GROUP (64-66 CARLTON),CARE ESTABLISHMENT,LD - East Locality,LD - East Cambs - Special Needs,Residential Care
Cambridgeshire County Council,01-Mar-19,51300740045,"-1,328.44",CARE MANAGEMENT GROUP (64-66 CARLTON),CARE ESTABLISHMENT,LD - East Locality,LD - East Cambs - Special Needs,Residential Care
Cambridgeshire County Council,01-Mar-19,51300755341,"-1,328.44",CARE MANAGEMENT GROUP (64-66 CARLTON),CARE ESTABLISHMENT,LD - East Locality,LD - East Cambs - Special Needs,Residential Care
Cambridgeshire County Council,01-Mar-19,51300755357,"-1,328.44",CARE MANAGEMENT GROUP (64-66 CARLTON),CARE ESTABLISHMENT,LD - East Locality,LD - East Cambs - Special Needs,Residential Care
Cambridgeshire County Council,01-Mar-19,51300755349,"-1,328.44",CARE MANAGEMENT GROUP (64-66 CARLTON),CARE ESTABLISHMENT,LD - East Locality,LD - East Cambs - Special Needs,Residential Care
Cambridgeshire County Council,01-Mar-19,51300755267,"-1,328.44",CARE MANAGEMENT GROUP (64-66 CARLTON),CARE ESTABLISHMENT,LD - East Locality,LD - East Cambs - Special Needs,Residential Care
Cambridgeshire County Council,01-Mar-19,51300755232,"-1,328.44",CARE MANAGEMENT GROUP (64-66 CARLTON),CARE ESTABLISHMENT,LD - East Locality,LD - East Cambs - Special Needs,Residential Care
Cambridgeshire County Council,01-Mar-19,51300755293,"-1,328.44",CARE MANAGEMENT GROUP (64-66 CARLTON),CARE ESTABLISHMENT,LD - East Locality,LD - East Cambs - Special Needs,Residential Care
Cambridgeshire County Council,01-Mar-19,51300755370,"-1,328.44",CARE MANAGEMENT GROUP (64-66 CARLTON),CARE ESTABLISHMENT,LD - East Locality,LD - East Cambs - Special Needs,Residential Care
Cambridgeshire County Council,01-Mar-19,51300755295,"-1,328.44",CARE MANAGEMENT GROUP (64-66 CARLTON),CARE ESTABLISHMENT,LD - East Locality,LD - East Cambs - Special Needs,Residential Care
Cambridgeshire County Council,01-Mar-19,51300740100,"-1,328.44",CARE MANAGEMENT GROUP (64-66 CARLTON),CARE ESTABLISHMENT,LD - East Locality,LD - East Cambs - Special Needs,Residential Care
Cambridgeshire County Council,01-Mar-19,51300740059,"-1,328.44",CARE MANAGEMENT GROUP (64-66 CARLTON),CARE ESTABLISHMENT,LD - East Locality,LD - East Cambs - Special Needs,Residential Care
Cambridgeshire County Council,01-Mar-19,51300739983,"-1,328.44",CARE MANAGEMENT GROUP (64-66 CARLTON),CARE ESTABLISHMENT,LD - East Locality,LD - East Cambs - Special Needs,Residential Care
Cambridgeshire County Council,01-Mar-19,51300740055,"-1,328.44",CARE MANAGEMENT GROUP (64-66 CARLTON),CARE ESTABLISHMENT,LD - East Locality,LD - East Cambs - Special Needs,Residential Care
Cambridgeshire County Council,01-Mar-19,51300740038,"-1,328.44",CARE MANAGEMENT GROUP (64-66 CARLTON),CARE ESTABLISHMENT,LD - East Locality,LD - East Cambs - Special Needs,Residential Care
Cambridgeshire County Council,01-Mar-19,51300740079,"-1,328.44",CARE MANAGEMENT GROUP (64-66 CARLTON),CARE ESTABLISHMENT,LD - East Locality,LD - East Cambs - Special Needs,Residential Care
Cambridgeshire County Council,01-Mar-19,51300740018,"-1,328.44",CARE MANAGEMENT GROUP (64-66 CARLTON),CARE ESTABLISHMENT,LD - East Locality,LD - East Cambs - Special Needs,Residential Care
Cambridgeshire County Council,01-Mar-19,51300739995,"-1,328.44",CARE MANAGEMENT GROUP (64-66 CARLTON),CARE ESTABLISHMENT,LD - East Locality,LD - East Cambs - Special Needs,Residential Care
Cambridgeshire County Council,01-Mar-19,51300740003,"-1,328.44",CARE MANAGEMENT GROUP (64-66 CARLTON),CARE ESTABLISHMENT,LD - East Locality,LD - East Cambs - Special Needs,Residential Care
Cambridgeshire County Council,01-Mar-19,51300740054,"-1,328.44",CARE MANAGEMENT GROUP (64-66 CARLTON),CARE ESTABLISHMENT,LD - East Locality,LD - East Cambs - Special Needs,Residential Care
Cambridgeshire County Council,01-Mar-19,51300740017,"-1,328.44",CARE MANAGEMENT GROUP (64-66 CARLTON),CARE ESTABLISHMENT,LD - East Locality,LD - East Cambs - Special Needs,Residential Care
Cambridgeshire County Council,01-Mar-19,51300739976,"-1,328.44",CARE MANAGEMENT GROUP (64-66 CARLTON),CARE ESTABLISHMENT,LD - East Locality,LD - East Cambs - Special Needs,Residential Care
Cambridgeshire County Council,01-Mar-19,51300755334,"-1,328.44",CARE MANAGEMENT GROUP (64-66 CARLTON),CARE ESTABLISHMENT,LD - East Locality,LD - East Cambs - Special Needs,Residential Care
Cambridgeshire County Council,01-Mar-19,51300755238,"-1,328.44",CARE MANAGEMENT GROUP (64-66 CARLTON),CARE ESTABLISHMENT,LD - East Locality,LD - East Cambs - Special Needs,Residential Care
Cambridgeshire County Council,01-Mar-19,51300755263,"-1,328.44",CARE MANAGEMENT GROUP (64-66 CARLTON),CARE ESTABLISHMENT,LD - East Locality,LD - East Cambs - Special Needs,Residential Care
Cambridgeshire County Council,01-Mar-19,51300755331,"-1,328.44",CARE MANAGEMENT GROUP (64-66 CARLTON),CARE ESTABLISHMENT,LD - East Locality,LD - East Cambs - Special Needs,Residential Care
Cambridgeshire County Council,01-Mar-19,51300755284,"-1,328.44",CARE MANAGEMENT GROUP (64-66 CARLTON),CARE ESTABLISHMENT,LD - East Locality,LD - East Cambs - Special Needs,Residential Care
Cambridgeshire County Council,01-Mar-19,51300755322,"-1,328.44",CARE MANAGEMENT GROUP (64-66 CARLTON),CARE ESTABLISHMENT,LD - East Locality,LD - East Cambs - Special Needs,Residential Care
Cambridgeshire County Council,01-Mar-19,51300755296,"-1,328.44",CARE MANAGEMENT GROUP (64-66 CARLTON),CARE ESTABLISHMENT,LD - East Locality,LD - East Cambs - Special Needs,Residential Care
Cambridgeshire County Council,01-Mar-19,51300755255,"-1,328.44",CARE MANAGEMENT GROUP (64-66 CARLTON),CARE ESTABLISHMENT,LD - East Locality,LD - East Cambs - Special Needs,Residential Care
Cambridgeshire County Council,01-Mar-19,51300739984,"-1,328.44",CARE MANAGEMENT GROUP (64-66 CARLTON),CARE ESTABLISHMENT,LD - East Locality,LD - East Cambs - Special Needs,Residential Care
Cambridgeshire County Council,01-Mar-19,51300740072,"-1,328.44",CARE MANAGEMENT GROUP (64-66 CARLTON),CARE ESTABLISHMENT,LD - East Locality,LD - East Cambs - Special Needs,Residential Care
Cambridgeshire County Council,01-Mar-19,51300740065,"-1,328.44",CARE MANAGEMENT GROUP (64-66 CARLTON),CARE ESTABLISHMENT,LD - East Locality,LD - East Cambs - Special Needs,Residential Care
Cambridgeshire County Council,01-Mar-19,51300755339,"-1,328.44",CARE MANAGEMENT GROUP (64-66 CARLTON),CARE ESTABLISHMENT,LD - East Locality,LD - East Cambs - Special Needs,Residential Care
Cambridgeshire County Council,01-Mar-19,51300740009,"-1,328.44",CARE MANAGEMENT GROUP (64-66 CARLTON),CARE ESTABLISHMENT,LD - East Locality,LD - East Cambs - Special Needs,Residential Care
Cambridgeshire County Council,01-Mar-19,51300740002,"-1,328.44",CARE MANAGEMENT GROUP (64-66 CARLTON),CARE ESTABLISHMENT,LD - East Locality,LD - East Cambs - Special Needs,Residential Care
Cambridgeshire County Council,01-Mar-19,51300755354,"-1,328.44",CARE MANAGEMENT GROUP (64-66 CARLTON),CARE ESTABLISHMENT,LD - East Locality,LD - East Cambs - Special Needs,Residential Care
Cambridgeshire County Council,01-Mar-19,51300755247,"-1,328.44",CARE MANAGEMENT GROUP (64-66 CARLTON),CARE ESTABLISHMENT,LD - East Locality,LD - East Cambs - Special Needs,Residential Care
Cambridgeshire County Council,01-Mar-19,51300755361,"-1,328.44",CARE MANAGEMENT GROUP (64-66 CARLTON),CARE ESTABLISHMENT,LD - East Locality,LD - East Cambs - Special Needs,Residential Care
Cambridgeshire County Council,01-Mar-19,51300755366,"-1,328.44",CARE MANAGEMENT GROUP (64-66 CARLTON),CARE ESTABLISHMENT,LD - East Locality,LD - East Cambs - Special Needs,Residential Care
Cambridgeshire County Council,01-Mar-19,51300755278,"-1,328.44",CARE MANAGEMENT GROUP (64-66 CARLTON),CARE ESTABLISHMENT,LD - East Locality,LD - East Cambs - Special Needs,Residential Care
Cambridgeshire County Council,01-Mar-19,51300755239,"-1,328.44",CARE MANAGEMENT GROUP (64-66 CARLTON),CARE ESTABLISHMENT,LD - East Locality,LD - East Cambs - Special Needs,Residential Care
Cambridgeshire County Council,01-Mar-19,51300740019,"-1,328.44",CARE MANAGEMENT GROUP (64-66 CARLTON),CARE ESTABLISHMENT,LD - East Locality,LD - East Cambs - Special Needs,Residential Care
Cambridgeshire County Council,01-Mar-19,51300739960,"-1,328.44",CARE MANAGEMENT GROUP (64-66 CARLTON),CARE ESTABLISHMENT,LD - East Locality,LD - East Cambs - Special Needs,Residential Care
Cambridgeshire County Council,01-Mar-19,51300740064,"-1,328.44",CARE MANAGEMENT GROUP (64-66 CARLTON),CARE ESTABLISHMENT,LD - East Locality,LD - East Cambs - Special Needs,Residential Care
Cambridgeshire County Council,01-Mar-19,51300740099,"-1,328.44",CARE MANAGEMENT GROUP (64-66 CARLTON),CARE ESTABLISHMENT,LD - East Locality,LD - East Cambs - Special Needs,Residential Care
Cambridgeshire County Council,01-Mar-19,51300739962,"-1,328.44",CARE MANAGEMENT GROUP (64-66 CARLTON),CARE ESTABLISHMENT,LD - East Locality,LD - East Cambs - Special Needs,Residential Care
Cambridgeshire County Council,01-Mar-19,51300740030,"-1,328.44",CARE MANAGEMENT GROUP (64-66 CARLTON),CARE ESTABLISHMENT,LD - East Locality,LD - East Cambs - Special Needs,Residential Care
Cambridgeshire County Council,01-Mar-19,51300755231,"-1,328.44",CARE MANAGEMENT GROUP (64-66 CARLTON),CARE ESTABLISHMENT,LD - East Locality,LD - East Cambs - Special Needs,Residential Care
Cambridgeshire County Council,01-Mar-19,51300755369,"-1,328.44",CARE MANAGEMENT GROUP (64-66 CARLTON),CARE ESTABLISHMENT,LD - East Locality,LD - East Cambs - Special Needs,Residential Care
Cambridgeshire County Council,01-Mar-19,51300740069,"-1,328.44",CARE MANAGEMENT GROUP (64-66 CARLTON),CARE ESTABLISHMENT,LD - East Locality,LD - East Cambs - Special Needs,Residential Care
Cambridgeshire County Council,01-Mar-19,51300740000,"-1,328.44",CARE MANAGEMENT GROUP (64-66 CARLTON),CARE ESTABLISHMENT,LD - East Locality,LD - East Cambs - Special Needs,Residential Care
Cambridgeshire County Council,01-Mar-19,51300755273,"-1,328.44",CARE MANAGEMENT GROUP (64-66 CARLTON),CARE ESTABLISHMENT,LD - East Locality,LD - East Cambs - Special Needs,Residential Care
Cambridgeshire County Council,01-Mar-19,51300740031,"-1,328.44",CARE MANAGEMENT GROUP (64-66 CARLTON),CARE ESTABLISHMENT,LD - East Locality,LD - East Cambs - Special Needs,Residential Care
Cambridgeshire County Council,01-Mar-19,51300740098,"-1,328.44",CARE MANAGEMENT GROUP (64-66 CARLTON),CARE ESTABLISHMENT,LD - East Locality,LD - East Cambs - Special Needs,Residential Care
Cambridgeshire County Council,01-Mar-19,51300755365,"-1,328.44",CARE MANAGEMENT GROUP (64-66 CARLTON),CARE ESTABLISHMENT,LD - East Locality,LD - East Cambs - Special Needs,Residential Care
Cambridgeshire County Council,01-Mar-19,51300755368,"-1,328.44",CARE MANAGEMENT GROUP (64-66 CARLTON),CARE ESTABLISHMENT,LD - East Locality,LD - East Cambs - Special Needs,Residential Care
Cambridgeshire County Council,01-Mar-19,51300755235,"-1,328.44",CARE MANAGEMENT GROUP (64-66 CARLTON),CARE ESTABLISHMENT,LD - East Locality,LD - East Cambs - Special Needs,Residential Care
Cambridgeshire County Council,01-Mar-19,51300755291,"-1,328.44",CARE MANAGEMENT GROUP (64-66 CARLTON),CARE ESTABLISHMENT,LD - East Locality,LD - East Cambs - Special Needs,Residential Care
Cambridgeshire County Council,01-Mar-19,51300755376,"-1,328.44",CARE MANAGEMENT GROUP (64-66 CARLTON),CARE ESTABLISHMENT,LD - East Locality,LD - East Cambs - Special Needs,Residential Care
Cambridgeshire County Council,01-Mar-19,51300740024,"-1,328.44",CARE MANAGEMENT GROUP (64-66 CARLTON),CARE ESTABLISHMENT,LD - East Locality,LD - East Cambs - Special Needs,Residential Care
Cambridgeshire County Council,01-Mar-19,51300740082,"-1,328.44",CARE MANAGEMENT GROUP (64-66 CARLTON),CARE ESTABLISHMENT,LD - East Locality,LD - East Cambs - Special Needs,Residential Care
Cambridgeshire County Council,01-Mar-19,51300740083,"-1,328.44",CARE MANAGEMENT GROUP (64-66 CARLTON),CARE ESTABLISHMENT,LD - East Locality,LD - East Cambs - Special Needs,Residential Care
Cambridgeshire County Council,01-Mar-19,51300740005,"-1,328.44",CARE MANAGEMENT GROUP (64-66 CARLTON),CARE ESTABLISHMENT,LD - East Locality,LD - East Cambs - Special Needs,Residential Care
Cambridgeshire County Council,01-Mar-19,51300755348,"-1,328.44",CARE MANAGEMENT GROUP (64-66 CARLTON),CARE ESTABLISHMENT,LD - East Locality,LD - East Cambs - Special Needs,Residential Care
Cambridgeshire County Council,01-Mar-19,51300740046,"-1,328.44",CARE MANAGEMENT GROUP (64-66 CARLTON),CARE ESTABLISHMENT,LD - East Locality,LD - East Cambs - Special Needs,Residential Care
Cambridgeshire County Council,01-Mar-19,51300740092,"-1,328.44",CARE MANAGEMENT GROUP (64-66 CARLTON),CARE ESTABLISHMENT,LD - East Locality,LD - East Cambs - Special Needs,Residential Care
Cambridgeshire County Council,01-Mar-19,51300755236,"-1,328.44",CARE MANAGEMENT GROUP (64-66 CARLTON),CARE ESTABLISHMENT,LD - East Locality,LD - East Cambs - Special Needs,Residential Care
Cambridgeshire County Council,01-Mar-19,51300740027,"-1,328.44",CARE MANAGEMENT GROUP (64-66 CARLTON),CARE ESTABLISHMENT,LD - East Locality,LD - East Cambs - Special Needs,Residential Care
Cambridgeshire County Council,01-Mar-19,51300755342,"-1,328.44",CARE MANAGEMENT GROUP (64-66 CARLTON),CARE ESTABLISHMENT,LD - East Locality,LD - East Cambs - Special Needs,Residential Care
Cambridgeshire County Council,01-Mar-19,51300740022,"-1,328.44",CARE MANAGEMENT GROUP (64-66 CARLTON),CARE ESTABLISHMENT,LD - East Locality,LD - East Cambs - Special Needs,Residential Care
Cambridgeshire County Council,01-Mar-19,51300739977,"-1,328.44",CARE MANAGEMENT GROUP (64-66 CARLTON),CARE ESTABLISHMENT,LD - East Locality,LD - East Cambs - Special Needs,Residential Care
Cambridgeshire County Council,01-Mar-19,51300755268,"-1,328.44",CARE MANAGEMENT GROUP (64-66 CARLTON),CARE ESTABLISHMENT,LD - East Locality,LD - East Cambs - Special Needs,Residential Care
Cambridgeshire County Council,01-Mar-19,51300739986,"-1,328.44",CARE MANAGEMENT GROUP (64-66 CARLTON),CARE ESTABLISHMENT,LD - East Locality,LD - East Cambs - Special Needs,Residential Care
Cambridgeshire County Council,01-Mar-19,51300740086,"-1,328.44",CARE MANAGEMENT GROUP (64-66 CARLTON),CARE ESTABLISHMENT,LD - East Locality,LD - East Cambs - Special Needs,Residential Care
Cambridgeshire County Council,01-Mar-19,51300755336,"-1,328.44",CARE MANAGEMENT GROUP (64-66 CARLTON),CARE ESTABLISHMENT,LD - East Locality,LD - East Cambs - Special Needs,Residential Care
Cambridgeshire County Council,01-Mar-19,51300755346,"-1,328.44",CARE MANAGEMENT GROUP (64-66 CARLTON),CARE ESTABLISHMENT,LD - East Locality,LD - East Cambs - Special Needs,Residential Care
Cambridgeshire County Council,01-Mar-19,51300755374,"-1,328.44",CARE MANAGEMENT GROUP (64-66 CARLTON),CARE ESTABLISHMENT,LD - East Locality,LD - East Cambs - Special Needs,Residential Care
Cambridgeshire County Council,01-Mar-19,51300740041,"-1,328.44",CARE MANAGEMENT GROUP (64-66 CARLTON),CARE ESTABLISHMENT,LD - East Locality,LD - East Cambs - Special Needs,Residential Care
Cambridgeshire County Council,01-Mar-19,51300740042,"-1,328.44",CARE MANAGEMENT GROUP (64-66 CARLTON),CARE ESTABLISHMENT,LD - East Locality,LD - East Cambs - Special Needs,Residential Care
Cambridgeshire County Council,01-Mar-19,51300740034,"-1,328.44",CARE MANAGEMENT GROUP (64-66 CARLTON),CARE ESTABLISHMENT,LD - East Locality,LD - East Cambs - Special Needs,Residential Care
Cambridgeshire County Council,01-Mar-19,51300755259,"-1,328.44",CARE MANAGEMENT GROUP (64-66 CARLTON),CARE ESTABLISHMENT,LD - East Locality,LD - East Cambs - Special Needs,Residential Care
Cambridgeshire County Council,01-Mar-19,51300740096,"-1,328.44",CARE MANAGEMENT GROUP (64-66 CARLTON),CARE ESTABLISHMENT,LD - East Locality,LD - East Cambs - Special Needs,Residential Care
Cambridgeshire County Council,01-Mar-19,51300739972,"-1,328.44",CARE MANAGEMENT GROUP (64-66 CARLTON),CARE ESTABLISHMENT,LD - East Locality,LD - East Cambs - Special Needs,Residential Care
Cambridgeshire County Council,01-Mar-19,51300755337,"-1,328.44",CARE MANAGEMENT GROUP (64-66 CARLTON),CARE ESTABLISHMENT,LD - East Locality,LD - East Cambs - Special Needs,Residential Care
Cambridgeshire County Council,01-Mar-19,51300755266,"-1,328.44",CARE MANAGEMENT GROUP (64-66 CARLTON),CARE ESTABLISHMENT,LD - East Locality,LD - East Cambs - Special Needs,Residential Care
Cambridgeshire County Council,01-Mar-19,51300755289,"-1,328.44",CARE MANAGEMENT GROUP (64-66 CARLTON),CARE ESTABLISHMENT,LD - East Locality,LD - East Cambs - Special Needs,Residential Care
Cambridgeshire County Council,01-Mar-19,51300755363,"-1,328.44",CARE MANAGEMENT GROUP (64-66 CARLTON),CARE ESTABLISHMENT,LD - East Locality,LD - East Cambs - Special Needs,Residential Care
Cambridgeshire County Council,14-Mar-19,51300794537,"-1,328.44",CARE MANAGEMENT GROUP (64-66 CARLTON),CARE ESTABLISHMENT,LD - East Locality,LD - East Cambs - Special Needs,Residential Care
Cambridgeshire County Council,14-Mar-19,51300794531,"-1,328.44",CARE MANAGEMENT GROUP (64-66 CARLTON),CARE ESTABLISHMENT,LD - East Locality,LD - East Cambs - Special Needs,Residential Care
Cambridgeshire County Council,14-Mar-19,51300794550,"-1,328.44",CARE MANAGEMENT GROUP (64-66 CARLTON),CARE ESTABLISHMENT,LD - East Locality,LD - East Cambs - Special Needs,Residential Care
Cambridgeshire County Council,14-Mar-19,51300783129,"-1,328.44",CARE MANAGEMENT GROUP (64-66 CARLTON),CARE ESTABLISHMENT,LD - East Locality,LD - East Cambs - Special Needs,Residential Care
Cambridgeshire County Council,14-Mar-19,51300783145,"-1,328.44",CARE MANAGEMENT GROUP (64-66 CARLTON),CARE ESTABLISHMENT,LD - East Locality,LD - East Cambs - Special Needs,Residential Care
Cambridgeshire County Council,14-Mar-19,51300783272,"-1,328.44",CARE MANAGEMENT GROUP (64-66 CARLTON),CARE ESTABLISHMENT,LD - East Locality,LD - East Cambs - Special Needs,Residential Care
Cambridgeshire County Council,14-Mar-19,51300783243,"-1,328.44",CARE MANAGEMENT GROUP (64-66 CARLTON),CARE ESTABLISHMENT,LD - East Locality,LD - East Cambs - Special Needs,Residential Care
Cambridgeshire County Council,14-Mar-19,51300783211,"-1,328.44",CARE MANAGEMENT GROUP (64-66 CARLTON),CARE ESTABLISHMENT,LD - East Locality,LD - East Cambs - Special Needs,Residential Care
Cambridgeshire County Council,14-Mar-19,51300794620,"-1,328.44",CARE MANAGEMENT GROUP (64-66 CARLTON),CARE ESTABLISHMENT,LD - East Locality,LD - East Cambs - Special Needs,Residential Care
Cambridgeshire County Council,14-Mar-19,51300783269,"-1,328.44",CARE MANAGEMENT GROUP (64-66 CARLTON),CARE ESTABLISHMENT,LD - East Locality,LD - East Cambs - Special Needs,Residential Care
Cambridgeshire County Council,14-Mar-19,51300794597,"-1,328.44",CARE MANAGEMENT GROUP (64-66 CARLTON),CARE ESTABLISHMENT,LD - East Locality,LD - East Cambs - Special Needs,Residential Care
Cambridgeshire County Council,14-Mar-19,51300794564,"-1,328.44",CARE MANAGEMENT GROUP (64-66 CARLTON),CARE ESTABLISHMENT,LD - East Locality,LD - East Cambs - Special Needs,Residential Care
Cambridgeshire County Council,14-Mar-19,51300794617,"-1,328.44",CARE MANAGEMENT GROUP (64-66 CARLTON),CARE ESTABLISHMENT,LD - East Locality,LD - East Cambs - Special Needs,Residential Care
Cambridgeshire County Council,14-Mar-19,51300794512,"-1,328.44",CARE MANAGEMENT GROUP (64-66 CARLTON),CARE ESTABLISHMENT,LD - East Locality,LD - East Cambs - Special Needs,Residential Care
Cambridgeshire County Council,14-Mar-19,51300794560,"-1,328.44",CARE MANAGEMENT GROUP (64-66 CARLTON),CARE ESTABLISHMENT,LD - East Locality,LD - East Cambs - Special Needs,Residential Care
Cambridgeshire County Council,14-Mar-19,51300783189,"-1,328.44",CARE MANAGEMENT GROUP (64-66 CARLTON),CARE ESTABLISHMENT,LD - East Locality,LD - East Cambs - Special Needs,Residential Care
Cambridgeshire County Council,14-Mar-19,51300783193,"-1,328.44",CARE MANAGEMENT GROUP (64-66 CARLTON),CARE ESTABLISHMENT,LD - East Locality,LD - East Cambs - Special Needs,Residential Care
Cambridgeshire County Council,14-Mar-19,51300783172,"-1,328.44",CARE MANAGEMENT GROUP (64-66 CARLTON),CARE ESTABLISHMENT,LD - East Locality,LD - East Cambs - Special Needs,Residential Care
Cambridgeshire County Council,14-Mar-19,51300794528,"-1,328.44",CARE MANAGEMENT GROUP (64-66 CARLTON),CARE ESTABLISHMENT,LD - East Locality,LD - East Cambs - Special Needs,Residential Care
Cambridgeshire County Council,14-Mar-19,51300794529,"-1,328.44",CARE MANAGEMENT GROUP (64-66 CARLTON),CARE ESTABLISHMENT,LD - East Locality,LD - East Cambs - Special Needs,Residential Care
Cambridgeshire County Council,14-Mar-19,51300794498,"-1,328.44",CARE MANAGEMENT GROUP (64-66 CARLTON),CARE ESTABLISHMENT,LD - East Locality,LD - East Cambs - Special Needs,Residential Care
Cambridgeshire County Council,14-Mar-19,51300794485,"-1,328.44",CARE MANAGEMENT GROUP (64-66 CARLTON),CARE ESTABLISHMENT,LD - East Locality,LD - East Cambs - Special Needs,Residential Care
Cambridgeshire County Council,14-Mar-19,51300794481,"-1,328.44",CARE MANAGEMENT GROUP (64-66 CARLTON),CARE ESTABLISHMENT,LD - East Locality,LD - East Cambs - Special Needs,Residential Care
Cambridgeshire County Council,14-Mar-19,51300794482,"-1,328.44",CARE MANAGEMENT GROUP (64-66 CARLTON),CARE ESTABLISHMENT,LD - East Locality,LD - East Cambs - Special Needs,Residential Care
Cambridgeshire County Council,14-Mar-19,51300794532,"-1,328.44",CARE MANAGEMENT GROUP (64-66 CARLTON),CARE ESTABLISHMENT,LD - East Locality,LD - East Cambs - Special Needs,Residential Care
Cambridgeshire County Council,14-Mar-19,51300794547,"-1,328.44",CARE MANAGEMENT GROUP (64-66 CARLTON),CARE ESTABLISHMENT,LD - East Locality,LD - East Cambs - Special Needs,Residential Care
Cambridgeshire County Council,14-Mar-19,51300783185,"-1,328.44",CARE MANAGEMENT GROUP (64-66 CARLTON),CARE ESTABLISHMENT,LD - East Locality,LD - East Cambs - Special Needs,Residential Care
Cambridgeshire County Council,14-Mar-19,51300783248,"-1,328.44",CARE MANAGEMENT GROUP (64-66 CARLTON),CARE ESTABLISHMENT,LD - East Locality,LD - East Cambs - Special Needs,Residential Care
Cambridgeshire County Council,14-Mar-19,51300783260,"-1,328.44",CARE MANAGEMENT GROUP (64-66 CARLTON),CARE ESTABLISHMENT,LD - East Locality,LD - East Cambs - Special Needs,Residential Care
Cambridgeshire County Council,14-Mar-19,51300783138,"-1,328.44",CARE MANAGEMENT GROUP (64-66 CARLTON),CARE ESTABLISHMENT,LD - East Locality,LD - East Cambs - Special Needs,Residential Care
Cambridgeshire County Council,14-Mar-19,51300783195,"-1,328.44",CARE MANAGEMENT GROUP (64-66 CARLTON),CARE ESTABLISHMENT,LD - East Locality,LD - East Cambs - Special Needs,Residential Care
Cambridgeshire County Council,14-Mar-19,51300783170,"-1,328.44",CARE MANAGEMENT GROUP (64-66 CARLTON),CARE ESTABLISHMENT,LD - East Locality,LD - East Cambs - Special Needs,Residential Care
Cambridgeshire County Council,14-Mar-19,51300783184,"-1,328.44",CARE MANAGEMENT GROUP (64-66 CARLTON),CARE ESTABLISHMENT,LD - East Locality,LD - East Cambs - Special Needs,Residential Care
Cambridgeshire County Council,14-Mar-19,51300783258,"-1,328.44",CARE MANAGEMENT GROUP (64-66 CARLTON),CARE ESTABLISHMENT,LD - East Locality,LD - East Cambs - Special Needs,Residential Care
Cambridgeshire County Council,14-Mar-19,51300794548,"-1,328.44",CARE MANAGEMENT GROUP (64-66 CARLTON),CARE ESTABLISHMENT,LD - East Locality,LD - East Cambs - Special Needs,Residential Care
Cambridgeshire County Council,14-Mar-19,51300794483,"-1,328.44",CARE MANAGEMENT GROUP (64-66 CARLTON),CARE ESTABLISHMENT,LD - East Locality,LD - East Cambs - Special Needs,Residential Care
Cambridgeshire County Council,14-Mar-19,51300783242,"-1,328.44",CARE MANAGEMENT GROUP (64-66 CARLTON),CARE ESTABLISHMENT,LD - East Locality,LD - East Cambs - Special Needs,Residential Care
Cambridgeshire County Council,14-Mar-19,51300794567,"-1,328.44",CARE MANAGEMENT GROUP (64-66 CARLTON),CARE ESTABLISHMENT,LD - East Locality,LD - East Cambs - Special Needs,Residential Care
Cambridgeshire County Council,14-Mar-19,51300794554,"-1,328.44",CARE MANAGEMENT GROUP (64-66 CARLTON),CARE ESTABLISHMENT,LD - East Locality,LD - East Cambs - Special Needs,Residential Care
Cambridgeshire County Council,14-Mar-19,51300794589,"-1,328.44",CARE MANAGEMENT GROUP (64-66 CARLTON),CARE ESTABLISHMENT,LD - East Locality,LD - East Cambs - Special Needs,Residential Care
Cambridgeshire County Council,14-Mar-19,51300794598,"-1,328.44",CARE MANAGEMENT GROUP (64-66 CARLTON),CARE ESTABLISHMENT,LD - East Locality,LD - East Cambs - Special Needs,Residential Care
Cambridgeshire County Council,14-Mar-19,51300783163,"-1,328.44",CARE MANAGEMENT GROUP (64-66 CARLTON),CARE ESTABLISHMENT,LD - East Locality,LD - East Cambs - Special Needs,Residential Care
Cambridgeshire County Council,14-Mar-19,51300794527,"-1,328.44",CARE MANAGEMENT GROUP (64-66 CARLTON),CARE ESTABLISHMENT,LD - East Locality,LD - East Cambs - Special Needs,Residential Care
Cambridgeshire County Council,14-Mar-19,51300794524,"-1,328.44",CARE MANAGEMENT GROUP (64-66 CARLTON),CARE ESTABLISHMENT,LD - East Locality,LD - East Cambs - Special Needs,Residential Care
Cambridgeshire County Council,14-Mar-19,51300783225,"-1,328.44",CARE MANAGEMENT GROUP (64-66 CARLTON),CARE ESTABLISHMENT,LD - East Locality,LD - East Cambs - Special Needs,Residential Care
Cambridgeshire County Council,14-Mar-19,51300783261,"-1,328.44",CARE MANAGEMENT GROUP (64-66 CARLTON),CARE ESTABLISHMENT,LD - East Locality,LD - East Cambs - Special Needs,Residential Care
Cambridgeshire County Council,14-Mar-19,51300794470,"-1,328.44",CARE MANAGEMENT GROUP (64-66 CARLTON),CARE ESTABLISHMENT,LD - East Locality,LD - East Cambs - Special Needs,Residential Care
Cambridgeshire County Council,14-Mar-19,51300794594,"-1,328.44",CARE MANAGEMENT GROUP (64-66 CARLTON),CARE ESTABLISHMENT,LD - East Locality,LD - East Cambs - Special Needs,Residential Care
Cambridgeshire County Council,14-Mar-19,51300794492,"-1,328.44",CARE MANAGEMENT GROUP (64-66 CARLTON),CARE ESTABLISHMENT,LD - East Locality,LD - East Cambs - Special Needs,Residential Care
Cambridgeshire County Council,14-Mar-19,51300794538,"-1,328.44",CARE MANAGEMENT GROUP (64-66 CARLTON),CARE ESTABLISHMENT,LD - East Locality,LD - East Cambs - Special Needs,Residential Care
Cambridgeshire County Council,14-Mar-19,51300794511,"-1,328.44",CARE MANAGEMENT GROUP (64-66 CARLTON),CARE ESTABLISHMENT,LD - East Locality,LD - East Cambs - Special Needs,Residential Care
Cambridgeshire County Council,14-Mar-19,51300794535,"-1,328.44",CARE MANAGEMENT GROUP (64-66 CARLTON),CARE ESTABLISHMENT,LD - East Locality,LD - East Cambs - Special Needs,Residential Care
Cambridgeshire County Council,14-Mar-19,51300783124,"-1,328.44",CARE MANAGEMENT GROUP (64-66 CARLTON),CARE ESTABLISHMENT,LD - East Locality,LD - East Cambs - Special Needs,Residential Care
Cambridgeshire County Council,14-Mar-19,51300783126,"-1,328.44",CARE MANAGEMENT GROUP (64-66 CARLTON),CARE ESTABLISHMENT,LD - East Locality,LD - East Cambs - Special Needs,Residential Care
Cambridgeshire County Council,14-Mar-19,51300783157,"-1,328.44",CARE MANAGEMENT GROUP (64-66 CARLTON),CARE ESTABLISHMENT,LD - East Locality,LD - East Cambs - Special Needs,Residential Care
Cambridgeshire County Council,14-Mar-19,51300783159,"-1,328.44",CARE MANAGEMENT GROUP (64-66 CARLTON),CARE ESTABLISHMENT,LD - East Locality,LD - East Cambs - Special Needs,Residential Care
Cambridgeshire County Council,14-Mar-19,51300783217,"-1,328.44",CARE MANAGEMENT GROUP (64-66 CARLTON),CARE ESTABLISHMENT,LD - East Locality,LD - East Cambs - Special Needs,Residential Care
Cambridgeshire County Council,14-Mar-19,51300783266,"-1,328.44",CARE MANAGEMENT GROUP (64-66 CARLTON),CARE ESTABLISHMENT,LD - East Locality,LD - East Cambs - Special Needs,Residential Care
Cambridgeshire County Council,14-Mar-19,51300794549,"-1,328.44",CARE MANAGEMENT GROUP (64-66 CARLTON),CARE ESTABLISHMENT,LD - East Locality,LD - East Cambs - Special Needs,Residential Care
Cambridgeshire County Council,14-Mar-19,51300794543,"-1,328.44",CARE MANAGEMENT GROUP (64-66 CARLTON),CARE ESTABLISHMENT,LD - East Locality,LD - East Cambs - Special Needs,Residential Care
Cambridgeshire County Council,14-Mar-19,51300794501,"-1,328.44",CARE MANAGEMENT GROUP (64-66 CARLTON),CARE ESTABLISHMENT,LD - East Locality,LD - East Cambs - Special Needs,Residential Care
Cambridgeshire County Council,14-Mar-19,51300794475,"-1,328.44",CARE MANAGEMENT GROUP (64-66 CARLTON),CARE ESTABLISHMENT,LD - East Locality,LD - East Cambs - Special Needs,Residential Care
Cambridgeshire County Council,14-Mar-19,51300794522,"-1,328.44",CARE MANAGEMENT GROUP (64-66 CARLTON),CARE ESTABLISHMENT,LD - East Locality,LD - East Cambs - Special Needs,Residential Care
Cambridgeshire County Council,14-Mar-19,51300783143,"-1,328.44",CARE MANAGEMENT GROUP (64-66 CARLTON),CARE ESTABLISHMENT,LD - East Locality,LD - East Cambs - Special Needs,Residential Care
Cambridgeshire County Council,14-Mar-19,51300783135,"-1,328.44",CARE MANAGEMENT GROUP (64-66 CARLTON),CARE ESTABLISHMENT,LD - East Locality,LD - East Cambs - Special Needs,Residential Care
Cambridgeshire County Council,14-Mar-19,51300783252,"-1,328.44",CARE MANAGEMENT GROUP (64-66 CARLTON),CARE ESTABLISHMENT,LD - East Locality,LD - East Cambs - Special Needs,Residential Care
Cambridgeshire County Council,14-Mar-19,51300783146,"-1,328.44",CARE MANAGEMENT GROUP (64-66 CARLTON),CARE ESTABLISHMENT,LD - East Locality,LD - East Cambs - Special Needs,Residential Care
Cambridgeshire County Council,14-Mar-19,51300783173,"-1,328.44",CARE MANAGEMENT GROUP (64-66 CARLTON),CARE ESTABLISHMENT,LD - East Locality,LD - East Cambs - Special Needs,Residential Care
Cambridgeshire County Council,14-Mar-19,51300783132,"-1,328.44",CARE MANAGEMENT GROUP (64-66 CARLTON),CARE ESTABLISHMENT,LD - East Locality,LD - East Cambs - Special Needs,Residential Care
Cambridgeshire County Council,14-Mar-19,51300783255,"-1,328.44",CARE MANAGEMENT GROUP (64-66 CARLTON),CARE ESTABLISHMENT,LD - East Locality,LD - East Cambs - Special Needs,Residential Care
Cambridgeshire County Council,14-Mar-19,51300794499,"-1,328.44",CARE MANAGEMENT GROUP (64-66 CARLTON),CARE ESTABLISHMENT,LD - East Locality,LD - East Cambs - Special Needs,Residential Care
Cambridgeshire County Council,14-Mar-19,51300794503,"-1,328.44",CARE MANAGEMENT GROUP (64-66 CARLTON),CARE ESTABLISHMENT,LD - East Locality,LD - East Cambs - Special Needs,Residential Care
Cambridgeshire County Council,14-Mar-19,51300783133,"-1,328.44",CARE MANAGEMENT GROUP (64-66 CARLTON),CARE ESTABLISHMENT,LD - East Locality,LD - East Cambs - Special Needs,Residential Care
Cambridgeshire County Council,14-Mar-19,51300783190,"-1,328.44",CARE MANAGEMENT GROUP (64-66 CARLTON),CARE ESTABLISHMENT,LD - East Locality,LD - East Cambs - Special Needs,Residential Care
Cambridgeshire County Council,14-Mar-19,51300783194,"-1,328.44",CARE MANAGEMENT GROUP (64-66 CARLTON),CARE ESTABLISHMENT,LD - East Locality,LD - East Cambs - Special Needs,Residential Care
Cambridgeshire County Council,14-Mar-19,51300783215,"-1,328.44",CARE MANAGEMENT GROUP (64-66 CARLTON),CARE ESTABLISHMENT,LD - East Locality,LD - East Cambs - Special Needs,Residential Care
Cambridgeshire County Council,14-Mar-19,51300794555,"-1,328.44",CARE MANAGEMENT GROUP (64-66 CARLTON),CARE ESTABLISHMENT,LD - East Locality,LD - East Cambs - Special Needs,Residential Care
Cambridgeshire County Council,14-Mar-19,51300783256,"-1,328.44",CARE MANAGEMENT GROUP (64-66 CARLTON),CARE ESTABLISHMENT,LD - East Locality,LD - East Cambs - Special Needs,Residential Care
Cambridgeshire County Council,14-Mar-19,51300783177,"-1,328.44",CARE MANAGEMENT GROUP (64-66 CARLTON),CARE ESTABLISHMENT,LD - East Locality,LD - East Cambs - Special Needs,Residential Care
Cambridgeshire County Council,14-Mar-19,51300794614,"-1,328.44",CARE MANAGEMENT GROUP (64-66 CARLTON),CARE ESTABLISHMENT,LD - East Locality,LD - East Cambs - Special Needs,Residential Care
Cambridgeshire County Council,14-Mar-19,51300794615,"-1,328.44",CARE MANAGEMENT GROUP (64-66 CARLTON),CARE ESTABLISHMENT,LD - East Locality,LD - East Cambs - Special Needs,Residential Care
Cambridgeshire County Council,14-Mar-19,51300794575,"-1,328.44",CARE MANAGEMENT GROUP (64-66 CARLTON),CARE ESTABLISHMENT,LD - East Locality,LD - East Cambs - Special Needs,Residential Care
Cambridgeshire County Council,14-Mar-19,51300794504,"-1,328.44",CARE MANAGEMENT GROUP (64-66 CARLTON),CARE ESTABLISHMENT,LD - East Locality,LD - East Cambs - Special Needs,Residential Care
Cambridgeshire County Council,14-Mar-19,51300794600,"-1,328.44",CARE MANAGEMENT GROUP (64-66 CARLTON),CARE ESTABLISHMENT,LD - East Locality,LD - East Cambs - Special Needs,Residential Care
Cambridgeshire County Council,14-Mar-19,51300783259,"-1,328.44",CARE MANAGEMENT GROUP (64-66 CARLTON),CARE ESTABLISHMENT,LD - East Locality,LD - East Cambs - Special Needs,Residential Care
Cambridgeshire County Council,14-Mar-19,51300783220,"-1,328.44",CARE MANAGEMENT GROUP (64-66 CARLTON),CARE ESTABLISHMENT,LD - East Locality,LD - East Cambs - Special Needs,Residential Care
